Directorate,Department,Expenditure Type,Ref.Doc.1,Vendor Name,Expenditure Amount (exc VAT),Payment Date
Delivery Units,Assurance,Audit Fee,1024541302,PRICEWATERHOUSE COOPERS,"15,000.00",17/05/2023
Delivery Units,Strategy and Resources,Other Establishments - Third P,0080066008,TRANSPORT TRADING LIMITED,"2,125,011.00",11/05/2023
Delivery Units,Strategy and Resources,Other Establishments - Third P,0080066191,GLA LEVIES,"50,633.80",19/05/2023
Delivery Units,Strategy and Resources,Other Establishments - Third P,0080066189,LEE VALLEY REGIONAL PARK AUTH.,"32,407.20",19/05/2023
Delivery Units,Customer and Place,Discretionary awards,1023747603,Barnet Homes Limited,"217,591.00",25/05/2023
Delivery Units,Strategy and Resources,CSG Services Contract Payment,1024865501,CAPITA BUSINESS SERVICES LTD,"83,114.20",19/05/2023
Delivery Units,Customer and Place,Professional Services,1024390401,PeopleScout Limited,286.75,02/05/2023
Delivery Units,Customer and Place,Printing-Contract,1024652701,Secure-a-field Ltd,817.60,15/05/2023
Delivery Units,Customer and Place,Professional Services,1024730601,PeopleScout Limited,343.70,16/05/2023
Delivery Units,Customer and Place,Professional Services,1024959301,PeopleScout Limited,647.39,23/05/2023
Delivery Units,Customer and Place,Professional Services,1025103601,HAYMARKET MEDIA GROUP LTD,"7,100.00",26/05/2023
Delivery Units,Customer and Place,Professional Services,1025143601,ISS Mediclean,120.00,30/05/2023
Delivery Units,Customer and Place,Professional Services,1024428401,URBAN DESIGN LONDON,"3,950.00",03/05/2023
Delivery Units,Customer and Place,Professional Services,1025151302,CAPITA BUSINESS SERVICES LTD,"5,283.66",31/05/2023
Delivery Units,Customer and Place,Building Repairs & Maintenance,1021225403,Integrated Water Services Ltd,"3,696.04",02/05/2023
Delivery Units,Customer and Place,Building Repairs & Maintenance,1021773903,Integrated Water Services Ltd,"20,500.00",02/05/2023
Delivery Units,Customer and Place,Building Repairs & Maintenance,1021897403,Integrated Water Services Ltd,"1,140.00",02/05/2023
Delivery Units,Customer and Place,Building Repairs & Maintenance,1021928903,Integrated Water Services Ltd,"8,353.74",02/05/2023
Delivery Units,Customer and Place,Building Repairs & Maintenance,1022080703,Record UK,77.00,02/05/2023
Delivery Units,Customer and Place,Building Repairs & Maintenance,1022250003,Boon Edam Ltd,862.50,23/05/2023
Delivery Units,Customer and Place,Building Repairs & Maintenance,1023128303,Charles Wilson Engineers Ltd,"7,599.15",17/05/2023
Delivery Units,Customer and Place,Building Repairs & Maintenance,1023129203,Charles Wilson Engineers Ltd,"6,680.70",17/05/2023
Delivery Units,Customer and Place,Building Repairs & Maintenance,1023384403,Charles Wilson Engineers Ltd,"7,300.80",19/05/2023
Delivery Units,Customer and Place,Building Repairs & Maintenance,1023532703,Charles Wilson Engineers Ltd,965.10,17/05/2023
Delivery Units,Customer and Place,Building Repairs & Maintenance,1023595603,Charles Wilson Engineers Ltd,"5,128.50",17/05/2023
Delivery Units,Customer and Place,Building Repairs & Maintenance,1023951303,Charles Wilson Engineers Ltd,"1,616.44",17/05/2023
Delivery Units,Customer and Place,Building Repairs & Maintenance,1023953103,Charles Wilson Engineers Ltd,"4,066.40",22/05/2023
Delivery Units,Customer and Place,Building Repairs & Maintenance,1023989003,Charles Wilson Engineers Ltd,"7,445.10",17/05/2023
Delivery Units,Customer and Place,Building Repairs & Maintenance,1023997903,Carter Security Ltd,95.00,12/05/2023
Delivery Units,Customer and Place,Building Repairs & Maintenance,1023998002,Carter Security Ltd,535.30,12/05/2023
Delivery Units,Customer and Place,Building Repairs & Maintenance,1023999203,Carter Security Ltd,520.00,12/05/2023
Delivery Units,Customer and Place,Building Repairs & Maintenance,1023999403,Carter Security Ltd,520.00,12/05/2023
Delivery Units,Customer and Place,Building Repairs & Maintenance,1024000803,Carter Security Ltd,520.00,12/05/2023
Delivery Units,Customer and Place,Building Repairs & Maintenance,1024000903,Carter Security Ltd,522.85,12/05/2023
Delivery Units,Customer and Place,Building Repairs & Maintenance,1024001103,Carter Security Ltd,520.00,12/05/2023
Delivery Units,Customer and Place,Building Repairs & Maintenance,1024009603,Charles Wilson Engineers Ltd,390.00,19/05/2023
Delivery Units,Customer and Place,Building Repairs & Maintenance,1024057003,Sureserve Fire & Electrical Ltd,"4,953.77",23/05/2023
Delivery Units,Customer and Place,Building Repairs & Maintenance,1024182903,Charles Wilson Engineers Ltd,"10,293.75",17/05/2023
Delivery Units,Customer and Place,Building Repairs & Maintenance,1024299703,Charles Wilson Engineers Ltd,"6,795.75",17/05/2023
Delivery Units,Customer and Place,Building Repairs & Maintenance,1024351702,Elite Entrance Systems Ltd,292.50,12/05/2023
Delivery Units,Customer and Place,Building Repairs & Maintenance,1024428702,S W Bruce & Co Ltd,130.00,15/05/2023
Delivery Units,Customer and Place,Building Repairs & Maintenance,1024430602,Integrated Water Services Ltd,168.28,03/05/2023
Delivery Units,Customer and Place,Building Repairs & Maintenance,1024431602,Integrated Water Services Ltd,"2,037.83",03/05/2023
Delivery Units,Customer and Place,Building Repairs & Maintenance,1024471102,Integrated Water Services Ltd,"8,527.36",05/05/2023
Delivery Units,Customer and Place,Building Repairs & Maintenance,1024504803,Charles Wilson Engineers Ltd,"5,477.55",17/05/2023
Delivery Units,Customer and Place,Building Repairs & Maintenance,1024505302,Charles Wilson Engineers Ltd,"3,536.00",22/05/2023
Delivery Units,Customer and Place,Building Repairs & Maintenance,1024506503,Charles Wilson Engineers Ltd,"1,564.28",17/05/2023
Delivery Units,Customer and Place,Building Repairs & Maintenance,1024509001,Integrated Water Services Ltd,"3,849.78",05/05/2023
Delivery Units,Customer and Place,Building Repairs & Maintenance,1024581602,Orion Building Engineering Services Ltd,112.50,19/05/2023
Delivery Units,Customer and Place,Building Repairs & Maintenance,1024584102,Riverside Environmental Services LTD,"1,725.00",19/05/2023
Delivery Units,Customer and Place,Building Repairs & Maintenance,1024658403,Charles Wilson Engineers Ltd,"6,222.45",17/05/2023
Delivery Units,Customer and Place,Building Repairs & Maintenance,1024960202,Orion Building Engineering Services Ltd,112.50,25/05/2023
Delivery Units,Customer and Place,Other Services,1021859403,COTSWOLD DOORS LTD,165.50,15/05/2023
Delivery Units,Childrens Service DSG,Other Services,0050067916,KIDZ CHOICE LIMITED,"1,554.00",18/05/2023
Delivery Units,Childrens Service DSG,Other Services,0050067939,BRIGHT HORIZONS FAMILY SOLUTIO,"2,330.00",18/05/2023
Delivery Units,Childrens Service DSG,Other Services,0050067940,BRIGHT HORIZONS FAMILY SOLUTIO,"1,554.00",18/05/2023
Delivery Units,Childrens Service DSG,Other Services,0050067943,KIDZ CHOICE LIMITED,"1,554.00",18/05/2023
Delivery Units,Childrens Service DSG,Other Services,0050067950,KIDZ CHOICE LIMITED,"1,554.00",18/05/2023
Delivery Units,Childrens Service DSG,Other Services,0050067962,KIDZ CHOICE LIMITED,"1,165.00",18/05/2023
Delivery Units,Childrens Service DSG,Other Services,0050067965,PUDDLEDUCKS NURSERIES,"2,330.00",18/05/2023
Delivery Units,Childrens Service DSG,Other Establishments - Third P,0050067684,PARKFIELD ACADEMY,589.62,18/05/2023
Delivery Units,Childrens Service DSG,Other Establishments - Third P,0050067690,THE HYDE EF ACADEMY,281.69,18/05/2023
Delivery Units,Childrens Service DSG,Other Establishments - Third P,0050067753,BROADFIELDS ACADEMY,439.92,18/05/2023
Delivery Units,Childrens Service DSG,Other Services,0050067880,The Finchley Day Nursery,"1,152.00",18/05/2023
Delivery Units,Childrens Service DSG,Other Services,0050067881,N Family Club - Whetsone,"1,588.00",18/05/2023
Delivery Units,Childrens Service DSG,Other Services,0050067882,SPARKLER'S  NURSERY,"1,554.00",18/05/2023
Delivery Units,Childrens Service DSG,Other Services,0050067884,Claremont Community Pre-School,"1,554.00",18/05/2023
Delivery Units,Childrens Service DSG,Other Services,0050067885,TUFFKIDS NURSERY,"1,554.00",18/05/2023
Delivery Units,Childrens Service DSG,Other Services,0050067886,LITTLE PEBBLES LIMITED,777.00,18/05/2023
Delivery Units,Childrens Service DSG,Other Services,0050067887,Bright Horizons North Finchley,"2,390.00",18/05/2023
Delivery Units,Childrens Service DSG,Other Services,0050067888,Claremont Community Pre-School,598.00,18/05/2023
Delivery Units,Childrens Service DSG,Other Services,0050067889,FOUNTAIN MONTESSORI PRE-SCHOOL,"1,554.00",18/05/2023
Delivery Units,Childrens Service DSG,Other Services,0050067890,HAMPSTEAD GARDEN SUBURB PRE-SCHOOL,"1,554.00",18/05/2023
Delivery Units,Childrens Service DSG,Other Services,0050067891,Kana Nurseries Ltd,"3,107.00",18/05/2023
Delivery Units,Childrens Service DSG,Other Services,0050067892,Belmont Farm Nursery School,"1,554.00",18/05/2023
Delivery Units,Childrens Service DSG,Other Services,0050067893,The Learning Experience East Finchley,"2,330.00",18/05/2023
Delivery Units,Childrens Service DSG,Other Services,0050067894,Busy Bees Nurseries Ltd,"1,864.00",18/05/2023
Delivery Units,Childrens Service DSG,Other Services,0050067896,GAN ALON PRE SCHOOL,717.00,18/05/2023
Delivery Units,Childrens Service DSG,Other Services,0050067897,TUFFKIDS NURSERY,"1,554.00",18/05/2023
Delivery Units,Childrens Service DSG,Other Services,0050067898,LITTLE PEBBLES LIMITED,777.00,18/05/2023
Delivery Units,Childrens Service DSG,Other Services,0050067900,TUFFKIDS NURSERY,"1,864.00",18/05/2023
Delivery Units,Childrens Service DSG,Other Services,0050067901,Little Bicks 2 Nursery,"2,175.00",18/05/2023
Delivery Units,Childrens Service DSG,Other Services,0050067902,Claremont Community Pre-School,"1,554.00",18/05/2023
Delivery Units,Childrens Service DSG,Other Services,0050067903,SPARKLER'S  NURSERY,"2,330.00",18/05/2023
Delivery Units,Childrens Service DSG,Other Services,0050067904,OAKHILL COMMUNITY NURSERY,"1,554.00",18/05/2023
Delivery Units,Childrens Service DSG,Other Services,0050067905,Happy Journeys Day Nursery,"1,554.00",18/05/2023
Delivery Units,Childrens Service DSG,Other Services,0050067906,SPARKLER'S  NURSERY,"1,864.00",18/05/2023
Delivery Units,Childrens Service DSG,Other Services,0050067907,HAMPSTEAD GARDEN SUBURB PRE-SCHOOL,"2,330.00",18/05/2023
Delivery Units,Childrens Service DSG,Other Services,0050067909,Twinkle Stars Montessori Nursery,"1,554.00",18/05/2023
Delivery Units,Childrens Service DSG,Other Services,0050067910,Ellie's Little Kingdom,"1,864.00",18/05/2023
Delivery Units,Childrens Service DSG,Other Services,0050067911,THE KINDERGARTEN NURSERY,"3,107.00",18/05/2023
Delivery Units,Childrens Service DSG,Other Services,0050067912,Mara Nursery,"1,165.00",18/05/2023
Delivery Units,Childrens Service DSG,Other Services,0050067913,Happy Journeys Day Nursery,"3,107.00",18/05/2023
Delivery Units,Childrens Service DSG,Other Services,0050067914,PLAYTIME PRE-SCHOOL,"1,942.00",18/05/2023
Delivery Units,Childrens Service DSG,Other Services,0050067915,SPARKLER'S  NURSERY,"3,107.00",18/05/2023
Delivery Units,Childrens Service DSG,Other Services,0050067918,SPARKLER'S  NURSERY,598.00,18/05/2023
Delivery Units,Childrens Service DSG,Other Services,0050067919,Busy Bees Nurseries Ltd,"1,942.00",18/05/2023
Delivery Units,Childrens Service DSG,Other Services,0050067920,PARKSIDE VIEW NURSERY LIMITED,"1,864.00",18/05/2023
Delivery Units,Childrens Service DSG,Other Services,0050067921,Cherry Blossoms Childcare Ltd,"1,554.00",18/05/2023
Delivery Units,Childrens Service DSG,Other Services,0050067922,THE LITTLE LEARNERS MONTESSORI LTD,598.00,18/05/2023
Delivery Units,Childrens Service DSG,Other Services,0050067923,SPARKLER'S  NURSERY,"2,330.00",18/05/2023
Delivery Units,Childrens Service DSG,Other Services,0050067924,LITTLE LEO'S NURSERY,"3,107.00",18/05/2023
Delivery Units,Childrens Service DSG,Other Services,0050067925,SPARKLER'S  NURSERY,"1,554.00",18/05/2023
Delivery Units,Childrens Service DSG,Other Services,0050067926,PLAY AND LEARN,"3,884.00",18/05/2023
Delivery Units,Childrens Service DSG,Other Services,0050067927,PARKSIDE VIEW NURSERY LIMITED,"1,165.00",18/05/2023
Delivery Units,Childrens Service DSG,Other Services,0050067928,GAN ALON PRE SCHOOL,"1,165.00",18/05/2023
Delivery Units,Childrens Service DSG,Other Services,0050067929,Claremont Community Pre-School,"1,554.00",18/05/2023
Delivery Units,Childrens Service DSG,Other Services,0050067930,Mara Nursery,"3,107.00",18/05/2023
Delivery Units,Childrens Service DSG,Other Services,0050067931,OAKHILL COMMUNITY NURSERY,"1,554.00",18/05/2023
Delivery Units,Childrens Service DSG,Other Services,0050067932,JOEL DAY NURSERY,"3,107.00",18/05/2023
Delivery Units,Childrens Service DSG,Other Services,0050067933,Aplomb Day Nursery,"1,165.00",18/05/2023
Delivery Units,Childrens Service DSG,Other Services,0050067934,ST PHILLIPS PRE-SCHOOL,598.00,18/05/2023
Delivery Units,Childrens Service DSG,Other Services,0050067935,N Family Club - Whetsone,896.00,18/05/2023
Delivery Units,Childrens Service DSG,Other Services,0050067936,CUPCAKES NURSERIES LTD,"2,330.00",18/05/2023
Delivery Units,Childrens Service DSG,Other Services,0050067937,The Learning Experience East Finchley,"3,107.00",18/05/2023
Delivery Units,Childrens Service DSG,Other Services,0050067938,Alonim Kindergarten,"2,330.00",18/05/2023
Delivery Units,Childrens Service DSG,Other Services,0050067941,LITTLE PEBBLES LIMITED,777.00,18/05/2023
Delivery Units,Childrens Service DSG,Other Services,0050067942,Happy Journeys Day Nursery,"1,243.00",18/05/2023
Delivery Units,Childrens Service DSG,Other Services,0050067945,Claremont Community Pre-School,"1,554.00",18/05/2023
Delivery Units,Childrens Service DSG,Other Services,0050067946,LAUREL WAY PLAYGROUP,"1,165.00",18/05/2023
Delivery Units,Childrens Service DSG,Other Services,0050067947,GAN ALON PRE SCHOOL,"1,554.00",18/05/2023
Delivery Units,Childrens Service DSG,Other Services,0050067948,Tinky's Day Nursery,"1,554.00",18/05/2023
Delivery Units,Childrens Service DSG,Other Services,0050067949,Tinky's Day Nursery,"1,554.00",18/05/2023
Delivery Units,Childrens Service DSG,Other Services,0050067951,Mara Nursery,"1,243.00",18/05/2023
Delivery Units,Childrens Service DSG,Other Services,0050067952,Aplomb Day Nursery,"1,243.00",18/05/2023
Delivery Units,Childrens Service DSG,Other Services,0050067953,Peninim Primary School,"1,554.00",18/05/2023
Delivery Units,Childrens Service DSG,Other Services,0050067954,NANCY REUBEN PRIMARY SCHOOL,"1,554.00",18/05/2023
Delivery Units,Childrens Service DSG,Other Services,0050067955,THE KINDERGARTEN NURSERY,"1,554.00",18/05/2023
Delivery Units,Childrens Service DSG,Other Services,0050067956,Bright Little Stars Nursery Ba,"2,330.00",18/05/2023
Delivery Units,Childrens Service DSG,Other Services,0050067957,SPARKLER'S  NURSERY,"2,330.00",18/05/2023
Delivery Units,Childrens Service DSG,Other Services,0050067958,LUBAVITCH OF EDGWARE,"1,554.00",18/05/2023
Delivery Units,Childrens Service DSG,Other Services,0050067959,TUFFKIDS NURSERY,239.00,18/05/2023
Delivery Units,Childrens Service DSG,Other Services,0050067960,Finchley Yochien,"1,554.00",18/05/2023
Delivery Units,Childrens Service DSG,Other Services,0050067961,PLAYFIELD NURSERY,"1,942.00",18/05/2023
Delivery Units,Childrens Service DSG,Other Services,0050067964,GAN ALON PRE SCHOOL,"1,554.00",18/05/2023
Delivery Units,Childrens Service DSG,Other Services,0050067966,Little Bicks 2 Nursery,"2,330.00",18/05/2023
Delivery Units,Childrens Service DSG,Other Services,0050067968,ELY NURSERY,"1,554.00",18/05/2023
Delivery Units,Childrens Service DSG,Other Services,0050067969,TUFFKIDS NURSERY,"1,554.00",18/05/2023
Delivery Units,Childrens Service DSG,Other Services,0050067970,Mara Nursery,"1,554.00",18/05/2023
Delivery Units,Childrens Service DSG,Other Services,0050067971,HAMPSTEAD GARDEN SUBURB PRE-SCHOOL,"1,165.00",18/05/2023
Delivery Units,Childrens Service DSG,Other Services,0050067972,LUBAVITCH OF EDGWARE,"1,165.00",18/05/2023
Delivery Units,Childrens Service DSG,Other Services,0050067973,LUBAVITCH OF EDGWARE,"1,165.00",18/05/2023
Delivery Units,Childrens Service DSG,Other Services,0050067974,Woodlands Home Nursery,"1,554.00",18/05/2023
Delivery Units,Childrens Service DSG,Other Services,0050067975,Abracadabra Preschool Nursery,"1,554.00",18/05/2023
Delivery Units,Childrens Service DSG,Other Services,0050067883,Kidz Choice Nursery,"2,330.00",18/05/2023
Delivery Units,Childrens Service DSG,Other Services,0050067895,Kidz Choice Nursery,"2,330.00",18/05/2023
Delivery Units,Childrens Service DSG,Other Services,0050067899,Kidz Choice Nursery,"1,864.00",18/05/2023
Delivery Units,Childrens Service DSG,Other Services,0050067944,Apple Day Nursery,"1,165.00",18/05/2023
Delivery Units,Childrens Service DSG,Other Services,0050067963,Apple Day Nursery,"1,165.00",18/05/2023
Delivery Units,Childrens Service DSG,Other Services,0050067967,Kidz Choice Nursery,"2,330.00",18/05/2023
Delivery Units,Childrens Service DSG,Education CFR Funding Advances,0020065997,BEIS SOROH SCHNEIRER,"22,276.65",24/05/2023
Delivery Units,Childrens Service DSG,Education CFR Funding Advances,0020066001,BROADFIELDS ACADEMY,"12,467.88",24/05/2023
Delivery Units,Childrens Service DSG,Education CFR Funding Advances,0020066006,Claremont Primary School Academy,"6,410.04",24/05/2023
Delivery Units,Childrens Service DSG,Education CFR Funding Advances,0020066010,BEIS CHINUCH PRIMARY SCHOOL,"15,884.22",24/05/2023
Delivery Units,Childrens Service DSG,Education CFR Funding Advances,0020066013,Finchley Yochien,"4,930.80",24/05/2023
Delivery Units,Childrens Service DSG,Education CFR Funding Advances,0020066020,INDEPENDENT JEWISH DAY SCHOOL,"10,530.78",24/05/2023
Delivery Units,Childrens Service DSG,Education CFR Funding Advances,0020066021,The Mill Hill Foundation,"3,698.10",24/05/2023
Delivery Units,Childrens Service DSG,Education CFR Funding Advances,0020066026,Millbrook Park Primary School,"13,806.24",24/05/2023
Delivery Units,Childrens Service DSG,Education CFR Funding Advances,0020066030,PARKFIELD ACADEMY,"21,202.44",24/05/2023
Delivery Units,Childrens Service DSG,Education CFR Funding Advances,0020066031,Peninim Primary School,"18,243.96",24/05/2023
Delivery Units,Childrens Service DSG,Education CFR Funding Advances,0020066042,Summerside Primary Academy,"10,513.17",24/05/2023
Delivery Units,Childrens Service DSG,Education CFR Funding Advances,0020066044,THE HYDE EF ACADEMY,"24,724.44",24/05/2023
Delivery Units,Childrens Service DSG,Private Contractors - Third Pa,0080065301,BROADFIELDS ACADEMY,"1,267.97",04/05/2023
Delivery Units,Childrens Service DSG,Private Contractors - Third Pa,0080065372,ST ANDREWS PRE-SCHOOL,394.20,04/05/2023
Delivery Units,Childrens Service DSG,Private Contractors - Third Pa,0080065456,SPARKLER'S  NURSERY,"1,101.00",04/05/2023
Delivery Units,Childrens Service DSG,Private Contractors - Third Pa,0080065474,Abracadabra Preschool Nursery,"1,119.94",04/05/2023
Delivery Units,Childrens Service DSG,Private Contractors - Third Pa,0080065475,LITTLE LEO'S NURSERY,722.56,04/05/2023
Delivery Units,Childrens Service DSG,Private Contractors - Third Pa,0080066518,LITTLE LEO'S NURSERY,719.56,26/05/2023
Delivery Units,Childrens Service DSG,Private Contractors - Third Pa,0080066520,ST ANDREWS PRE-SCHOOL,864.00,26/05/2023
Delivery Units,Childrens Service DSG,Private Contractors - Third Pa,0080066586,OAKHILL COMMUNITY NURSERY,"1,106.17",30/05/2023
Delivery Units,Childrens Service DSG,Private Contractors - Third Pa,0080066536,Kidz Choice Nursery,101.24,26/05/2023
Delivery Units,Childrens Family Services,Cleaning and domestic material,1024507701,Cleantec Services Ltd,"1,217.44",05/05/2023
Delivery Units,Childrens Family Services,Cleaning and domestic material,1024508001,ClearCall2000 LTD,44.49,05/05/2023
Delivery Units,Childrens Family Services,Cleaning and domestic material,1024508501,G.B.HOLDINGS LTD,67.20,05/05/2023
Delivery Units,Childrens Family Services,Other Agencies - Third Party P,1024580801,GLS Education Services Ltd,89.31,10/05/2023
Delivery Units,Childrens Family Services,Other Agencies - Third Party P,1024580901,GLS Education Services Ltd,86.97,10/05/2023
Delivery Units,Childrens Family Services,Other Agencies - Third Party P,1024727002,Sensory Education Ltd,158.82,19/05/2023
Delivery Units,Childrens Family Services,Equipment and Materials Purcha,1024729602,ClearCall2000 LTD,42.35,17/05/2023
Delivery Units,Childrens Family Services,Equipment and Materials Purcha,1024140002,LEE SECURITY LONDON LIMITED,49.82,15/05/2023
Delivery Units,Childrens Family Services,Equipment and Materials Purcha,1024580002,Norse Commercial Services Ltd,64.25,15/05/2023
Delivery Units,Childrens Family Services,Water Services,1024580701,2468 LTD,931.31,10/05/2023
Delivery Units,Childrens Family Services,Cleaning and domestic material,1024581201,Norse Commercial Services Ltd,704.36,10/05/2023
Delivery Units,Childrens Family Services,Gas,1024803201,KENT COUNTY COUNCIL (KCS),780.64,18/05/2023
Delivery Units,Childrens Family Services,Electricity,1024916801,KENT COUNTY COUNCIL (KCS),"1,308.76",22/05/2023
Delivery Units,Childrens Family Services,Other Agencies - Third Party P,1024771702,Bread n Butter CIC,775.00,30/05/2023
Delivery Units,Childrens Family Services,Cleaning and domestic material,1024579601,Norse Commercial Services Ltd,528.42,10/05/2023
Delivery Units,Childrens Family Services,Equipment and Materials Purcha,1024581701,Norse Commercial Services Ltd,61.58,10/05/2023
Delivery Units,Childrens Family Services,Professional Services,1024686801,S W Bruce & Co Ltd,866.20,15/05/2023
Delivery Units,Childrens Family Services,Operational Leases - Equipment,1023541301,Canon (UK) limited,"-1,051.24",15/05/2023
Delivery Units,Childrens Family Services,Operational Leases - Equipment,1023696302,Canon (UK) limited,90.85,15/05/2023
Delivery Units,Childrens Family Services,Other Services,1024390601,Enigma CCTV Ltd,"5,711.16",02/05/2023
Delivery Units,Childrens Family Services,Other Services,1024469701,BLUE 9 SECURITY LIMITED,"1,759.41",04/05/2023
Delivery Units,Childrens Family Services,Operational Leases - Equipment,1024643301,Canon (UK) limited,90.85,15/05/2023
Delivery Units,Childrens Family Services,Operational Leases - Equipment,1024649101,Canon (UK) limited,90.85,15/05/2023
Delivery Units,Childrens Family Services,Operational Leases - Equipment,1024649401,Canon (UK) limited,90.85,15/05/2023
Delivery Units,Childrens Family Services,Operational Leases - Equipment,1024649601,Canon (UK) limited,90.85,15/05/2023
Delivery Units,Childrens Family Services,Operational Leases - Equipment,1024649801,Canon (UK) limited,90.85,15/05/2023
Delivery Units,Childrens Family Services,Other Services,1024653501,1ST CONTAINERS UK LIMITED,30.00,12/05/2023
Delivery Units,Childrens Family Services,Operational Leases - Equipment,1024654001,Canon (UK) limited,90.85,15/05/2023
Delivery Units,Childrens Family Services,Operational Leases - Equipment,1024654101,Canon (UK) limited,90.85,15/05/2023
Delivery Units,Childrens Family Services,Operational Leases - Equipment,1024654601,Canon (UK) limited,90.85,15/05/2023
Delivery Units,Childrens Family Services,Operational Leases - Equipment,1024654901,Canon (UK) limited,90.85,15/05/2023
Delivery Units,Childrens Family Services,Operational Leases - Equipment,1024655001,Canon (UK) limited,90.85,15/05/2023
Delivery Units,Childrens Family Services,Other Services,1024655201,Enigma CCTV Ltd,"4,728.89",15/05/2023
Delivery Units,Childrens Family Services,Other Services,1024660001,BLUE 9 SECURITY LIMITED,147.73,15/05/2023
Delivery Units,Childrens Family Services,Operational Leases - Equipment,1024660301,Canon (UK) limited,90.85,15/05/2023
Delivery Units,Childrens Family Services,Stationery,1024810002,Banner Group Limited,10.40,31/05/2023
Delivery Units,Childrens Family Services,Other Services,1025035501,BLUE 9 SECURITY LIMITED,"1,777.86",25/05/2023
Delivery Units,Childrens Family Services,Other Services,1025037501,BLUE 9 SECURITY LIMITED,"1,498.98",25/05/2023
Delivery Units,Childrens Family Services,Other Services,1025037701,BLUE 9 SECURITY LIMITED,"1,516.41",25/05/2023
Delivery Units,Childrens Family Services,Other Services,1025039601,BLUE 9 SECURITY LIMITED,"1,631.70",25/05/2023
Delivery Units,Childrens Family Services,Other Services,1025205401,BLUE 9 SECURITY LIMITED,331.17,31/05/2023
Delivery Units,Childrens Family Services,Other Services,1025205601,BLUE 9 SECURITY LIMITED,"1,987.02",31/05/2023
Delivery Units,Childrens Family Services,Other Services,1025206101,BLUE 9 SECURITY LIMITED,17.43,31/05/2023
Delivery Units,Childrens Family Services,Books-CDs-Audio-Video,0021006331,DX NETWORK SERVICES LTD,10.51,03/05/2023
Delivery Units,Childrens Family Services,Books-CDs-Audio-Video,0021006332,DX NETWORK SERVICES LTD,10.53,03/05/2023
Delivery Units,Childrens Family Services,Books-CDs-Audio-Video,0021006333,Singh Convenience Store Ltd,401.20,03/05/2023
Delivery Units,Childrens Family Services,Books-CDs-Audio-Video,0021006335,Mill Hill Newsagents Ltd,129.60,03/05/2023
Delivery Units,Childrens Family Services,Books-CDs-Audio-Video,0021006338,Colindale Local Ltd,103.10,03/05/2023
Delivery Units,Childrens Family Services,Books-CDs-Audio-Video,0021006341,Singh Convenience Store Ltd,360.40,03/05/2023
Delivery Units,Childrens Family Services,Books-CDs-Audio-Video,0021006342,CENGAGE LEARNING SERVICES,88.65,03/05/2023
Delivery Units,Childrens Family Services,Books-CDs-Audio-Video,0021006344,Malhotra News Agent Ltd,242.80,04/05/2023
Delivery Units,Childrens Family Services,Books-CDs-Audio-Video,0021006350,Colindale Local Ltd,9.50,05/05/2023
Delivery Units,Childrens Family Services,Books-CDs-Audio-Video,0021006351,DX NETWORK SERVICES LTD,11.00,05/05/2023
Delivery Units,Childrens Family Services,Books-CDs-Audio-Video,0021006353,OVERDRIVE,"11,166.00",05/05/2023
Delivery Units,Childrens Family Services,Books-CDs-Audio-Video,0021006358,OVERDRIVE,"7,300.00",05/05/2023
Delivery Units,Childrens Family Services,Books-CDs-Audio-Video,0021006364,ASKEWS & HOLTS LIBRARY SERVICES LTD,10.02,05/05/2023
Delivery Units,Childrens Family Services,Books-CDs-Audio-Video,0021006378,isubscribe,82.55,09/05/2023
Delivery Units,Childrens Family Services,Books-CDs-Audio-Video,0021006379,Singh Convenience Store Ltd,392.00,10/05/2023
Delivery Units,Childrens Family Services,Books-CDs-Audio-Video,0021006380,Mill Hill Newsagents Ltd,134.60,10/05/2023
Delivery Units,Childrens Family Services,Books-CDs-Audio-Video,0021006381,isubscribe,158.27,10/05/2023
Delivery Units,Childrens Family Services,Books-CDs-Audio-Video,0021006382,isubscribe,82.55,10/05/2023
Delivery Units,Childrens Family Services,Books-CDs-Audio-Video,0021006383,isubscribe,185.48,10/05/2023
Delivery Units,Childrens Family Services,Books-CDs-Audio-Video,0021006384,isubscribe,122.14,10/05/2023
Delivery Units,Childrens Family Services,Books-CDs-Audio-Video,0021006385,isubscribe,614.96,10/05/2023
Delivery Units,Childrens Family Services,Books-CDs-Audio-Video,0021006386,isubscribe,141.34,10/05/2023
Delivery Units,Childrens Family Services,Books-CDs-Audio-Video,0021006387,isubscribe,158.27,10/05/2023
Delivery Units,Childrens Family Services,Books-CDs-Audio-Video,0021006388,isubscribe,195.98,10/05/2023
Delivery Units,Childrens Family Services,Books-CDs-Audio-Video,0021006389,isubscribe,82.55,10/05/2023
Delivery Units,Childrens Family Services,Books-CDs-Audio-Video,0021006390,isubscribe,82.55,10/05/2023
Delivery Units,Childrens Family Services,Books-CDs-Audio-Video,0021006391,isubscribe,82.55,10/05/2023
Delivery Units,Childrens Family Services,Books-CDs-Audio-Video,0021006392,isubscribe,112.74,10/05/2023
Delivery Units,Childrens Family Services,Books-CDs-Audio-Video,0021006393,isubscribe,177.47,10/05/2023
Delivery Units,Childrens Family Services,Books-CDs-Audio-Video,0021006394,isubscribe,158.27,10/05/2023
Delivery Units,Childrens Family Services,Books-CDs-Audio-Video,0021006408,ASKEWS & HOLTS LIBRARY SERVICES LTD,71.34,16/05/2023
Delivery Units,Childrens Family Services,Books-CDs-Audio-Video,0021006412,ASKEWS & HOLTS LIBRARY SERVICES LTD,71.34,16/05/2023
Delivery Units,Childrens Family Services,Books-CDs-Audio-Video,0021006421,ASKEWS & HOLTS LIBRARY SERVICES LTD,11.59,16/05/2023
Delivery Units,Childrens Family Services,Books-CDs-Audio-Video,0021006433,ASKEWS & HOLTS LIBRARY SERVICES LTD,7.98,16/05/2023
Delivery Units,Childrens Family Services,Books-CDs-Audio-Video,0021006435,ASKEWS & HOLTS LIBRARY SERVICES LTD,11.59,16/05/2023
Delivery Units,Childrens Family Services,Books-CDs-Audio-Video,0021006449,ASKEWS & HOLTS LIBRARY SERVICES LTD,9.18,16/05/2023
Delivery Units,Childrens Family Services,Books-CDs-Audio-Video,0021006450,ASKEWS & HOLTS LIBRARY SERVICES LTD,9.18,16/05/2023
Delivery Units,Childrens Family Services,Books-CDs-Audio-Video,0021006454,ASKEWS & HOLTS LIBRARY SERVICES LTD,9.18,16/05/2023
Delivery Units,Childrens Family Services,Books-CDs-Audio-Video,0021006459,ASKEWS & HOLTS LIBRARY SERVICES LTD,13.44,16/05/2023
Delivery Units,Childrens Family Services,Books-CDs-Audio-Video,0021006461,ASKEWS & HOLTS LIBRARY SERVICES LTD,9.18,16/05/2023
Delivery Units,Childrens Family Services,Books-CDs-Audio-Video,0021006465,ASKEWS & HOLTS LIBRARY SERVICES LTD,9.18,16/05/2023
Delivery Units,Childrens Family Services,Books-CDs-Audio-Video,0021006466,ASKEWS & HOLTS LIBRARY SERVICES LTD,9.18,16/05/2023
Delivery Units,Childrens Family Services,Books-CDs-Audio-Video,0021006475,ASKEWS & HOLTS LIBRARY SERVICES LTD,9.18,16/05/2023
Delivery Units,Childrens Family Services,Books-CDs-Audio-Video,0021006476,ASKEWS & HOLTS LIBRARY SERVICES LTD,9.18,16/05/2023
Delivery Units,Childrens Family Services,Books-CDs-Audio-Video,0021006491,ASKEWS & HOLTS LIBRARY SERVICES LTD,7.08,16/05/2023
Delivery Units,Childrens Family Services,Books-CDs-Audio-Video,0021006492,ASKEWS & HOLTS LIBRARY SERVICES LTD,7.08,16/05/2023
Delivery Units,Childrens Family Services,Books-CDs-Audio-Video,0021006498,ASKEWS & HOLTS LIBRARY SERVICES LTD,110.34,16/05/2023
Delivery Units,Childrens Family Services,Books-CDs-Audio-Video,0021006548,ASKEWS & HOLTS LIBRARY SERVICES LTD,67.84,16/05/2023
Delivery Units,Childrens Family Services,Books-CDs-Audio-Video,0021006587,ASKEWS & HOLTS LIBRARY SERVICES LTD,26.20,25/05/2023
Delivery Units,Childrens Family Services,Books-CDs-Audio-Video,0021006602,ASKEWS & HOLTS LIBRARY SERVICES LTD,6.03,25/05/2023
Delivery Units,Childrens Family Services,Books-CDs-Audio-Video,0021006603,ASKEWS & HOLTS LIBRARY SERVICES LTD,6.03,25/05/2023
Delivery Units,Childrens Family Services,Books-CDs-Audio-Video,0021006604,ASKEWS & HOLTS LIBRARY SERVICES LTD,6.03,25/05/2023
Delivery Units,Childrens Family Services,Books-CDs-Audio-Video,0021006611,ASKEWS & HOLTS LIBRARY SERVICES LTD,4.73,25/05/2023
Delivery Units,Childrens Family Services,Books-CDs-Audio-Video,0021006614,ASKEWS & HOLTS LIBRARY SERVICES LTD,4.73,25/05/2023
Delivery Units,Childrens Family Services,Books-CDs-Audio-Video,0021006615,ASKEWS & HOLTS LIBRARY SERVICES LTD,4.73,25/05/2023
Delivery Units,Childrens Family Services,Books-CDs-Audio-Video,0021006619,ASKEWS & HOLTS LIBRARY SERVICES LTD,4.73,25/05/2023
Delivery Units,Childrens Family Services,Books-CDs-Audio-Video,0021006620,ASKEWS & HOLTS LIBRARY SERVICES LTD,4.73,25/05/2023
Delivery Units,Childrens Family Services,Books-CDs-Audio-Video,0021006626,ASKEWS & HOLTS LIBRARY SERVICES LTD,4.73,25/05/2023
Delivery Units,Childrens Family Services,Books-CDs-Audio-Video,0021006628,ASKEWS & HOLTS LIBRARY SERVICES LTD,4.73,25/05/2023
Delivery Units,Childrens Family Services,Books-CDs-Audio-Video,0021006629,ASKEWS & HOLTS LIBRARY SERVICES LTD,4.73,25/05/2023
Delivery Units,Childrens Family Services,Books-CDs-Audio-Video,0021006343,D.D. Mini Mart Newsagents & Off-Licence,122.40,03/05/2023
Delivery Units,Childrens Family Services,Books-CDs-Audio-Video,0021006398,D.D. Mini Mart Newsagents & Off-Licence,129.20,12/05/2023
Delivery Units,Childrens Family Services,Books-CDs-Audio-Video,0021006399,D.D. Mini Mart Newsagents & Off-Licence,129.20,12/05/2023
Delivery Units,Childrens Family Services,Books-CDs-Audio-Video,0021006400,D.D. Mini Mart Newsagents & Off-Licence,161.50,12/05/2023
Delivery Units,Childrens Family Services,Books-CDs-Audio-Video,0021006345,API AVI STORES,196.00,04/05/2023
Delivery Units,Childrens Family Services,Books-CDs-Audio-Video,0021006346,API AVI STORES,179.20,04/05/2023
Delivery Units,Childrens Family Services,Books-CDs-Audio-Video,0021006347,API AVI STORES,191.50,04/05/2023
Delivery Units,Childrens Family Services,Books-CDs-Audio-Video,0021006348,API AVI STORES,199.70,04/05/2023
Delivery Units,Childrens Family Services,Books-CDs-Audio-Video,0021006349,API AVI STORES,185.60,04/05/2023
Delivery Units,Childrens Family Services,Books-CDs-Audio-Video,0021006395,CONFAGS,266.80,10/05/2023
Delivery Units,Childrens Family Services,Books-CDs-Audio-Video,0021006396,CONFAGS,259.10,10/05/2023
Delivery Units,Childrens Family Services,Other Services,1024639101,Kisharon Limited,"25,000.00",15/05/2023
Delivery Units,Childrens Family Services,Other Services,1024640001,Kisharon Limited,"2,500.00",15/05/2023
Delivery Units,Childrens Family Services,Other Services,1024645301,Norse Commercial Services Ltd,34.83,11/05/2023
Delivery Units,Childrens Family Services,Cleaning and domestic material,1024647501,Norse Commercial Services Ltd,"2,648.54",11/05/2023
Delivery Units,Childrens Family Services,Cleaning and domestic material,1024692101,Norse Commercial Services Ltd,"2,338.11",15/05/2023
Delivery Units,Childrens Family Services,Electricity,1024636701,Enron Estates Ltd,"2,500.00",11/05/2023
Delivery Units,Childrens Family Services,Other Services,1024644401,Norse Commercial Services Ltd,67.33,11/05/2023
Delivery Units,Childrens Family Services,Cleaning and domestic material,1024642901,Norse Commercial Services Ltd,528.42,11/05/2023
Delivery Units,Childrens Family Services,Other Services,1024645401,Norse Commercial Services Ltd,17.00,11/05/2023
Delivery Units,Childrens Family Services,Cleaning and domestic material,1024647101,Norse Commercial Services Ltd,"1,165.84",11/05/2023
Delivery Units,Childrens Family Services,Other Services,1024647401,Norse Commercial Services Ltd,29.58,11/05/2023
Delivery Units,Childrens Family Services,Other Services,1024919401,FRIERN BARNET COMMUNITY LIBRARY,"10,000.00",22/05/2023
Delivery Units,Childrens Family Services,Laundry and Dry Cleaning,1024635902,PHS GROUP LTD,130.59,15/05/2023
Delivery Units,Childrens Family Services,Cleaning and domestic material,1024644501,Norse Commercial Services Ltd,527.87,11/05/2023
Delivery Units,Childrens Family Services,Other Services,1024646201,Norse Commercial Services Ltd,17.00,11/05/2023
Delivery Units,Childrens Family Services,Other Services,1024917701,Garden Suburb Community Library,"10,000.00",22/05/2023
Delivery Units,Childrens Family Services,Other Services,1024643001,Norse Commercial Services Ltd,30.42,11/05/2023
Delivery Units,Childrens Family Services,Cleaning and domestic material,1024644801,Norse Commercial Services Ltd,705.28,11/05/2023
Delivery Units,Childrens Family Services,Cleaning and domestic material,1024107401,Herts FullStop,-155.97,16/05/2023
Delivery Units,Childrens Family Services,Laundry and Dry Cleaning,1024635602,PHS GROUP LTD,130.59,15/05/2023
Delivery Units,Childrens Family Services,Cleaning and domestic material,1024643601,Norse Commercial Services Ltd,528.42,11/05/2023
Delivery Units,Childrens Family Services,Other Services,1024646801,Norse Commercial Services Ltd,21.25,11/05/2023
Delivery Units,Childrens Family Services,Other Services,1024645601,Norse Commercial Services Ltd,25.92,11/05/2023
Delivery Units,Childrens Family Services,Cleaning and domestic material,1024645701,Norse Commercial Services Ltd,703.90,11/05/2023
Delivery Units,Childrens Family Services,Gas,1024428901,KENT COUNTY COUNCIL (KCS),570.94,03/05/2023
Delivery Units,Childrens Family Services,Electricity,1025038002,KENT COUNTY COUNCIL (KCS),"-1,887.64",26/05/2023
Delivery Units,Childrens Family Services,Electricity,1025204301,KENT COUNTY COUNCIL (KCS),"1,915.25",31/05/2023
Delivery Units,Childrens Family Services,Books-CDs-Audio-Video,1024686902,ASKEWS & HOLTS LIBRARY SERVICES LTD,128.33,19/05/2023
Delivery Units,Childrens Family Services,Books-CDs-Audio-Video,1024687802,ASKEWS & HOLTS LIBRARY SERVICES LTD,174.90,19/05/2023
Delivery Units,Childrens Family Services,Books-CDs-Audio-Video,1024688101,ASKEWS & HOLTS LIBRARY SERVICES LTD,53.09,17/05/2023
Delivery Units,Childrens Family Services,Books-CDs-Audio-Video,1024688202,ASKEWS & HOLTS LIBRARY SERVICES LTD,5.64,19/05/2023
Delivery Units,Childrens Family Services,Books-CDs-Audio-Video,1024688302,ASKEWS & HOLTS LIBRARY SERVICES LTD,523.06,19/05/2023
Delivery Units,Childrens Family Services,Books-CDs-Audio-Video,1024688802,ASKEWS & HOLTS LIBRARY SERVICES LTD,54.34,19/05/2023
Delivery Units,Childrens Family Services,Books-CDs-Audio-Video,1024689001,ASKEWS & HOLTS LIBRARY SERVICES LTD,"1,557.07",15/05/2023
Delivery Units,Childrens Family Services,Books-CDs-Audio-Video,1024689102,ASKEWS & HOLTS LIBRARY SERVICES LTD,648.30,19/05/2023
Delivery Units,Childrens Family Services,Books-CDs-Audio-Video,1024689502,ASKEWS & HOLTS LIBRARY SERVICES LTD,8.00,19/05/2023
Delivery Units,Childrens Family Services,Books-CDs-Audio-Video,1024689902,ASKEWS & HOLTS LIBRARY SERVICES LTD,340.58,19/05/2023
Delivery Units,Childrens Family Services,Books-CDs-Audio-Video,1024690002,ASKEWS & HOLTS LIBRARY SERVICES LTD,81.60,19/05/2023
Delivery Units,Childrens Family Services,Books-CDs-Audio-Video,1024958502,ASKEWS & HOLTS LIBRARY SERVICES LTD,44.34,23/05/2023
Delivery Units,Childrens Family Services,Books-CDs-Audio-Video,1024962102,ASKEWS & HOLTS LIBRARY SERVICES LTD,7.62,23/05/2023
Delivery Units,Childrens Family Services,Books-CDs-Audio-Video,1024962702,ASKEWS & HOLTS LIBRARY SERVICES LTD,62.87,23/05/2023
Delivery Units,Assurance,Printing-Contract,1024917801,Civica Election Services Limit,"3,661.40",22/05/2023
Delivery Units,Assurance,Advertising,1024466201,LONDON BOROUGH OF HACKNEY,295.00,04/05/2023
Delivery Units,Assurance,Advertising,1024466302,LONDON BOROUGH OF HACKNEY,432.50,04/05/2023
Delivery Units,Assurance,Rents,1004754801,KENT COUNTY COUNCIL (KCS),-46.68,03/05/2023
Delivery Units,Assurance,Training,1025206301,Lawyers in Local Government,315.00,31/05/2023
Delivery Units,Assurance,Professional Services,1024381601,GOOD IMPRESSIONS (LONDON) LIMITED,300.00,02/05/2023
Delivery Units,Assurance,Other Indirect Employee Expens,1025101901,ISS Mediclean,"2,015.00",26/05/2023
Delivery Units,Assurance,Other Indirect Employee Expens,0080065625,Mayor of Wandsworth Charity,60.00,22/05/2023
Delivery Units,Assurance,Equipment and Materials Purcha,1025144201,ISS Mediclean,128.70,30/05/2023
Delivery Units,Assurance,Training,1021269403,LONDON BOROUGH OF HACKNEY,618.05,15/05/2023
Delivery Units,Customer and Place,Equipment and Materials Purcha,1024582501,STORM ENVIRONMENTAL LTD,690.00,10/05/2023
Delivery Units,Customer and Place,Equipment and Materials Purcha,1024584802,SMI INT Group Ltd,"4,950.00",25/05/2023
Delivery Units,Customer and Place,Training,1024183501,Wallace School of Transport,-23.00,24/05/2023
Delivery Units,Customer and Place,General Office Expenses,1024319403,Banner Group Limited,19.98,19/05/2023
Delivery Units,Customer and Place,Clothing - Protective Clothing,1024322402,SMI INT Group Ltd,568.80,03/05/2023
Delivery Units,Customer and Place,Clothing - Protective Clothing,1024382902,SMI INT Group Ltd,22.85,03/05/2023
Delivery Units,Customer and Place,Clothing - Protective Clothing,1024383001,SMI INT Group Ltd,-28.14,25/05/2023
Delivery Units,Customer and Place,Clothing - Protective Clothing,1024467601,SMI INT Group Ltd,-15.90,25/05/2023
Delivery Units,Customer and Place,Clothing - Protective Clothing,1024468702,SMI INT Group Ltd,35.09,04/05/2023
Delivery Units,Customer and Place,General Office Expenses,1024650802,Banner Group Limited,482.21,15/05/2023
Delivery Units,Customer and Place,General Office Expenses,1024657102,Banner Group Limited,19.98,15/05/2023
Delivery Units,Customer and Place,Clothing - Protective Clothing,1024766201,SMI INT Group Ltd,15.78,17/05/2023
Delivery Units,Customer and Place,Clothing - Protective Clothing,1024810502,SMI INT Group Ltd,35.09,19/05/2023
Delivery Units,Customer and Place,Training,1025038902,Wallace School of Transport,300.00,25/05/2023
Delivery Units,Adults and Health,Other Transfer Payments to Soc,1014415901,Prepaid Financial Services,-737.50,23/05/2023
Delivery Units,Adults and Health,Software Licences & Support,1020031603,Access UK Ltd,"7,645.81",10/05/2023
Delivery Units,Adults and Health,Ttl IT & Comms,1024505501,Access UK Ltd,"9,067.50",05/05/2023
Delivery Units,Public Health,Health authorities - Third Par,1024731102,Central & North West London NHS FT,"11,500.00",16/05/2023
Delivery Units,Public Health,Health authorities - Third Par,1024732102,Central & North West London NHS FT,"11,500.00",16/05/2023
Delivery Units,Public Health,Health authorities - Third Par,1025002602,African Women's Care,"25,000.00",24/05/2023
Delivery Units,Public Health,Health authorities - Third Par,1024505202,Homerton University Hospital,"1,932.46",15/05/2023
Delivery Units,Public Health,Health authorities - Third Par,1024506302,Homerton University Hospital,105.32,05/05/2023
Delivery Units,Public Health,Health authorities - Third Par,1025152902,London North West Healthcare NHS Trust,"9,025.06",30/05/2023
Delivery Units,Adults and Health,Other Services,1021563903,POhWER,70.42,02/05/2023
Delivery Units,Adults and Health,Professional Services,1024511001,Recruitment Team Nine Limited,295.00,05/05/2023
Delivery Units,Adults and Health,Professional Services,1024536702,Aisa Medical Ltd,"2,644.27",09/05/2023
Delivery Units,Adults and Health,Professional Services,1024579101,Action First Assessment Ltd,130.00,10/05/2023
Delivery Units,Adults and Health,Other Transfer Payments to Soc,1024605701,Kariz ltd,197.30,11/05/2023
Delivery Units,Adults and Health,Professional Services,1024605801,Ambrosial Services Limited,"1,625.00",11/05/2023
Delivery Units,Adults and Health,Professional Services,1024651502,Recruitment Team Nine Limited,590.00,31/05/2023
Delivery Units,Adults and Health,Professional Services,1024803702,Recruitment Team Nine Limited,"1,180.00",30/05/2023
Delivery Units,Adults and Health,Professional Services,1025026401,Vidale Consulting services Limited,179.76,25/05/2023
Delivery Units,Adults and Health,Professional Services,1025026501,Vidale Consulting services Limited,181.29,24/05/2023
Delivery Units,Adults and Health,Professional Services,1025046902,Recruitment Team Nine Limited,590.00,26/05/2023
Delivery Units,Adults and Health,Professional Services,1025150602,Aisa Medical Ltd,"2,638.29",30/05/2023
Delivery Units,Adults and Health,Other Services,1022750103,D.A. Languages Ltd,36.75,15/05/2023
Delivery Units,Adults and Health,Other Services,1024057701,Thebigword Group Ltd,396.96,15/05/2023
Delivery Units,Adults and Health,Other Services,1024386102,POSTURITE LTD,254.96,04/05/2023
Delivery Units,Adults and Health,Other Services,1024509502,POSTURITE LTD,913.06,16/05/2023
Delivery Units,Adults and Health,Other Services,1024650302,POSTURITE LTD,67.49,16/05/2023
Delivery Units,Adults and Health,Transport Hire Charges,1024652402,MED-PTS Ambulance Services Ltd,600.00,15/05/2023
Delivery Units,Adults and Health,Ttl IT & Comms,1024508101,P A Consulting Services Ltd,"271,000.00",05/05/2023
Delivery Units,Adults and Health,Other Agencies - Third Party P,0090587909,AUTUMN GARDENS,"4,800.00",23/05/2023
Delivery Units,Adults and Health,Other Agencies - Third Party P,0090587910,AUTUMN GARDENS,"4,800.00",23/05/2023
Delivery Units,Adults and Health,Other Agencies - Third Party P,0090587911,AUTUMN GARDENS,"4,800.00",23/05/2023
Delivery Units,Adults and Health,Other Agencies - Third Party P,0090589713,ASPEN VILLAGES LTD,"2,873.35",25/05/2023
Delivery Units,Adults and Health,Other Agencies - Third Party P,0090590606,CARLTON COURT (TLC GROUP),"4,363.24",26/05/2023
Delivery Units,Adults and Health,Other Agencies - Third Party P,0090590661,CARLTON COURT (TLC GROUP),"6,800.00",26/05/2023
Delivery Units,Adults and Health,Other Agencies - Third Party P,0090590739,CARLTON COURT (TLC GROUP),"6,000.00",26/05/2023
Delivery Units,Adults and Health,Other Agencies - Third Party P,0090590786,CARLTON COURT (TLC GROUP),"4,363.24",26/05/2023
Delivery Units,Adults and Health,Other Agencies - Third Party P,0090590798,CARLTON COURT (TLC GROUP),"7,000.00",26/05/2023
Delivery Units,Adults and Health,Other Agencies - Third Party P,0090590799,CARLTON COURT (TLC GROUP),"7,000.00",26/05/2023
Delivery Units,Adults and Health,Other Agencies - Third Party P,0090592682,BENSLOW MANAGEMENT COMPANY LIMITED,"4,262.06",31/05/2023
Delivery Units,Adults and Health,Other Agencies - Third Party P,0090581687,AGUDAS ISRAEL HOUSING ASSCTN LTD,"2,383.71",04/05/2023
Delivery Units,Adults and Health,Other Agencies - Third Party P,0090573662,CARE UK COMMUNITY PARTNERSHIPS,"-5,726.14",12/05/2023
Delivery Units,Adults and Health,Other Agencies - Third Party P,0090580930,Stamford Nursing Centre,"4,317.86",03/05/2023
Delivery Units,Adults and Health,Other Agencies - Third Party P,0090580931,Stamford Nursing Centre,"3,900.00",03/05/2023
Delivery Units,Adults and Health,Other Agencies - Third Party P,0090581085,FERNBANK NURSING HOME.,"16,501.50",03/05/2023
Delivery Units,Adults and Health,Other Agencies - Third Party P,0090581088,FERNBANK NURSING HOME.,"4,928.40",03/05/2023
Delivery Units,Adults and Health,Other Agencies - Third Party P,0090581692,Alexandra House (Runwood Homes),"5,314.29",04/05/2023
Delivery Units,Adults and Health,Other Agencies - Third Party P,0090581836,Karuna Manor,"4,071.43",05/05/2023
Delivery Units,Adults and Health,Other Agencies - Third Party P,0090582003,Karuna Manor,"2,373.71",05/05/2023
Delivery Units,Adults and Health,Other Agencies - Third Party P,0090582004,Karuna Manor,"2,297.14",05/05/2023
Delivery Units,Adults and Health,Other Agencies - Third Party P,0090582017,Stamford Nursing Centre,"4,178.00",05/05/2023
Delivery Units,Adults and Health,Other Agencies - Third Party P,0090582104,NIGHTINGALE HOUSE,"49,666.06",09/05/2023
Delivery Units,Adults and Health,Other Agencies - Third Party P,0090583564,Victoria Care Centre,"2,940.64",12/05/2023
Delivery Units,Adults and Health,Other Agencies - Third Party P,0090584548,Barchester Healthcare,"51,314.29",15/05/2023
Delivery Units,Adults and Health,Other Agencies - Third Party P,0090584549,Barchester Healthcare,"-9,342.86",15/05/2023
Delivery Units,Adults and Health,Other Agencies - Third Party P,0090585632,WESTMINSTER HEALTH CARE LTD,"36,007.25",18/05/2023
Delivery Units,Adults and Health,Other Agencies - Third Party P,0090585633,WESTMINSTER HEALTH CARE LTD,"2,294.44",18/05/2023
Delivery Units,Adults and Health,Other Agencies - Third Party P,0090585634,WESTMINSTER HEALTH CARE LTD,"4,708.50",18/05/2023
Delivery Units,Adults and Health,Other Agencies - Third Party P,0090585635,WESTMINSTER HEALTH CARE LTD,"2,785.71",18/05/2023
Delivery Units,Adults and Health,Other Agencies - Third Party P,0090585636,WESTMINSTER HEALTH CARE LTD,"4,767.43",18/05/2023
Delivery Units,Adults and Health,Other Agencies - Third Party P,0090585637,WESTMINSTER HEALTH CARE LTD,"5,103.47",18/05/2023
Delivery Units,Adults and Health,Other Agencies - Third Party P,0090585638,WESTMINSTER HEALTH CARE LTD,"5,103.47",18/05/2023
Delivery Units,Adults and Health,Other Agencies - Third Party P,0090585641,WESTMINSTER HEALTH CARE LTD,"4,763.24",18/05/2023
Delivery Units,Adults and Health,Other Agencies - Third Party P,0090586262,CEDARS NURSING HOME,"143,928.57",19/05/2023
Delivery Units,Adults and Health,Other Agencies - Third Party P,0090586263,CEDARS NURSING HOME,"5,757.14",19/05/2023
Delivery Units,Adults and Health,Other Agencies - Third Party P,0090587914,GCH (HATFIELD) Limited,"2,324.76",23/05/2023
Delivery Units,Adults and Health,Other Agencies - Third Party P,0090589659,Oakland Primecare Ltd t/a Elsyng House,"7,865.14",25/05/2023
Delivery Units,Adults and Health,Other Agencies - Third Party P,0090589664,Candlewood House Care Home,"8,595.02",25/05/2023
Delivery Units,Adults and Health,Other Agencies - Third Party P,0090589669,Barchester Healthcare,"6,200.00",25/05/2023
Delivery Units,Adults and Health,Other Agencies - Third Party P,0090589670,Barchester Healthcare,"6,200.00",25/05/2023
Delivery Units,Adults and Health,Other Agencies - Third Party P,0090589672,Barchester Healthcare,"5,757.14",25/05/2023
Delivery Units,Adults and Health,Other Agencies - Third Party P,0090589673,Barchester Healthcare,"7,085.71",25/05/2023
Delivery Units,Adults and Health,Other Agencies - Third Party P,0090589679,WILSMERE HOUSE CARE CENTRE,"4,979.35",25/05/2023
Delivery Units,Adults and Health,Other Agencies - Third Party P,0090589692,TORRINGTON HOMES,"4,207.14",25/05/2023
Delivery Units,Adults and Health,Other Agencies - Third Party P,0090589699,FERNBANK NURSING HOME.,"17,051.55",25/05/2023
Delivery Units,Adults and Health,Other Agencies - Third Party P,0090589704,WESTMINSTER HEALTH CARE LTD,"2,370.92",25/05/2023
Delivery Units,Adults and Health,Other Agencies - Third Party P,0090589705,WESTMINSTER HEALTH CARE LTD,"2,878.57",25/05/2023
Delivery Units,Adults and Health,Other Agencies - Third Party P,0090589706,WESTMINSTER HEALTH CARE LTD,"5,273.59",25/05/2023
Delivery Units,Adults and Health,Other Agencies - Third Party P,0090589707,WESTMINSTER HEALTH CARE LTD,"5,273.59",25/05/2023
Delivery Units,Adults and Health,Other Agencies - Third Party P,0090590321,LIFESTYLE CARE PLC,"2,882.36",26/05/2023
Delivery Units,Adults and Health,Other Agencies - Third Party P,0090590324,FOUR SEASONS HEALTH CARE,"2,831.68",26/05/2023
Delivery Units,Adults and Health,Other Agencies - Third Party P,0090590326,SONESTA NURSING HOME LTD.,"2,716.68",26/05/2023
Delivery Units,Adults and Health,Other Agencies - Third Party P,0090590328,SAGE NURSING HOME,"4,400.00",26/05/2023
Delivery Units,Adults and Health,Other Agencies - Third Party P,0090590330,ASHTON LODGE CARE CENTRE,"4,378.76",26/05/2023
Delivery Units,Adults and Health,Other Agencies - Third Party P,0090590332,ELEANOR PALMER TRUST NO 2 A/C.,"4,249.43",26/05/2023
Delivery Units,Adults and Health,Other Agencies - Third Party P,0090590334,ABBEY RAVENSCROFT PARK NURSING HOME,"3,752.00",26/05/2023
Delivery Units,Adults and Health,Other Agencies - Third Party P,0090590338,JEWISH CARE,"8,682.28",26/05/2023
Delivery Units,Adults and Health,Other Agencies - Third Party P,0090590341,ASHTON LODGE CARE CENTRE,"4,003.95",26/05/2023
Delivery Units,Adults and Health,Other Agencies - Third Party P,0090590345,BUPA NURSING HOMES LTD - ARKLEY,"4,499.51",26/05/2023
Delivery Units,Adults and Health,Other Agencies - Third Party P,0090590346,APPLE TREE COURT CARE HOME,0.04,26/05/2023
Delivery Units,Adults and Health,Other Agencies - Third Party P,0090590347,APPLE TREE COURT CARE HOME,"-4,890.21",26/05/2023
Delivery Units,Adults and Health,Other Agencies - Third Party P,0090590348,FOUR SEASONS HEALTH CARE,"-2,348.10",26/05/2023
Delivery Units,Adults and Health,Other Agencies - Third Party P,0090590349,APPLE TREE COURT CARE HOME,"3,385.00",26/05/2023
Delivery Units,Adults and Health,Other Agencies - Third Party P,0090590350,BUPA CARE HOMES,"2,906.64",26/05/2023
Delivery Units,Adults and Health,Other Agencies - Third Party P,0090590355,SONESTA NURSING HOME LTD.,"2,716.68",26/05/2023
Delivery Units,Adults and Health,Other Agencies - Third Party P,0090590356,JEWISH CARE,"2,882.48",26/05/2023
Delivery Units,Adults and Health,Other Agencies - Third Party P,0090590360,APPLE TREE COURT CARE HOME,"3,865.80",26/05/2023
Delivery Units,Adults and Health,Other Agencies - Third Party P,0090590366,FOUR SEASONS HEALTH CARE,"2,831.68",26/05/2023
Delivery Units,Adults and Health,Other Agencies - Third Party P,0090590367,LIFESTYLE CARE PLC,"2,882.36",26/05/2023
Delivery Units,Adults and Health,Other Agencies - Third Party P,0090590368,JEWISH CARE,"2,882.48",26/05/2023
Delivery Units,Adults and Health,Other Agencies - Third Party P,0090590369,APPLE TREE COURT CARE HOME,"4,800.00",26/05/2023
Delivery Units,Adults and Health,Other Agencies - Third Party P,0090590371,LIFESTYLE CARE PLC,"2,882.36",26/05/2023
Delivery Units,Adults and Health,Other Agencies - Third Party P,0090590372,ASHTON LODGE CARE CENTRE,"4,399.42",26/05/2023
Delivery Units,Adults and Health,Other Agencies - Third Party P,0090590373,ASHTON LODGE CARE CENTRE,"4,764.00",26/05/2023
Delivery Units,Adults and Health,Other Agencies - Third Party P,0090590385,APPLE TREE COURT CARE HOME,"2,493.08",26/05/2023
Delivery Units,Adults and Health,Other Agencies - Third Party P,0090590387,Aarandale Manor Care Home,"1,608.43",26/05/2023
Delivery Units,Adults and Health,Other Agencies - Third Party P,0090590393,ELEANOR PALMER TRUST NO 2 A/C.,"4,200.00",26/05/2023
Delivery Units,Adults and Health,Other Agencies - Third Party P,0090590396,ASHTON LODGE CARE CENTRE,"4,022.19",26/05/2023
Delivery Units,Adults and Health,Other Agencies - Third Party P,0090590399,ELEANOR PALMER TRUST NO 2 A/C.,"4,249.43",26/05/2023
Delivery Units,Adults and Health,Other Agencies - Third Party P,0090590402,JEWISH CARE,"2,682.48",26/05/2023
Delivery Units,Adults and Health,Other Agencies - Third Party P,0090590407,APPLE TREE COURT CARE HOME,"3,764.00",26/05/2023
Delivery Units,Adults and Health,Other Agencies - Third Party P,0090590411,APPLE TREE COURT CARE HOME,"3,385.00",26/05/2023
Delivery Units,Adults and Health,Other Agencies - Third Party P,0090590412,APPLE TREE COURT CARE HOME,"3,385.00",26/05/2023
Delivery Units,Adults and Health,Other Agencies - Third Party P,0090590422,LIFESTYLE CARE PLC,"2,882.36",26/05/2023
Delivery Units,Adults and Health,Other Agencies - Third Party P,0090590424,FOUR SEASONS HEALTH CARE,"2,831.68",26/05/2023
Delivery Units,Adults and Health,Other Agencies - Third Party P,0090590432,APPLE TREE COURT CARE HOME,"3,385.00",26/05/2023
Delivery Units,Adults and Health,Other Agencies - Third Party P,0090590456,ASHTON LODGE CARE CENTRE,"3,999.43",26/05/2023
Delivery Units,Adults and Health,Other Agencies - Third Party P,0090590459,ASHTON LODGE CARE CENTRE,"4,233.73",26/05/2023
Delivery Units,Adults and Health,Other Agencies - Third Party P,0090590461,ABBEY RAVENSCROFT PARK NURSING HOME,"3,752.00",26/05/2023
Delivery Units,Adults and Health,Other Agencies - Third Party P,0090590462,JEWISH CARE,"2,882.48",26/05/2023
Delivery Units,Adults and Health,Other Agencies - Third Party P,0090590464,APPLE TREE COURT CARE HOME,"3,800.00",26/05/2023
Delivery Units,Adults and Health,Other Agencies - Third Party P,0090590466,BUPA CARE HOMES,"2,144.88",26/05/2023
Delivery Units,Adults and Health,Other Agencies - Third Party P,0090590467,LIFESTYLE CARE PLC,"8,647.08",26/05/2023
Delivery Units,Adults and Health,Other Agencies - Third Party P,0090590469,FOUR SEASONS HEALTH CARE,"2,831.68",26/05/2023
Delivery Units,Adults and Health,Other Agencies - Third Party P,0090590470,FOUR SEASONS HEALTH CARE,"2,831.68",26/05/2023
Delivery Units,Adults and Health,Other Agencies - Third Party P,0090590475,LIFESTYLE CARE PLC,"2,882.36",26/05/2023
Delivery Units,Adults and Health,Other Agencies - Third Party P,0090590478,SONESTA NURSING HOME LTD.,"2,716.68",26/05/2023
Delivery Units,Adults and Health,Other Agencies - Third Party P,0090590485,ABBEY RAVENSCROFT PARK NURSING HOME,"3,752.00",26/05/2023
Delivery Units,Adults and Health,Other Agencies - Third Party P,0090590498,JEWISH CARE,"2,882.48",26/05/2023
Delivery Units,Adults and Health,Other Agencies - Third Party P,0090590507,SONESTA NURSING HOME LTD.,"10,165.25",26/05/2023
Delivery Units,Adults and Health,Other Agencies - Third Party P,0090590510,JEWISH CARE,"2,882.48",26/05/2023
Delivery Units,Adults and Health,Other Agencies - Third Party P,0090590511,SONESTA NURSING HOME LTD.,"2,716.68",26/05/2023
Delivery Units,Adults and Health,Other Agencies - Third Party P,0090590514,APPLE TREE COURT CARE HOME,"3,385.00",26/05/2023
Delivery Units,Adults and Health,Other Agencies - Third Party P,0090590524,BUPA NURSING HOMES LTD - ARKLEY,"4,046.64",26/05/2023
Delivery Units,Adults and Health,Other Agencies - Third Party P,0090590527,JEWISH CARE,"2,882.48",26/05/2023
Delivery Units,Adults and Health,Other Agencies - Third Party P,0090590528,JEWISH CARE,"2,945.48",26/05/2023
Delivery Units,Adults and Health,Other Agencies - Third Party P,0090590533,FOUR SEASONS HEALTH CARE,"2,831.68",26/05/2023
Delivery Units,Adults and Health,Other Agencies - Third Party P,0090590535,Aarandale Manor Care Home,"6,400.00",26/05/2023
Delivery Units,Adults and Health,Other Agencies - Third Party P,0090590536,APPLE TREE COURT CARE HOME,"3,385.00",26/05/2023
Delivery Units,Adults and Health,Other Agencies - Third Party P,0090590541,LIFESTYLE CARE PLC,"2,882.36",26/05/2023
Delivery Units,Adults and Health,Other Agencies - Third Party P,0090590542,ABBEY RAVENSCROFT PARK NURSING HOME,"3,752.00",26/05/2023
Delivery Units,Adults and Health,Other Agencies - Third Party P,0090590546,ELEANOR PALMER TRUST NO 2 A/C.,"3,272.00",26/05/2023
Delivery Units,Adults and Health,Other Agencies - Third Party P,0090590547,LIFESTYLE CARE PLC,"2,882.36",26/05/2023
Delivery Units,Adults and Health,Other Agencies - Third Party P,0090590548,APPLE TREE COURT CARE HOME,"3,385.00",26/05/2023
Delivery Units,Adults and Health,Other Agencies - Third Party P,0090590549,ABBEY RAVENSCROFT PARK NURSING HOME,"3,752.00",26/05/2023
Delivery Units,Adults and Health,Other Agencies - Third Party P,0090590550,JEWISH CARE,"2,945.48",26/05/2023
Delivery Units,Adults and Health,Other Agencies - Third Party P,0090590555,ABBEY RAVENSCROFT PARK NURSING HOME,"3,752.00",26/05/2023
Delivery Units,Adults and Health,Other Agencies - Third Party P,0090590558,BUPA NURSING HOMES LTD - ARKLEY,"2,906.64",26/05/2023
Delivery Units,Adults and Health,Other Agencies - Third Party P,0090590559,ASHTON LODGE CARE CENTRE,"4,201.60",26/05/2023
Delivery Units,Adults and Health,Other Agencies - Third Party P,0090590560,ELEANOR PALMER TRUST NO 2 A/C.,"3,719.43",26/05/2023
Delivery Units,Adults and Health,Other Agencies - Third Party P,0090590567,Aarandale Manor Care Home,"4,049.60",26/05/2023
Delivery Units,Adults and Health,Other Agencies - Third Party P,0090590568,LIFESTYLE CARE PLC,"2,882.36",26/05/2023
Delivery Units,Adults and Health,Other Agencies - Third Party P,0090590569,ELEANOR PALMER TRUST NO 2 A/C.,"4,720.00",26/05/2023
Delivery Units,Adults and Health,Other Agencies - Third Party P,0090590572,JEWISH CARE,"2,945.48",26/05/2023
Delivery Units,Adults and Health,Other Agencies - Third Party P,0090590573,ELEANOR PALMER TRUST NO 2 A/C.,"4,199.43",26/05/2023
Delivery Units,Adults and Health,Other Agencies - Third Party P,0090590574,Lancam Care Services Limited,"4,147.42",26/05/2023
Delivery Units,Adults and Health,Other Agencies - Third Party P,0090590576,LIFESTYLE CARE PLC,"2,882.36",26/05/2023
Delivery Units,Adults and Health,Other Agencies - Third Party P,0090590579,SAGE NURSING HOME,"3,040.00",26/05/2023
Delivery Units,Adults and Health,Other Agencies - Third Party P,0090590580,BUPA NURSING HOMES LTD - ARKLEY,"2,906.64",26/05/2023
Delivery Units,Adults and Health,Other Agencies - Third Party P,0090590581,JEWISH CARE,"8,263.92",26/05/2023
Delivery Units,Adults and Health,Other Agencies - Third Party P,0090590582,Lancam Care Services Limited,"4,427.42",26/05/2023
Delivery Units,Adults and Health,Other Agencies - Third Party P,0090590584,FOUR SEASONS HEALTH CARE,"2,831.68",26/05/2023
Delivery Units,Adults and Health,Other Agencies - Third Party P,0090590585,Lancam Care Services Limited,"4,427.42",26/05/2023
Delivery Units,Adults and Health,Other Agencies - Third Party P,0090590586,BUPA CARE HOMES,"2,906.64",26/05/2023
Delivery Units,Adults and Health,Other Agencies - Third Party P,0090590590,JEWISH CARE,"4,676.00",26/05/2023
Delivery Units,Adults and Health,Other Agencies - Third Party P,0090590591,JEWISH CARE,"2,882.48",26/05/2023
Delivery Units,Adults and Health,Other Agencies - Third Party P,0090590592,APPLE TREE COURT CARE HOME,"21,604.68",26/05/2023
Delivery Units,Adults and Health,Other Agencies - Third Party P,0090590594,New Century Care (Finchley),"4,400.00",26/05/2023
Delivery Units,Adults and Health,Other Agencies - Third Party P,0090590595,BUPA CARE HOMES,"2,906.64",26/05/2023
Delivery Units,Adults and Health,Other Agencies - Third Party P,0090590596,ABBEY RAVENSCROFT PARK NURSING HOME,"4,400.00",26/05/2023
Delivery Units,Adults and Health,Other Agencies - Third Party P,0090590597,APPLE TREE COURT CARE HOME,"3,753.20",26/05/2023
Delivery Units,Adults and Health,Other Agencies - Third Party P,0090590599,FOUR SEASONS HEALTH CARE,"2,831.68",26/05/2023
Delivery Units,Adults and Health,Other Agencies - Third Party P,0090590600,LIFESTYLE CARE PLC,"2,882.36",26/05/2023
Delivery Units,Adults and Health,Other Agencies - Third Party P,0090590601,ABBEY RAVENSCROFT PARK NURSING HOME,"4,800.00",26/05/2023
Delivery Units,Adults and Health,Other Agencies - Third Party P,0090590602,BUPA NURSING HOMES LTD - ARKLEY,"3,400.00",26/05/2023
Delivery Units,Adults and Health,Other Agencies - Third Party P,0090590608,APPLE TREE COURT CARE HOME,"3,865.80",26/05/2023
Delivery Units,Adults and Health,Other Agencies - Third Party P,0090590609,ABBEY RAVENSCROFT PARK NURSING HOME,"3,752.00",26/05/2023
Delivery Units,Adults and Health,Other Agencies - Third Party P,0090590610,LIFESTYLE CARE PLC,"2,882.36",26/05/2023
Delivery Units,Adults and Health,Other Agencies - Third Party P,0090590614,ASHTON LODGE CARE CENTRE,"4,201.60",26/05/2023
Delivery Units,Adults and Health,Other Agencies - Third Party P,0090590615,ABBEY RAVENSCROFT PARK NURSING HOME,"3,752.00",26/05/2023
Delivery Units,Adults and Health,Other Agencies - Third Party P,0090590616,APPLE TREE COURT CARE HOME,"3,800.00",26/05/2023
Delivery Units,Adults and Health,Other Agencies - Third Party P,0090590622,JEWISH CARE,"2,882.48",26/05/2023
Delivery Units,Adults and Health,Other Agencies - Third Party P,0090590624,Aarandale Manor Care Home,"4,049.60",26/05/2023
Delivery Units,Adults and Health,Other Agencies - Third Party P,0090590628,ASHTON LODGE CARE CENTRE,"3,999.43",26/05/2023
Delivery Units,Adults and Health,Other Agencies - Third Party P,0090590633,Lancam Care Services Limited,"4,347.43",26/05/2023
Delivery Units,Adults and Health,Other Agencies - Third Party P,0090590635,SAGE NURSING HOME,"4,952.00",26/05/2023
Delivery Units,Adults and Health,Other Agencies - Third Party P,0090590638,ELEANOR PALMER TRUST NO 2 A/C.,"4,199.43",26/05/2023
Delivery Units,Adults and Health,Other Agencies - Third Party P,0090590640,JEWISH CARE,"2,945.48",26/05/2023
Delivery Units,Adults and Health,Other Agencies - Third Party P,0090590647,LIFESTYLE CARE PLC,"2,882.36",26/05/2023
Delivery Units,Adults and Health,Other Agencies - Third Party P,0090590648,SONESTA NURSING HOME LTD.,"2,716.68",26/05/2023
Delivery Units,Adults and Health,Other Agencies - Third Party P,0090590649,ASHTON LODGE CARE CENTRE,"4,097.43",26/05/2023
Delivery Units,Adults and Health,Other Agencies - Third Party P,0090590650,ABBEY RAVENSCROFT PARK NURSING HOME,"4,200.00",26/05/2023
Delivery Units,Adults and Health,Other Agencies - Third Party P,0090590652,FOUR SEASONS HEALTH CARE,"21,689.13",26/05/2023
Delivery Units,Adults and Health,Other Agencies - Third Party P,0090590654,FOUR SEASONS HEALTH CARE,"2,831.68",26/05/2023
Delivery Units,Adults and Health,Other Agencies - Third Party P,0090590655,ABBEY RAVENSCROFT PARK NURSING HOME,"4,800.00",26/05/2023
Delivery Units,Adults and Health,Other Agencies - Third Party P,0090590656,ELEANOR PALMER TRUST NO 2 A/C.,"4,247.43",26/05/2023
Delivery Units,Adults and Health,Other Agencies - Third Party P,0090590663,ELM PARK LODGE,"4,593.20",26/05/2023
Delivery Units,Adults and Health,Other Agencies - Third Party P,0090590664,New Century Care (Finchley),"5,000.00",26/05/2023
Delivery Units,Adults and Health,Other Agencies - Third Party P,0090590666,APPLE TREE COURT CARE HOME,"4,049.60",26/05/2023
Delivery Units,Adults and Health,Other Agencies - Third Party P,0090590671,JEWISH CARE,"10,721.48",26/05/2023
Delivery Units,Adults and Health,Other Agencies - Third Party P,0090590675,BUPA CARE HOMES,"2,906.64",26/05/2023
Delivery Units,Adults and Health,Other Agencies - Third Party P,0090590678,SONESTA NURSING HOME LTD.,"2,716.68",26/05/2023
Delivery Units,Adults and Health,Other Agencies - Third Party P,0090590679,APPLE TREE COURT CARE HOME,"4,498.60",26/05/2023
Delivery Units,Adults and Health,Other Agencies - Third Party P,0090590680,Aarandale Manor Care Home,"4,049.60",26/05/2023
Delivery Units,Adults and Health,Other Agencies - Third Party P,0090590681,ABBEY RAVENSCROFT PARK NURSING HOME,"4,552.00",26/05/2023
Delivery Units,Adults and Health,Other Agencies - Third Party P,0090590684,JEWISH CARE,"2,882.48",26/05/2023
Delivery Units,Adults and Health,Other Agencies - Third Party P,0090590686,APPLE TREE COURT CARE HOME,"-7,522.85",26/05/2023
Delivery Units,Adults and Health,Other Agencies - Third Party P,0090590690,BUPA CARE HOMES,"2,906.64",26/05/2023
Delivery Units,Adults and Health,Other Agencies - Third Party P,0090590691,APPLE TREE COURT CARE HOME,"4,400.00",26/05/2023
Delivery Units,Adults and Health,Other Agencies - Third Party P,0090590692,BUPA CARE HOMES,"2,906.64",26/05/2023
Delivery Units,Adults and Health,Other Agencies - Third Party P,0090590693,BUPA NURSING HOMES LTD - ARKLEY,"3,800.00",26/05/2023
Delivery Units,Adults and Health,Other Agencies - Third Party P,0090590694,ASHTON LODGE CARE CENTRE,"4,249.60",26/05/2023
Delivery Units,Adults and Health,Other Agencies - Third Party P,0090590702,SONESTA NURSING HOME LTD.,"2,716.68",26/05/2023
Delivery Units,Adults and Health,Other Agencies - Third Party P,0090590704,APPLE TREE COURT CARE HOME,"5,400.00",26/05/2023
Delivery Units,Adults and Health,Other Agencies - Third Party P,0090590705,New Century Care (Finchley),"4,800.00",26/05/2023
Delivery Units,Adults and Health,Other Agencies - Third Party P,0090590706,ASHTON LODGE CARE CENTRE,"4,239.39",26/05/2023
Delivery Units,Adults and Health,Other Agencies - Third Party P,0090590708,FOUR SEASONS HEALTH CARE,"3,468.00",26/05/2023
Delivery Units,Adults and Health,Other Agencies - Third Party P,0090590709,BUPA CARE HOMES,"4,000.00",26/05/2023
Delivery Units,Adults and Health,Other Agencies - Third Party P,0090590710,FOUR SEASONS HEALTH CARE,"2,831.68",26/05/2023
Delivery Units,Adults and Health,Other Agencies - Third Party P,0090590711,BUPA CARE HOMES,"2,906.64",26/05/2023
Delivery Units,Adults and Health,Other Agencies - Third Party P,0090590712,APPLE TREE COURT CARE HOME,"3,865.80",26/05/2023
Delivery Units,Adults and Health,Other Agencies - Third Party P,0090590715,ABBEY RAVENSCROFT PARK NURSING HOME,"4,000.00",26/05/2023
Delivery Units,Adults and Health,Other Agencies - Third Party P,0090590716,New Century Care (Finchley),"4,800.00",26/05/2023
Delivery Units,Adults and Health,Other Agencies - Third Party P,0090590717,HENRY NIHILL HOUSE,628.57,26/05/2023
Delivery Units,Adults and Health,Other Agencies - Third Party P,0090590718,ABBEY RAVENSCROFT PARK NURSING HOME,"5,710.22",26/05/2023
Delivery Units,Adults and Health,Other Agencies - Third Party P,0090590720,ASHTON LODGE CARE CENTRE,"12,455.90",26/05/2023
Delivery Units,Adults and Health,Other Agencies - Third Party P,0090590721,APPLE TREE COURT CARE HOME,"4,763.24",26/05/2023
Delivery Units,Adults and Health,Other Agencies - Third Party P,0090590723,BUPA NURSING HOMES LTD - ARKLEY,"3,900.00",26/05/2023
Delivery Units,Adults and Health,Other Agencies - Third Party P,0090590724,BUPA CARE HOMES,"4,000.00",26/05/2023
Delivery Units,Adults and Health,Other Agencies - Third Party P,0090590725,SAGE NURSING HOME,"4,400.00",26/05/2023
Delivery Units,Adults and Health,Other Agencies - Third Party P,0090590729,JEWISH CARE,"16,383.71",26/05/2023
Delivery Units,Adults and Health,Other Agencies - Third Party P,0090590730,LIFESTYLE CARE PLC,"14,634.74",26/05/2023
Delivery Units,Adults and Health,Other Agencies - Third Party P,0090590731,ABBEY RAVENSCROFT PARK NURSING HOME,"18,171.43",26/05/2023
Delivery Units,Adults and Health,Other Agencies - Third Party P,0090590734,ABBEY RAVENSCROFT PARK NURSING HOME,"5,273.21",26/05/2023
Delivery Units,Adults and Health,Other Agencies - Third Party P,0090590737,Aarandale Manor Care Home,"4,049.60",26/05/2023
Delivery Units,Adults and Health,Other Agencies - Third Party P,0090590740,BUPA NURSING HOMES LTD - ARKLEY,"2,906.64",26/05/2023
Delivery Units,Adults and Health,Other Agencies - Third Party P,0090590744,SAGE NURSING HOME,"4,400.00",26/05/2023
Delivery Units,Adults and Health,Other Agencies - Third Party P,0090590754,New Century Care (Finchley),"4,800.00",26/05/2023
Delivery Units,Adults and Health,Other Agencies - Third Party P,0090590758,ABBEY RAVENSCROFT PARK NURSING HOME,"4,800.00",26/05/2023
Delivery Units,Adults and Health,Other Agencies - Third Party P,0090590762,JEWISH CARE,"2,946.68",26/05/2023
Delivery Units,Adults and Health,Other Agencies - Third Party P,0090590764,ELEANOR PALMER TRUST NO 2 A/C.,"4,247.43",26/05/2023
Delivery Units,Adults and Health,Other Agencies - Third Party P,0090590766,HENRY NIHILL HOUSE,"3,600.00",26/05/2023
Delivery Units,Adults and Health,Other Agencies - Third Party P,0090590767,SONESTA NURSING HOME LTD.,"6,000.00",26/05/2023
Delivery Units,Adults and Health,Other Agencies - Third Party P,0090590768,BUPA CARE HOMES,"2,906.64",26/05/2023
Delivery Units,Adults and Health,Other Agencies - Third Party P,0090590769,HENRY NIHILL HOUSE,"3,600.00",26/05/2023
Delivery Units,Adults and Health,Other Agencies - Third Party P,0090590770,HENRY NIHILL HOUSE,"3,600.00",26/05/2023
Delivery Units,Adults and Health,Other Agencies - Third Party P,0090590771,BUPA CARE HOMES,"12,581.53",26/05/2023
Delivery Units,Adults and Health,Other Agencies - Third Party P,0090590772,APPLE TREE COURT CARE HOME,"1,430.95",26/05/2023
Delivery Units,Adults and Health,Other Agencies - Third Party P,0090590779,Aarandale Manor Care Home,"5,200.00",26/05/2023
Delivery Units,Adults and Health,Other Agencies - Third Party P,0090590780,BUPA NURSING HOMES LTD - ARKLEY,"19,414.29",26/05/2023
Delivery Units,Adults and Health,Other Agencies - Third Party P,0090590792,BUPA NURSING HOMES LTD - ARKLEY,"3,900.00",26/05/2023
Delivery Units,Adults and Health,Other Agencies - Third Party P,0090590793,New Century Care (Finchley),"9,704.00",26/05/2023
Delivery Units,Adults and Health,Other Agencies - Third Party P,0090590794,JEWISH CARE,"2,882.48",26/05/2023
Delivery Units,Adults and Health,Other Agencies - Third Party P,0090590795,JEWISH CARE,"2,945.48",26/05/2023
Delivery Units,Adults and Health,Other Agencies - Third Party P,0090590796,SONESTA NURSING HOME LTD.,"3,000.00",26/05/2023
Delivery Units,Adults and Health,Other Agencies - Third Party P,0090590797,FOUR SEASONS HEALTH CARE,"4,400.00",26/05/2023
Delivery Units,Adults and Health,Other Agencies - Third Party P,0090590800,APPLE TREE COURT CARE HOME,514.29,26/05/2023
Delivery Units,Adults and Health,Other Agencies - Third Party P,0090590801,LIFESTYLE CARE PLC,"30,760.75",26/05/2023
Delivery Units,Adults and Health,Other Agencies - Third Party P,0090590803,ABBEY RAVENSCROFT PARK NURSING HOME,"10,685.71",26/05/2023
Delivery Units,Adults and Health,Other Agencies - Third Party P,0090590806,Aarandale Manor Care Home,"11,889.72",26/05/2023
Delivery Units,Adults and Health,Other Agencies - Third Party P,0090590807,ABBEY RAVENSCROFT PARK NURSING HOME,"5,551.78",26/05/2023
Delivery Units,Adults and Health,Other Agencies - Third Party P,0090590812,ABBEY RAVENSCROFT PARK NURSING HOME,-29.89,26/05/2023
Delivery Units,Adults and Health,Other Agencies - Third Party P,0090590813,ABBEY RAVENSCROFT PARK NURSING HOME,-29.89,26/05/2023
Delivery Units,Adults and Health,Other Agencies - Third Party P,0090590817,ABBEY RAVENSCROFT PARK NURSING HOME,"7,371.43",26/05/2023
Delivery Units,Adults and Health,Other Agencies - Third Party P,0090590822,ABBEY RAVENSCROFT PARK NURSING HOME,"9,600.00",26/05/2023
Delivery Units,Adults and Health,Other Agencies - Third Party P,0090590829,St Matthews Limited,"3,843.69",26/05/2023
Delivery Units,Adults and Health,Other Agencies - Third Party P,0090590831,MEERA NURSING HOME LIMITED,"3,985.71",26/05/2023
Delivery Units,Adults and Health,Other Agencies - Third Party P,0090590837,Karuna Manor,"4,207.14",26/05/2023
Delivery Units,Adults and Health,Other Agencies - Third Party P,0090590838,Chalfont Lodge (Barchester Healthcare Ho,"6,159.30",26/05/2023
Delivery Units,Adults and Health,Other Agencies - Third Party P,0090590839,Topcare Ltd,"5,314.29",26/05/2023
Delivery Units,Adults and Health,Other Agencies - Third Party P,0090590843,FERNBANK NURSING HOME.,"5,092.68",26/05/2023
Delivery Units,Adults and Health,Other Agencies - Third Party P,0090590846,WESTMINSTER HEALTH CARE LTD,"4,865.45",26/05/2023
Delivery Units,Adults and Health,Other Agencies - Third Party P,0090590847,WESTMINSTER HEALTH CARE LTD,"4,926.34",26/05/2023
Delivery Units,Adults and Health,Other Agencies - Third Party P,0090590848,DMP Healthcare (Ogilvy) Ltd,"4,207.14",26/05/2023
Delivery Units,Adults and Health,Other Agencies - Third Party P,0090590856,Milford Lodge Residential Home,"4,207.14",26/05/2023
Delivery Units,Adults and Health,Other Agencies - Third Party P,0090590857,Alexandra House (Runwood Homes),"5,314.29",26/05/2023
Delivery Units,Adults and Health,Other Agencies - Third Party P,0090592669,HUSKARDS NEW CARE LTD,"2,445.59",31/05/2023
Delivery Units,Adults and Health,Other Agencies - Third Party P,0090592673,COOPERSCROFT CARE HOME,"6,642.86",31/05/2023
Delivery Units,Adults and Health,Other Agencies - Third Party P,0090592700,Candlewood House Care Home,"9,300.00",31/05/2023
Delivery Units,Adults and Health,Other Agencies - Third Party P,0090584933,TENTERDEN HOUSE,-162.85,25/05/2023
Delivery Units,Adults and Health,Other Agencies - Third Party P,0090587915,GCH (North London) t/a The Tudors,"2,346.00",23/05/2023
Delivery Units,Adults and Health,Other Agencies - Third Party P,0090587922,FINBOND LIMITED,"3,428.57",23/05/2023
Delivery Units,Adults and Health,Other Agencies - Third Party P,0090589334,SYDMAR LODGE,"1,157.14",24/05/2023
Delivery Units,Adults and Health,Other Agencies - Third Party P,0090589335,SYDMAR LODGE,"5,978.57",24/05/2023
Delivery Units,Adults and Health,Other Agencies - Third Party P,0090589336,SYDMAR LODGE,"5,785.71",24/05/2023
Delivery Units,Adults and Health,Other Agencies - Third Party P,0090589684,SYDMAR LODGE,"5,535.71",25/05/2023
Delivery Units,Adults and Health,Other Agencies - Third Party P,0090589685,SYDMAR LODGE,"4,353.29",25/05/2023
Delivery Units,Adults and Health,Other Agencies - Third Party P,0090589687,SYDMAR LODGE,"5,535.71",25/05/2023
Delivery Units,Adults and Health,Other Agencies - Third Party P,0090589688,SYDMAR LODGE,"5,535.71",25/05/2023
Delivery Units,Adults and Health,Other Agencies - Third Party P,0090589690,SYDMAR LODGE,"35,044.29",25/05/2023
Delivery Units,Adults and Health,Other Agencies - Third Party P,0090589695,TENTERDEN HOUSE,"4,280.26",25/05/2023
Delivery Units,Adults and Health,Other Agencies - Third Party P,0090589733,Achieve Together Limited,"11,001.32",25/05/2023
Delivery Units,Adults and Health,Other Agencies - Third Party P,0090589734,Achieve Together Limited,"3,166.64",25/05/2023
Delivery Units,Adults and Health,Other Agencies - Third Party P,0090590370,CATHERINE LODGE,"3,800.00",26/05/2023
Delivery Units,Adults and Health,Other Agencies - Third Party P,0090590410,ROSEACRES CARE HOME LIMITED,"3,400.00",26/05/2023
Delivery Units,Adults and Health,Other Agencies - Third Party P,0090590449,ROSEACRES CARE HOME LIMITED,"3,120.00",26/05/2023
Delivery Units,Adults and Health,Other Agencies - Third Party P,0090590474,CATHERINE LODGE,"3,580.00",26/05/2023
Delivery Units,Adults and Health,Other Agencies - Third Party P,0090590476,CARLTON COURT (TLC GROUP),"5,800.00",26/05/2023
Delivery Units,Adults and Health,Other Agencies - Third Party P,0090590482,CARLTON COURT (TLC GROUP),"5,400.00",26/05/2023
Delivery Units,Adults and Health,Other Agencies - Third Party P,0090590496,CATHERINE LODGE,"3,000.00",26/05/2023
Delivery Units,Adults and Health,Other Agencies - Third Party P,0090590499,CARLTON COURT (TLC GROUP),"6,376.16",26/05/2023
Delivery Units,Adults and Health,Other Agencies - Third Party P,0090590503,ROSEACRES CARE HOME LIMITED,"3,120.00",26/05/2023
Delivery Units,Adults and Health,Other Agencies - Third Party P,0090590530,ROSEACRES CARE HOME LIMITED,"3,400.00",26/05/2023
Delivery Units,Adults and Health,Other Agencies - Third Party P,0090590537,CATHERINE LODGE,"3,200.00",26/05/2023
Delivery Units,Adults and Health,Other Agencies - Third Party P,0090590545,ROSEACRES CARE HOME LIMITED,"2,900.00",26/05/2023
Delivery Units,Adults and Health,Other Agencies - Third Party P,0090590562,ROSEACRES CARE HOME LIMITED,"3,200.00",26/05/2023
Delivery Units,Adults and Health,Other Agencies - Third Party P,0090590587,ROSEACRES CARE HOME LIMITED,"3,400.00",26/05/2023
Delivery Units,Adults and Health,Other Agencies - Third Party P,0090590607,ROSEACRES CARE HOME LIMITED,"3,200.00",26/05/2023
Delivery Units,Adults and Health,Other Agencies - Third Party P,0090590620,CATHERINE LODGE,"3,800.00",26/05/2023
Delivery Units,Adults and Health,Other Agencies - Third Party P,0090590626,ROSEACRES CARE HOME LIMITED,"2,900.00",26/05/2023
Delivery Units,Adults and Health,Other Agencies - Third Party P,0090590643,ROSEACRES CARE HOME LIMITED,"3,400.00",26/05/2023
Delivery Units,Adults and Health,Other Agencies - Third Party P,0090590651,CATHERINE LODGE,"3,800.00",26/05/2023
Delivery Units,Adults and Health,Other Agencies - Third Party P,0090590672,CATHERINE LODGE,"3,200.00",26/05/2023
Delivery Units,Adults and Health,Other Agencies - Third Party P,0090590685,ROSEACRES CARE HOME LIMITED,-500.00,26/05/2023
Delivery Units,Adults and Health,Other Agencies - Third Party P,0090590697,CATHERINE LODGE,"3,800.00",26/05/2023
Delivery Units,Adults and Health,Other Agencies - Third Party P,0090590713,CARLTON COURT (TLC GROUP),"5,200.00",26/05/2023
Delivery Units,Adults and Health,Other Agencies - Third Party P,0090590732,CATHERINE LODGE,"3,935.71",26/05/2023
Delivery Units,Adults and Health,Other Agencies - Third Party P,0090590733,CATHERINE LODGE,"3,935.71",26/05/2023
Delivery Units,Adults and Health,Other Agencies - Third Party P,0090590743,ROSEACRES CARE HOME LIMITED,"3,400.00",26/05/2023
Delivery Units,Adults and Health,Other Agencies - Third Party P,0090590752,ROSEACRES CARE HOME LIMITED,"3,600.00",26/05/2023
Delivery Units,Adults and Health,Other Agencies - Third Party P,0090590755,ROSEACRES CARE HOME LIMITED,"3,800.00",26/05/2023
Delivery Units,Adults and Health,Other Agencies - Third Party P,0090590756,ROSEACRES CARE HOME LIMITED,"3,800.00",26/05/2023
Delivery Units,Adults and Health,Other Agencies - Third Party P,0090590760,CATHERINE LODGE,"3,800.00",26/05/2023
Delivery Units,Adults and Health,Other Agencies - Third Party P,0090590761,CARLTON COURT (TLC GROUP),"6,200.00",26/05/2023
Delivery Units,Adults and Health,Other Agencies - Third Party P,0090590790,ROSEACRES CARE HOME LIMITED,"2,900.00",26/05/2023
Delivery Units,Adults and Health,Other Agencies - Third Party P,0090590805,CATHERINE LODGE,"3,800.00",26/05/2023
Delivery Units,Adults and Health,Other Agencies - Third Party P,0090591577,Achieve Together Limited,"5,706.40",26/05/2023
Delivery Units,Adults and Health,Other Agencies - Third Party P,0090592098,TBG Mosaic,"2,676.00",31/05/2023
Delivery Units,Adults and Health,Other Agencies - Third Party P,0090592099,TBG Mosaic,"2,676.00",31/05/2023
Delivery Units,Adults and Health,Other Agencies - Third Party P,0090592101,TBG Mosaic,"2,540.00",31/05/2023
Delivery Units,Adults and Health,Other Agencies - Third Party P,0090592103,TBG Mosaic,"2,540.00",31/05/2023
Delivery Units,Adults and Health,Other Agencies - Third Party P,0090592104,TBG Mosaic,"2,540.00",31/05/2023
Delivery Units,Adults and Health,Other Agencies - Third Party P,0090592105,TBG Mosaic,"2,540.00",31/05/2023
Delivery Units,Adults and Health,Other Agencies - Third Party P,0090592106,TBG Mosaic,"4,430.40",31/05/2023
Delivery Units,Adults and Health,Other Agencies - Third Party P,0090592107,TBG Mosaic,"2,676.00",31/05/2023
Delivery Units,Adults and Health,Other Agencies - Third Party P,0090592108,TBG Mosaic,"2,540.00",31/05/2023
Delivery Units,Adults and Health,Other Agencies - Third Party P,0090592109,TBG Mosaic,"2,676.00",31/05/2023
Delivery Units,Adults and Health,Other Agencies - Third Party P,0090592110,TBG Mosaic,"2,540.00",31/05/2023
Delivery Units,Adults and Health,Other Agencies - Third Party P,0090592111,TBG Mosaic,"2,676.00",31/05/2023
Delivery Units,Adults and Health,Other Agencies - Third Party P,0090592112,TBG Mosaic,"2,540.00",31/05/2023
Delivery Units,Adults and Health,Other Agencies - Third Party P,0090592113,TBG Mosaic,"2,676.00",31/05/2023
Delivery Units,Adults and Health,Other Agencies - Third Party P,0090592114,TBG Mosaic,"2,857.92",31/05/2023
Delivery Units,Adults and Health,Other Agencies - Third Party P,0090592115,TBG Mosaic,"2,540.00",31/05/2023
Delivery Units,Adults and Health,Other Agencies - Third Party P,0090592116,TBG Mosaic,"2,676.00",31/05/2023
Delivery Units,Adults and Health,Other Agencies - Third Party P,0090592117,TBG Mosaic,"2,540.00",31/05/2023
Delivery Units,Adults and Health,Other Agencies - Third Party P,0090592118,TBG Mosaic,"2,676.00",31/05/2023
Delivery Units,Adults and Health,Other Agencies - Third Party P,0090592119,TBG Mosaic,95.57,31/05/2023
Delivery Units,Adults and Health,Other Agencies - Third Party P,0090592120,TBG Mosaic,"2,676.00",31/05/2023
Delivery Units,Adults and Health,Other Agencies - Third Party P,0090592121,TBG Mosaic,"2,676.00",31/05/2023
Delivery Units,Adults and Health,Other Agencies - Third Party P,0090592122,TBG Mosaic,"2,540.00",31/05/2023
Delivery Units,Adults and Health,Other Agencies - Third Party P,0090592123,TBG Mosaic,"23,589.29",31/05/2023
Delivery Units,Adults and Health,Other Agencies - Third Party P,0090592124,TBG Mosaic,"4,612.00",31/05/2023
Delivery Units,Adults and Health,Other Agencies - Third Party P,0090592125,TBG Mosaic,"14,530.08",31/05/2023
Delivery Units,Adults and Health,Other Agencies - Third Party P,0090592126,TBG Mosaic,"9,673.20",31/05/2023
Delivery Units,Adults and Health,Other Agencies - Third Party P,0090592127,TBG Mosaic,"2,676.00",31/05/2023
Delivery Units,Adults and Health,Other Agencies - Third Party P,0090592128,TBG Mosaic,"2,540.00",31/05/2023
Delivery Units,Adults and Health,Other Agencies - Third Party P,0090592129,TBG Mosaic,"2,540.00",31/05/2023
Delivery Units,Adults and Health,Other Agencies - Third Party P,0090592130,TBG Mosaic,"3,000.00",31/05/2023
Delivery Units,Adults and Health,Other Agencies - Third Party P,0090592131,TBG Mosaic,"2,540.00",31/05/2023
Delivery Units,Adults and Health,Other Agencies - Third Party P,0090592132,TBG Mosaic,"2,676.00",31/05/2023
Delivery Units,Adults and Health,Other Agencies - Third Party P,0090592133,TBG Mosaic,"2,676.00",31/05/2023
Delivery Units,Adults and Health,Other Agencies - Third Party P,0090592134,TBG Mosaic,"2,540.00",31/05/2023
Delivery Units,Adults and Health,Other Agencies - Third Party P,0090592135,TBG Mosaic,"2,676.00",31/05/2023
Delivery Units,Adults and Health,Other Agencies - Third Party P,0090592136,TBG Mosaic,"2,676.00",31/05/2023
Delivery Units,Adults and Health,Other Agencies - Third Party P,0090592137,TBG Mosaic,"2,540.00",31/05/2023
Delivery Units,Adults and Health,Other Agencies - Third Party P,0090592138,TBG Mosaic,"2,540.00",31/05/2023
Delivery Units,Adults and Health,Other Agencies - Third Party P,0090592139,TBG Mosaic,"2,540.00",31/05/2023
Delivery Units,Adults and Health,Other Agencies - Third Party P,0090592140,TBG Mosaic,"2,540.00",31/05/2023
Delivery Units,Adults and Health,Other Agencies - Third Party P,0090592142,TBG Mosaic,"2,676.00",31/05/2023
Delivery Units,Adults and Health,Other Agencies - Third Party P,0090592143,TBG Mosaic,"15,671.02",31/05/2023
Delivery Units,Adults and Health,Other Agencies - Third Party P,0090592144,TBG Mosaic,"2,676.00",31/05/2023
Delivery Units,Adults and Health,Other Agencies - Third Party P,0090592145,TBG Mosaic,"2,540.00",31/05/2023
Delivery Units,Adults and Health,Other Agencies - Third Party P,0090592146,TBG Mosaic,"2,540.00",31/05/2023
Delivery Units,Adults and Health,Other Agencies - Third Party P,0090592147,TBG Mosaic,"2,540.00",31/05/2023
Delivery Units,Adults and Health,Other Agencies - Third Party P,0090592148,TBG Mosaic,"2,540.00",31/05/2023
Delivery Units,Adults and Health,Other Agencies - Third Party P,0090590588,WOODFIELD HOUSE,"14,081.60",26/05/2023
Delivery Units,Adults and Health,Other Agencies - Third Party P,0090581689,AGUDAS ISRAEL HOUSING ASSCTN LTD,"3,857.14",04/05/2023
Delivery Units,Adults and Health,Other Agencies - Third Party P,0090581083,Alexandra House (Runwood Homes),"2,680.71",03/05/2023
Delivery Units,Adults and Health,Other Agencies - Third Party P,0090581089,B & M CARE,"1,050.00",03/05/2023
Delivery Units,Adults and Health,Other Agencies - Third Party P,0090581090,B & M CARE,"1,890.00",03/05/2023
Delivery Units,Adults and Health,Other Agencies - Third Party P,0090581835,THE CHRISTIAN CARE TRUST,"4,178.40",05/05/2023
Delivery Units,Adults and Health,Other Agencies - Third Party P,0090581837,Westbourne Care Home,"7,918.29",05/05/2023
Delivery Units,Adults and Health,Other Agencies - Third Party P,0090581838,Westbourne Care Home,"7,152.00",05/05/2023
Delivery Units,Adults and Health,Other Agencies - Third Party P,0090581839,Westbourne Care Home,"7,918.29",05/05/2023
Delivery Units,Adults and Health,Other Agencies - Third Party P,0090581840,Westbourne Care Home,"7,662.86",05/05/2023
Delivery Units,Adults and Health,Other Agencies - Third Party P,0090581841,Westbourne Care Home,"1,512.00",05/05/2023
Delivery Units,Adults and Health,Other Agencies - Third Party P,0090582655,QUANTUM CARE LIMITED,"4,071.43",10/05/2023
Delivery Units,Adults and Health,Other Agencies - Third Party P,0090582658,Brownlow Enterprises Ltd,"3,707.14",10/05/2023
Delivery Units,Adults and Health,Other Agencies - Third Party P,0090582659,Brownlow Enterprises Ltd,"3,441.43",10/05/2023
Delivery Units,Adults and Health,Other Agencies - Third Party P,0090582661,Brownlow Enterprises Ltd,"3,441.43",10/05/2023
Delivery Units,Adults and Health,Other Agencies - Third Party P,0090582662,Brownlow Enterprises Ltd,"3,441.43",10/05/2023
Delivery Units,Adults and Health,Other Agencies - Third Party P,0090582663,Brownlow Enterprises Ltd,"3,462.86",10/05/2023
Delivery Units,Adults and Health,Other Agencies - Third Party P,0090582665,Brownlow Enterprises Ltd,"3,707.14",10/05/2023
Delivery Units,Adults and Health,Other Agencies - Third Party P,0090582666,Brownlow Enterprises Ltd,"3,462.86",10/05/2023
Delivery Units,Adults and Health,Other Agencies - Third Party P,0090582667,Brownlow Enterprises Ltd,"3,707.14",10/05/2023
Delivery Units,Adults and Health,Other Agencies - Third Party P,0090582670,NIGHTINGALE HOUSE,"3,428.57",10/05/2023
Delivery Units,Adults and Health,Other Agencies - Third Party P,0090582672,NIGHTINGALE HOUSE,"3,471.43",10/05/2023
Delivery Units,Adults and Health,Other Agencies - Third Party P,0090583549,EASTSIDE HOUSE CARE HOME,"3,800.00",12/05/2023
Delivery Units,Adults and Health,Other Agencies - Third Party P,0090583552,EASTSIDE HOUSE CARE HOME,"3,720.00",12/05/2023
Delivery Units,Adults and Health,Other Agencies - Third Party P,0090583553,EASTSIDE HOUSE CARE HOME,"3,800.00",12/05/2023
Delivery Units,Adults and Health,Other Agencies - Third Party P,0090583554,EASTSIDE HOUSE CARE HOME,"3,800.00",12/05/2023
Delivery Units,Adults and Health,Other Agencies - Third Party P,0090583555,EASTSIDE HOUSE CARE HOME,"3,800.00",12/05/2023
Delivery Units,Adults and Health,Other Agencies - Third Party P,0090583561,Agecare MG1 Ltd,"4,714.29",12/05/2023
Delivery Units,Adults and Health,Other Agencies - Third Party P,0090583568,Brownlow Enterprises Ltd,"3,334.71",12/05/2023
Delivery Units,Adults and Health,Other Agencies - Third Party P,0090583569,Brownlow Enterprises Ltd,"3,830.71",12/05/2023
Delivery Units,Adults and Health,Other Agencies - Third Party P,0090583570,Brownlow Enterprises Ltd,"3,830.71",12/05/2023
Delivery Units,Adults and Health,Other Agencies - Third Party P,0090583572,Brownlow Enterprises Ltd,"3,578.29",12/05/2023
Delivery Units,Adults and Health,Other Agencies - Third Party P,0090586261,Teamcare Ltd t/a Highcliffe Residential,"10,414.28",19/05/2023
Delivery Units,Adults and Health,Other Agencies - Third Party P,0090587904,Haling Park Care Home,"3,800.00",23/05/2023
Delivery Units,Adults and Health,Other Agencies - Third Party P,0090587905,THE WOODSIDE HOME,"2,540.00",23/05/2023
Delivery Units,Adults and Health,Other Agencies - Third Party P,0090587906,THE WOODSIDE HOME,"2,676.00",23/05/2023
Delivery Units,Adults and Health,Other Agencies - Third Party P,0090587907,THE WOODSIDE HOME,"2,540.00",23/05/2023
Delivery Units,Adults and Health,Other Agencies - Third Party P,0090587919,Boughton Lodge Care Home,"3,100.00",23/05/2023
Delivery Units,Adults and Health,Other Agencies - Third Party P,0090587920,THE WOODSIDE HOME,"2,540.00",23/05/2023
Delivery Units,Adults and Health,Other Agencies - Third Party P,0090587921,THE WOODSIDE HOME,"-1,632.86",23/05/2023
Delivery Units,Adults and Health,Other Agencies - Third Party P,0090587923,Haling Park Care Home,"3,800.00",23/05/2023
Delivery Units,Adults and Health,Other Agencies - Third Party P,0090589660,THE CHRISTIAN CARE TRUST,"4,317.68",25/05/2023
Delivery Units,Adults and Health,Other Agencies - Third Party P,0090589661,MEERA NURSING HOME LIMITED,"3,764.29",25/05/2023
Delivery Units,Adults and Health,Other Agencies - Third Party P,0090589666,Karuna Manor,"6,642.86",25/05/2023
Delivery Units,Adults and Health,Other Agencies - Third Party P,0090589671,Barchester Healthcare,"5,456.00",25/05/2023
Delivery Units,Adults and Health,Other Agencies - Third Party P,0090589681,Westbourne Care Home,"5,757.14",25/05/2023
Delivery Units,Adults and Health,Other Agencies - Third Party P,0090589682,Westbourne Care Home,"7,918.29",25/05/2023
Delivery Units,Adults and Health,Other Agencies - Third Party P,0090589691,TORRINGTON HOMES,"2,448.78",25/05/2023
Delivery Units,Adults and Health,Other Agencies - Third Party P,0090589708,B & M CARE,"3,764.29",25/05/2023
Delivery Units,Adults and Health,Other Agencies - Third Party P,0090589710,B & M CARE,"4,295.71",25/05/2023
Delivery Units,Adults and Health,Other Agencies - Third Party P,0090589714,Alexandra House (Runwood Homes),"2,770.07",25/05/2023
Delivery Units,Adults and Health,Other Agencies - Third Party P,0090590327,NAZARETH HOUSE,"2,540.00",26/05/2023
Delivery Units,Adults and Health,Other Agencies - Third Party P,0090590329,ELM PARK LODGE,"3,168.92",26/05/2023
Delivery Units,Adults and Health,Other Agencies - Third Party P,0090590331,JEWISH CARE,"2,801.80",26/05/2023
Delivery Units,Adults and Health,Other Agencies - Third Party P,0090590337,NAZARETH HOUSE,"2,540.00",26/05/2023
Delivery Units,Adults and Health,Other Agencies - Third Party P,0090590343,THE LIMES RESIDENTIAL HOME,"3,160.00",26/05/2023
Delivery Units,Adults and Health,Other Agencies - Third Party P,0090590344,JEWISH CARE,"2,659.00",26/05/2023
Delivery Units,Adults and Health,Other Agencies - Third Party P,0090590352,JEWISH CARE,"2,801.80",26/05/2023
Delivery Units,Adults and Health,Other Agencies - Third Party P,0090590353,JEWISH CARE,"2,747.48",26/05/2023
Delivery Units,Adults and Health,Other Agencies - Third Party P,0090590354,JEWISH CARE,"2,801.80",26/05/2023
Delivery Units,Adults and Health,Other Agencies - Third Party P,0090590357,THE LIMES RESIDENTIAL HOME,"3,120.00",26/05/2023
Delivery Units,Adults and Health,Other Agencies - Third Party P,0090590358,JEWISH CARE,"2,659.00",26/05/2023
Delivery Units,Adults and Health,Other Agencies - Third Party P,0090590362,JEWISH CARE,"2,659.00",26/05/2023
Delivery Units,Adults and Health,Other Agencies - Third Party P,0090590363,ELEANOR PALMER TRUST NO 2 A/C.,"3,687.43",26/05/2023
Delivery Units,Adults and Health,Other Agencies - Third Party P,0090590364,ELEANOR PALMER TRUST NO 2 A/C.,"3,687.43",26/05/2023
Delivery Units,Adults and Health,Other Agencies - Third Party P,0090590365,ELEANOR PALMER TRUST NO 2 A/C.,"3,687.43",26/05/2023
Delivery Units,Adults and Health,Other Agencies - Third Party P,0090590374,Aarandale Manor Care Home,"5,000.00",26/05/2023
Delivery Units,Adults and Health,Other Agencies - Third Party P,0090590398,ELMHURST RESIDENTIAL HOME,"3,000.00",26/05/2023
Delivery Units,Adults and Health,Other Agencies - Third Party P,0090590400,ELEANOR PALMER TRUST NO 2 A/C.,"3,687.43",26/05/2023
Delivery Units,Adults and Health,Other Agencies - Third Party P,0090590406,NAZARETH HOUSE,"-1,088.57",26/05/2023
Delivery Units,Adults and Health,Other Agencies - Third Party P,0090590409,JEWISH CARE,"2,801.80",26/05/2023
Delivery Units,Adults and Health,Other Agencies - Third Party P,0090590413,THE LIMES RESIDENTIAL HOME,"3,120.00",26/05/2023
Delivery Units,Adults and Health,Other Agencies - Third Party P,0090590415,NAZARETH HOUSE,"2,676.00",26/05/2023
Delivery Units,Adults and Health,Other Agencies - Third Party P,0090590417,JEWISH CARE,"2,499.00",26/05/2023
Delivery Units,Adults and Health,Other Agencies - Third Party P,0090590419,NAZARETH HOUSE,"3,800.00",26/05/2023
Delivery Units,Adults and Health,Other Agencies - Third Party P,0090590420,JEWISH CARE,"2,801.80",26/05/2023
Delivery Units,Adults and Health,Other Agencies - Third Party P,0090590423,JEWISH CARE,"2,659.00",26/05/2023
Delivery Units,Adults and Health,Other Agencies - Third Party P,0090590425,NAZARETH HOUSE,"2,540.00",26/05/2023
Delivery Units,Adults and Health,Other Agencies - Third Party P,0090590427,THE LIMES RESIDENTIAL HOME,"3,120.00",26/05/2023
Delivery Units,Adults and Health,Other Agencies - Third Party P,0090590428,NAZARETH HOUSE,"2,676.00",26/05/2023
Delivery Units,Adults and Health,Other Agencies - Third Party P,0090590430,JEWISH CARE,"2,801.80",26/05/2023
Delivery Units,Adults and Health,Other Agencies - Third Party P,0090590435,BUPA CARE HOMES,"2,516.00",26/05/2023
Delivery Units,Adults and Health,Other Agencies - Third Party P,0090590440,ELEANOR PALMER TRUST NO 2 A/C.,"3,727.87",26/05/2023
Delivery Units,Adults and Health,Other Agencies - Third Party P,0090590443,JEWISH CARE,"4,265.48",26/05/2023
Delivery Units,Adults and Health,Other Agencies - Third Party P,0090590446,JEWISH CARE,"2,641.80",26/05/2023
Delivery Units,Adults and Health,Other Agencies - Third Party P,0090590448,JEWISH CARE,"2,801.80",26/05/2023
Delivery Units,Adults and Health,Other Agencies - Third Party P,0090590458,JEWISH CARE,"4,825.16",26/05/2023
Delivery Units,Adults and Health,Other Agencies - Third Party P,0090590460,ASHTON LODGE CARE CENTRE,"4,136.52",26/05/2023
Delivery Units,Adults and Health,Other Agencies - Third Party P,0090590463,JEWISH CARE,"2,801.80",26/05/2023
Delivery Units,Adults and Health,Other Agencies - Third Party P,0090590465,JEWISH CARE,"2,641.80",26/05/2023
Delivery Units,Adults and Health,Other Agencies - Third Party P,0090590477,JEWISH CARE,"2,801.80",26/05/2023
Delivery Units,Adults and Health,Other Agencies - Third Party P,0090590481,JEWISH CARE,"5,070.40",26/05/2023
Delivery Units,Adults and Health,Other Agencies - Third Party P,0090590483,NAZARETH HOUSE,"2,676.00",26/05/2023
Delivery Units,Adults and Health,Other Agencies - Third Party P,0090590487,LIFESTYLE CARE PLC,"3,200.00",26/05/2023
Delivery Units,Adults and Health,Other Agencies - Third Party P,0090590488,ELMHURST RESIDENTIAL HOME,"3,800.00",26/05/2023
Delivery Units,Adults and Health,Other Agencies - Third Party P,0090590489,JEWISH CARE,"2,801.80",26/05/2023
Delivery Units,Adults and Health,Other Agencies - Third Party P,0090590493,SAGE NURSING HOME,"2,640.00",26/05/2023
Delivery Units,Adults and Health,Other Agencies - Third Party P,0090590497,THE LIMES RESIDENTIAL HOME,"2,676.00",26/05/2023
Delivery Units,Adults and Health,Other Agencies - Third Party P,0090590500,NAZARETH HOUSE,"2,540.00",26/05/2023
Delivery Units,Adults and Health,Other Agencies - Third Party P,0090590502,THE LIMES RESIDENTIAL HOME,"2,676.00",26/05/2023
Delivery Units,Adults and Health,Other Agencies - Third Party P,0090590506,SAGE NURSING HOME,"-3,040.00",26/05/2023
Delivery Units,Adults and Health,Other Agencies - Third Party P,0090590509,ELEANOR PALMER TRUST NO 2 A/C.,"3,687.43",26/05/2023
Delivery Units,Adults and Health,Other Agencies - Third Party P,0090590513,ELEANOR PALMER TRUST NO 2 A/C.,"3,687.43",26/05/2023
Delivery Units,Adults and Health,Other Agencies - Third Party P,0090590515,JEWISH CARE,"2,659.00",26/05/2023
Delivery Units,Adults and Health,Other Agencies - Third Party P,0090590516,JEWISH CARE,"2,801.80",26/05/2023
Delivery Units,Adults and Health,Other Agencies - Third Party P,0090590519,APPLE TREE COURT CARE HOME,"4,400.00",26/05/2023
Delivery Units,Adults and Health,Other Agencies - Third Party P,0090590520,JEWISH CARE,"2,801.80",26/05/2023
Delivery Units,Adults and Health,Other Agencies - Third Party P,0090590521,ABBEY RAVENSCROFT PARK NURSING HOME,"4,032.20",26/05/2023
Delivery Units,Adults and Health,Other Agencies - Third Party P,0090590522,JEWISH CARE,"2,560.00",26/05/2023
Delivery Units,Adults and Health,Other Agencies - Third Party P,0090590525,JEWISH CARE,"2,801.80",26/05/2023
Delivery Units,Adults and Health,Other Agencies - Third Party P,0090590526,JEWISH CARE,"2,801.80",26/05/2023
Delivery Units,Adults and Health,Other Agencies - Third Party P,0090590529,ELEANOR PALMER TRUST NO 2 A/C.,"3,687.43",26/05/2023
Delivery Units,Adults and Health,Other Agencies - Third Party P,0090590531,BUPA CARE HOMES,"2,760.00",26/05/2023
Delivery Units,Adults and Health,Other Agencies - Third Party P,0090590532,LIFESTYLE CARE PLC,"3,600.00",26/05/2023
Delivery Units,Adults and Health,Other Agencies - Third Party P,0090590534,NAZARETH HOUSE,"2,676.00",26/05/2023
Delivery Units,Adults and Health,Other Agencies - Third Party P,0090590538,BUPA CARE HOMES,"2,884.00",26/05/2023
Delivery Units,Adults and Health,Other Agencies - Third Party P,0090590539,JEWISH CARE,"2,499.00",26/05/2023
Delivery Units,Adults and Health,Other Agencies - Third Party P,0090590551,NAZARETH HOUSE,"2,540.00",26/05/2023
Delivery Units,Adults and Health,Other Agencies - Third Party P,0090590552,ELEANOR PALMER TRUST NO 2 A/C.,"3,687.43",26/05/2023
Delivery Units,Adults and Health,Other Agencies - Third Party P,0090590553,NAZARETH HOUSE,"2,676.00",26/05/2023
Delivery Units,Adults and Health,Other Agencies - Third Party P,0090590557,THE LIMES RESIDENTIAL HOME,"3,220.00",26/05/2023
Delivery Units,Adults and Health,Other Agencies - Third Party P,0090590564,NAZARETH HOUSE,"2,676.00",26/05/2023
Delivery Units,Adults and Health,Other Agencies - Third Party P,0090590565,JEWISH CARE,"2,801.80",26/05/2023
Delivery Units,Adults and Health,Other Agencies - Third Party P,0090590566,JEWISH CARE,"2,801.80",26/05/2023
Delivery Units,Adults and Health,Other Agencies - Third Party P,0090590570,ELMHURST RESIDENTIAL HOME,"3,800.00",26/05/2023
Delivery Units,Adults and Health,Other Agencies - Third Party P,0090590571,NAZARETH HOUSE,"2,676.00",26/05/2023
Delivery Units,Adults and Health,Other Agencies - Third Party P,0090590575,ELEANOR PALMER TRUST NO 2 A/C.,"3,800.00",26/05/2023
Delivery Units,Adults and Health,Other Agencies - Third Party P,0090590589,JEWISH CARE,"3,200.00",26/05/2023
Delivery Units,Adults and Health,Other Agencies - Third Party P,0090590593,APPLE TREE COURT CARE HOME,"5,124.00",26/05/2023
Delivery Units,Adults and Health,Other Agencies - Third Party P,0090590598,ASHTON LODGE CARE CENTRE,"4,000.00",26/05/2023
Delivery Units,Adults and Health,Other Agencies - Third Party P,0090590612,NAZARETH HOUSE,"2,676.00",26/05/2023
Delivery Units,Adults and Health,Other Agencies - Third Party P,0090590613,JEWISH CARE,"2,499.00",26/05/2023
Delivery Units,Adults and Health,Other Agencies - Third Party P,0090590621,JEWISH CARE,"2,801.80",26/05/2023
Delivery Units,Adults and Health,Other Agencies - Third Party P,0090590625,BUPA CARE HOMES,"3,361.92",26/05/2023
Delivery Units,Adults and Health,Other Agencies - Third Party P,0090590627,SAGE NURSING HOME,"3,520.00",26/05/2023
Delivery Units,Adults and Health,Other Agencies - Third Party P,0090590629,ELEANOR PALMER TRUST NO 2 A/C.,"3,240.00",26/05/2023
Delivery Units,Adults and Health,Other Agencies - Third Party P,0090590630,JEWISH CARE,"2,801.80",26/05/2023
Delivery Units,Adults and Health,Other Agencies - Third Party P,0090590631,NAZARETH HOUSE,"2,676.00",26/05/2023
Delivery Units,Adults and Health,Other Agencies - Third Party P,0090590637,ELMHURST RESIDENTIAL HOME,"3,600.00",26/05/2023
Delivery Units,Adults and Health,Other Agencies - Third Party P,0090590639,NAZARETH HOUSE,"2,540.00",26/05/2023
Delivery Units,Adults and Health,Other Agencies - Third Party P,0090590645,APPLE TREE COURT CARE HOME,"3,400.00",26/05/2023
Delivery Units,Adults and Health,Other Agencies - Third Party P,0090590646,APPLE TREE COURT CARE HOME,"3,400.00",26/05/2023
Delivery Units,Adults and Health,Other Agencies - Third Party P,0090590658,THE LIMES RESIDENTIAL HOME,"3,500.00",26/05/2023
Delivery Units,Adults and Health,Other Agencies - Third Party P,0090590660,THE LIMES RESIDENTIAL HOME,"3,400.00",26/05/2023
Delivery Units,Adults and Health,Other Agencies - Third Party P,0090590665,JEWISH CARE,"2,657.00",26/05/2023
Delivery Units,Adults and Health,Other Agencies - Third Party P,0090590667,JEWISH CARE,"3,504.36",26/05/2023
Delivery Units,Adults and Health,Other Agencies - Third Party P,0090590669,JEWISH CARE,"2,801.80",26/05/2023
Delivery Units,Adults and Health,Other Agencies - Third Party P,0090590670,NAZARETH HOUSE,"2,676.00",26/05/2023
Delivery Units,Adults and Health,Other Agencies - Third Party P,0090590674,BUPA NURSING HOMES LTD - ARKLEY,"2,800.00",26/05/2023
Delivery Units,Adults and Health,Other Agencies - Third Party P,0090590682,NAZARETH HOUSE,"2,540.00",26/05/2023
Delivery Units,Adults and Health,Other Agencies - Third Party P,0090590683,JEWISH CARE,"7,658.40",26/05/2023
Delivery Units,Adults and Health,Other Agencies - Third Party P,0090590687,ELMHURST RESIDENTIAL HOME,"4,000.00",26/05/2023
Delivery Units,Adults and Health,Other Agencies - Third Party P,0090590688,APPLE TREE COURT CARE HOME,"3,400.00",26/05/2023
Delivery Units,Adults and Health,Other Agencies - Third Party P,0090590695,JEWISH CARE,"-2,945.48",26/05/2023
Delivery Units,Adults and Health,Other Agencies - Third Party P,0090590700,NAZARETH HOUSE,"4,471.20",26/05/2023
Delivery Units,Adults and Health,Other Agencies - Third Party P,0090590701,BUPA CARE HOMES,"4,000.00",26/05/2023
Delivery Units,Adults and Health,Other Agencies - Third Party P,0090590707,JEWISH CARE,"2,801.80",26/05/2023
Delivery Units,Adults and Health,Other Agencies - Third Party P,0090590726,THE LIMES RESIDENTIAL HOME,"3,500.00",26/05/2023
Delivery Units,Adults and Health,Other Agencies - Third Party P,0090590728,NAZARETH HOUSE,"4,194.00",26/05/2023
Delivery Units,Adults and Health,Other Agencies - Third Party P,0090590735,ELEANOR PALMER TRUST NO 2 A/C.,"3,240.00",26/05/2023
Delivery Units,Adults and Health,Other Agencies - Third Party P,0090590738,APPLE TREE COURT CARE HOME,"3,800.00",26/05/2023
Delivery Units,Adults and Health,Other Agencies - Third Party P,0090590741,LIFESTYLE CARE PLC,"3,400.00",26/05/2023
Delivery Units,Adults and Health,Other Agencies - Third Party P,0090590742,THE LIMES RESIDENTIAL HOME,"3,200.00",26/05/2023
Delivery Units,Adults and Health,Other Agencies - Third Party P,0090590749,ELEANOR PALMER TRUST NO 2 A/C.,"3,847.43",26/05/2023
Delivery Units,Adults and Health,Other Agencies - Third Party P,0090590753,JEWISH CARE,"2,657.00",26/05/2023
Delivery Units,Adults and Health,Other Agencies - Third Party P,0090590757,JEWISH CARE,"2,801.80",26/05/2023
Delivery Units,Adults and Health,Other Agencies - Third Party P,0090590763,BUPA CARE HOMES,"4,000.00",26/05/2023
Delivery Units,Adults and Health,Other Agencies - Third Party P,0090590774,APPLE TREE COURT CARE HOME,"5,124.00",26/05/2023
Delivery Units,Adults and Health,Other Agencies - Third Party P,0090590776,JEWISH CARE,"2,901.67",26/05/2023
Delivery Units,Adults and Health,Other Agencies - Third Party P,0090590778,BUPA NURSING HOMES LTD - ARKLEY,"3,900.00",26/05/2023
Delivery Units,Adults and Health,Other Agencies - Third Party P,0090590781,NAZARETH HOUSE,"2,796.00",26/05/2023
Delivery Units,Adults and Health,Other Agencies - Third Party P,0090590783,APPLE TREE COURT CARE HOME,"4,352.00",26/05/2023
Delivery Units,Adults and Health,Other Agencies - Third Party P,0090590787,LIFESTYLE CARE PLC,"3,400.00",26/05/2023
Delivery Units,Adults and Health,Other Agencies - Third Party P,0090590788,Aarandale Manor Care Home,"5,200.00",26/05/2023
Delivery Units,Adults and Health,Other Agencies - Third Party P,0090590802,NAZARETH HOUSE,"10,385.14",26/05/2023
Delivery Units,Adults and Health,Other Agencies - Third Party P,0090590804,APPLE TREE COURT CARE HOME,"19,764.00",26/05/2023
Delivery Units,Adults and Health,Other Agencies - Third Party P,0090590808,NAZARETH HOUSE,"3,395.14",26/05/2023
Delivery Units,Adults and Health,Other Agencies - Third Party P,0090590809,NAZARETH HOUSE,"3,195.43",26/05/2023
Delivery Units,Adults and Health,Other Agencies - Third Party P,0090590811,NAZARETH HOUSE,"2,396.57",26/05/2023
Delivery Units,Adults and Health,Other Agencies - Third Party P,0090590814,Aarandale Manor Care Home,"30,714.29",26/05/2023
Delivery Units,Adults and Health,Other Agencies - Third Party P,0090590815,NAZARETH HOUSE,"34,992.00",26/05/2023
Delivery Units,Adults and Health,Other Agencies - Third Party P,0090590818,JEWISH CARE,"1,940.01",26/05/2023
Delivery Units,Adults and Health,Other Agencies - Third Party P,0090590819,THE LIMES RESIDENTIAL HOME,"2,125.00",26/05/2023
Delivery Units,Adults and Health,Other Agencies - Third Party P,0090590820,THE LIMES RESIDENTIAL HOME,"5,950.00",26/05/2023
Delivery Units,Adults and Health,Other Agencies - Third Party P,0090590821,JEWISH CARE,"5,890.96",26/05/2023
Delivery Units,Adults and Health,Other Agencies - Third Party P,0090590824,Green Trees Care Home,"3,941.34",26/05/2023
Delivery Units,Adults and Health,Other Agencies - Third Party P,0090590828,Allied Care (MH) Ltd,"5,168.00",26/05/2023
Delivery Units,Adults and Health,Other Agencies - Third Party P,0090590830,MEERA NURSING HOME LIMITED,"3,764.29",26/05/2023
Delivery Units,Adults and Health,Other Agencies - Third Party P,0090590836,Karuna Manor,"4,207.14",26/05/2023
Delivery Units,Adults and Health,Other Agencies - Third Party P,0090590841,TORRINGTON HOMES,"4,207.14",26/05/2023
Delivery Units,Adults and Health,Other Agencies - Third Party P,0090590849,Newgrange of Cheshunt Ltd,"3,542.86",26/05/2023
Delivery Units,Adults and Health,Other Agencies - Third Party P,0090590850,B & M CARE,"5,314.29",26/05/2023
Delivery Units,Adults and Health,Other Agencies - Third Party P,0090590851,B & M CARE,"4,207.14",26/05/2023
Delivery Units,Adults and Health,Other Agencies - Third Party P,0090590858,Green Trees Care Home,"3,764.23",26/05/2023
Delivery Units,Adults and Health,Other Agencies - Third Party P,0090591585,B & M CARE,"2,200.00",26/05/2023
Delivery Units,Adults and Health,Other Agencies - Third Party P,0090592667,Hillyfield Rest Home Limited,"4,871.34",31/05/2023
Delivery Units,Adults and Health,Other Agencies - Third Party P,0090592668,Hillyfield Rest Home Limited,"4,871.34",31/05/2023
Delivery Units,Adults and Health,Other Agencies - Third Party P,0090592698,Avon Lodge UK Ltd,"3,985.71",31/05/2023
Delivery Units,Adults and Health,Other Agencies - Third Party P,0090592699,Avon Lodge UK Ltd,"3,857.14",31/05/2023
Delivery Units,Adults and Health,Other Agencies - Third Party P,0090592701,Avon Lodge UK Ltd,"20,314.27",31/05/2023
Delivery Units,Adults and Health,Other Agencies - Third Party P,0090580893,Exceptional Care at Home Ltd,240.10,03/05/2023
Delivery Units,Adults and Health,Other Agencies - Third Party P,0090580894,Exceptional Care at Home Ltd,240.10,03/05/2023
Delivery Units,Adults and Health,Other Agencies - Third Party P,0090580895,Exceptional Care at Home Ltd,240.10,03/05/2023
Delivery Units,Adults and Health,Other Agencies - Third Party P,0090580896,Exceptional Care at Home Ltd,240.10,03/05/2023
Delivery Units,Adults and Health,Other Agencies - Third Party P,0090580897,Exceptional Care at Home Ltd,240.10,03/05/2023
Delivery Units,Adults and Health,Other Agencies - Third Party P,0090580898,Exceptional Care at Home Ltd,240.10,03/05/2023
Delivery Units,Adults and Health,Other Agencies - Third Party P,0090580899,Exceptional Care at Home Ltd,240.10,03/05/2023
Delivery Units,Adults and Health,Other Agencies - Third Party P,0090580900,Exceptional Care at Home Ltd,240.10,03/05/2023
Delivery Units,Adults and Health,Other Agencies - Third Party P,0090580901,Exceptional Care at Home Ltd,240.10,03/05/2023
Delivery Units,Adults and Health,Other Agencies - Third Party P,0090580902,Exceptional Care at Home Ltd,240.10,03/05/2023
Delivery Units,Adults and Health,Other Agencies - Third Party P,0090580903,Exceptional Care at Home Ltd,240.10,03/05/2023
Delivery Units,Adults and Health,Other Agencies - Third Party P,0090580904,Exceptional Care at Home Ltd,240.10,03/05/2023
Delivery Units,Adults and Health,Other Agencies - Third Party P,0090580905,Exceptional Care at Home Ltd,240.10,03/05/2023
Delivery Units,Adults and Health,Other Agencies - Third Party P,0090580922,Exceptional Care at Home Ltd,245.00,03/05/2023
Delivery Units,Adults and Health,Other Agencies - Third Party P,0090580923,Exceptional Care at Home Ltd,245.00,03/05/2023
Delivery Units,Adults and Health,Other Agencies - Third Party P,0090580924,Exceptional Care at Home Ltd,245.00,03/05/2023
Delivery Units,Adults and Health,Other Agencies - Third Party P,0090580963,Evergreen Homecare Service Ltd,729.12,03/05/2023
Delivery Units,Adults and Health,Other Agencies - Third Party P,0090580964,Evergreen Homecare Service Ltd,"1,041.60",03/05/2023
Delivery Units,Adults and Health,Other Agencies - Third Party P,0090580965,Evergreen Homecare Service Ltd,550.56,03/05/2023
Delivery Units,Adults and Health,Other Agencies - Third Party P,0090580967,Evergreen Homecare Service Ltd,138.88,03/05/2023
Delivery Units,Adults and Health,Other Agencies - Third Party P,0090580968,Evergreen Homecare Service Ltd,138.88,03/05/2023
Delivery Units,Adults and Health,Other Agencies - Third Party P,0090580969,Evergreen Homecare Service Ltd,69.44,03/05/2023
Delivery Units,Adults and Health,Other Agencies - Third Party P,0090580971,Evergreen Homecare Service Ltd,347.20,03/05/2023
Delivery Units,Adults and Health,Other Agencies - Third Party P,0090580972,Evergreen Homecare Service Ltd,456.32,03/05/2023
Delivery Units,Adults and Health,Other Agencies - Third Party P,0090580973,Evergreen Homecare Service Ltd,208.32,03/05/2023
Delivery Units,Adults and Health,Other Agencies - Third Party P,0090580974,Evergreen Homecare Service Ltd,262.88,03/05/2023
Delivery Units,Adults and Health,Other Agencies - Third Party P,0090580975,Evergreen Homecare Service Ltd,"1,277.78",03/05/2023
Delivery Units,Adults and Health,Other Agencies - Third Party P,0090580977,Evergreen Homecare Service Ltd,138.88,03/05/2023
Delivery Units,Adults and Health,Other Agencies - Third Party P,0090580979,Evergreen Homecare Service Ltd,79.36,03/05/2023
Delivery Units,Adults and Health,Other Agencies - Third Party P,0090580980,Evergreen Homecare Service Ltd,"1,277.78",03/05/2023
Delivery Units,Adults and Health,Other Agencies - Third Party P,0090580981,Evergreen Homecare Service Ltd,428.58,03/05/2023
Delivery Units,Adults and Health,Other Agencies - Third Party P,0090580982,Evergreen Homecare Service Ltd,416.64,03/05/2023
Delivery Units,Adults and Health,Other Agencies - Third Party P,0090580985,Evergreen Homecare Service Ltd,729.12,03/05/2023
Delivery Units,Adults and Health,Other Agencies - Third Party P,0090580986,Evergreen Homecare Service Ltd,"1,041.60",03/05/2023
Delivery Units,Adults and Health,Other Agencies - Third Party P,0090580987,Evergreen Homecare Service Ltd,550.56,03/05/2023
Delivery Units,Adults and Health,Other Agencies - Third Party P,0090580989,Evergreen Homecare Service Ltd,138.88,03/05/2023
Delivery Units,Adults and Health,Other Agencies - Third Party P,0090580990,Evergreen Homecare Service Ltd,138.88,03/05/2023
Delivery Units,Adults and Health,Other Agencies - Third Party P,0090580991,Evergreen Homecare Service Ltd,69.44,03/05/2023
Delivery Units,Adults and Health,Other Agencies - Third Party P,0090580993,Evergreen Homecare Service Ltd,347.20,03/05/2023
Delivery Units,Adults and Health,Other Agencies - Third Party P,0090580994,Evergreen Homecare Service Ltd,456.32,03/05/2023
Delivery Units,Adults and Health,Other Agencies - Third Party P,0090580995,Evergreen Homecare Service Ltd,218.24,03/05/2023
Delivery Units,Adults and Health,Other Agencies - Third Party P,0090580996,Evergreen Homecare Service Ltd,505.92,03/05/2023
Delivery Units,Adults and Health,Other Agencies - Third Party P,0090580997,Evergreen Homecare Service Ltd,"1,277.78",03/05/2023
Delivery Units,Adults and Health,Other Agencies - Third Party P,0090580999,Evergreen Homecare Service Ltd,138.88,03/05/2023
Delivery Units,Adults and Health,Other Agencies - Third Party P,0090581001,Evergreen Homecare Service Ltd,138.88,03/05/2023
Delivery Units,Adults and Health,Other Agencies - Third Party P,0090581002,Evergreen Homecare Service Ltd,"1,277.78",03/05/2023
Delivery Units,Adults and Health,Other Agencies - Third Party P,0090581003,Evergreen Homecare Service Ltd,223.20,03/05/2023
Delivery Units,Adults and Health,Other Agencies - Third Party P,0090581004,Evergreen Homecare Service Ltd,421.60,03/05/2023
Delivery Units,Adults and Health,Other Agencies - Third Party P,0090581008,Evergreen Homecare Service Ltd,729.12,03/05/2023
Delivery Units,Adults and Health,Other Agencies - Third Party P,0090581009,Evergreen Homecare Service Ltd,"1,041.60",03/05/2023
Delivery Units,Adults and Health,Other Agencies - Third Party P,0090581010,Evergreen Homecare Service Ltd,550.56,03/05/2023
Delivery Units,Adults and Health,Other Agencies - Third Party P,0090581012,Evergreen Homecare Service Ltd,138.88,03/05/2023
Delivery Units,Adults and Health,Other Agencies - Third Party P,0090581013,Evergreen Homecare Service Ltd,138.88,03/05/2023
Delivery Units,Adults and Health,Other Agencies - Third Party P,0090581014,Evergreen Homecare Service Ltd,69.44,03/05/2023
Delivery Units,Adults and Health,Other Agencies - Third Party P,0090581016,Evergreen Homecare Service Ltd,347.20,03/05/2023
Delivery Units,Adults and Health,Other Agencies - Third Party P,0090581017,Evergreen Homecare Service Ltd,456.32,03/05/2023
Delivery Units,Adults and Health,Other Agencies - Third Party P,0090581018,Evergreen Homecare Service Ltd,208.32,03/05/2023
Delivery Units,Adults and Health,Other Agencies - Third Party P,0090581019,Evergreen Homecare Service Ltd,496.00,03/05/2023
Delivery Units,Adults and Health,Other Agencies - Third Party P,0090581020,Evergreen Homecare Service Ltd,"1,277.78",03/05/2023
Delivery Units,Adults and Health,Other Agencies - Third Party P,0090581022,Evergreen Homecare Service Ltd,138.88,03/05/2023
Delivery Units,Adults and Health,Other Agencies - Third Party P,0090581024,Evergreen Homecare Service Ltd,138.88,03/05/2023
Delivery Units,Adults and Health,Other Agencies - Third Party P,0090581025,Evergreen Homecare Service Ltd,"1,277.78",03/05/2023
Delivery Units,Adults and Health,Other Agencies - Third Party P,0090581026,Evergreen Homecare Service Ltd,416.64,03/05/2023
Delivery Units,Adults and Health,Other Agencies - Third Party P,0090581045,Angelic Healthcare Services Ltd,495.60,03/05/2023
Delivery Units,Adults and Health,Other Agencies - Third Party P,0090581046,Angelic Healthcare Services Ltd,619.50,03/05/2023
Delivery Units,Adults and Health,Other Agencies - Third Party P,0090581049,Angelic Healthcare Services Ltd,"5,791.24",03/05/2023
Delivery Units,Adults and Health,Other Agencies - Third Party P,0090581051,Angelic Healthcare Services Ltd,991.20,03/05/2023
Delivery Units,Adults and Health,Other Agencies - Third Party P,0090581057,Angelic Healthcare Services Ltd,495.60,03/05/2023
Delivery Units,Adults and Health,Other Agencies - Third Party P,0090581058,Angelic Healthcare Services Ltd,619.50,03/05/2023
Delivery Units,Adults and Health,Other Agencies - Third Party P,0090581061,Angelic Healthcare Services Ltd,619.50,03/05/2023
Delivery Units,Adults and Health,Other Agencies - Third Party P,0090581062,Angelic Healthcare Services Ltd,619.50,03/05/2023
Delivery Units,Adults and Health,Other Agencies - Third Party P,0090581063,Angelic Healthcare Services Ltd,"5,791.24",03/05/2023
Delivery Units,Adults and Health,Other Agencies - Third Party P,0090581066,Angelic Healthcare Services Ltd,991.20,03/05/2023
Delivery Units,Adults and Health,Other Agencies - Third Party P,0090581071,Angelic Healthcare Services Ltd,495.60,03/05/2023
Delivery Units,Adults and Health,Other Agencies - Third Party P,0090581072,Angelic Healthcare Services Ltd,619.50,03/05/2023
Delivery Units,Adults and Health,Other Agencies - Third Party P,0090581075,Angelic Healthcare Services Ltd,619.50,03/05/2023
Delivery Units,Adults and Health,Other Agencies - Third Party P,0090581076,Angelic Healthcare Services Ltd,"5,791.24",03/05/2023
Delivery Units,Adults and Health,Other Agencies - Third Party P,0090581079,Angelic Healthcare Services Ltd,991.20,03/05/2023
Delivery Units,Adults and Health,Other Agencies - Third Party P,0090581091,Exceptional Care at Home Ltd,455.70,03/05/2023
Delivery Units,Adults and Health,Other Agencies - Third Party P,0090581094,Exceptional Care at Home Ltd,274.40,03/05/2023
Delivery Units,Adults and Health,Other Agencies - Third Party P,0090581095,Exceptional Care at Home Ltd,313.60,03/05/2023
Delivery Units,Adults and Health,Other Agencies - Third Party P,0090581096,Exceptional Care at Home Ltd,240.10,03/05/2023
Delivery Units,Adults and Health,Other Agencies - Third Party P,0090581097,Exceptional Care at Home Ltd,240.10,03/05/2023
Delivery Units,Adults and Health,Other Agencies - Third Party P,0090581098,Exceptional Care at Home Ltd,235.20,03/05/2023
Delivery Units,Adults and Health,Other Agencies - Third Party P,0090581099,Exceptional Care at Home Ltd,245.00,03/05/2023
Delivery Units,Adults and Health,Other Agencies - Third Party P,0090581100,Exceptional Care at Home Ltd,284.20,03/05/2023
Delivery Units,Adults and Health,Other Agencies - Third Party P,0090581101,Exceptional Care at Home Ltd,445.90,03/05/2023
Delivery Units,Adults and Health,Other Agencies - Third Party P,0090581103,Exceptional Care at Home Ltd,926.10,03/05/2023
Delivery Units,Adults and Health,Other Agencies - Third Party P,0090581104,Exceptional Care at Home Ltd,102.90,03/05/2023
Delivery Units,Adults and Health,Other Agencies - Third Party P,0090581105,Exceptional Care at Home Ltd,"1,994.30",03/05/2023
Delivery Units,Adults and Health,Other Agencies - Third Party P,0090581106,Exceptional Care at Home Ltd,269.50,03/05/2023
Delivery Units,Adults and Health,Other Agencies - Third Party P,0090581107,Exceptional Care at Home Ltd,308.70,03/05/2023
Delivery Units,Adults and Health,Other Agencies - Third Party P,0090581108,Exceptional Care at Home Ltd,377.30,03/05/2023
Delivery Units,Adults and Health,Other Agencies - Third Party P,0090581109,Exceptional Care at Home Ltd,343.00,03/05/2023
Delivery Units,Adults and Health,Other Agencies - Third Party P,0090581110,Exceptional Care at Home Ltd,347.90,03/05/2023
Delivery Units,Adults and Health,Other Agencies - Third Party P,0090581111,Exceptional Care at Home Ltd,191.10,03/05/2023
Delivery Units,Adults and Health,Other Agencies - Third Party P,0090581112,Exceptional Care at Home Ltd,171.50,03/05/2023
Delivery Units,Adults and Health,Other Agencies - Third Party P,0090581113,Exceptional Care at Home Ltd,627.20,03/05/2023
Delivery Units,Adults and Health,Other Agencies - Third Party P,0090581114,Exceptional Care at Home Ltd,343.00,03/05/2023
Delivery Units,Adults and Health,Other Agencies - Third Party P,0090581115,Exceptional Care at Home Ltd,137.20,03/05/2023
Delivery Units,Adults and Health,Other Agencies - Third Party P,0090581116,Exceptional Care at Home Ltd,891.80,03/05/2023
Delivery Units,Adults and Health,Other Agencies - Third Party P,0090581117,Exceptional Care at Home Ltd,279.30,03/05/2023
Delivery Units,Adults and Health,Other Agencies - Third Party P,0090581118,Exceptional Care at Home Ltd,196.00,03/05/2023
Delivery Units,Adults and Health,Other Agencies - Third Party P,0090581119,Exceptional Care at Home Ltd,274.40,03/05/2023
Delivery Units,Adults and Health,Other Agencies - Third Party P,0090581120,Exceptional Care at Home Ltd,377.30,03/05/2023
Delivery Units,Adults and Health,Other Agencies - Third Party P,0090581121,Exceptional Care at Home Ltd,465.50,03/05/2023
Delivery Units,Adults and Health,Other Agencies - Third Party P,0090581122,Exceptional Care at Home Ltd,68.60,03/05/2023
Delivery Units,Adults and Health,Other Agencies - Third Party P,0090581123,Exceptional Care at Home Ltd,"1,058.40",03/05/2023
Delivery Units,Adults and Health,Other Agencies - Third Party P,0090581124,Exceptional Care at Home Ltd,102.90,03/05/2023
Delivery Units,Adults and Health,Other Agencies - Third Party P,0090581125,Exceptional Care at Home Ltd,88.20,03/05/2023
Delivery Units,Adults and Health,Other Agencies - Third Party P,0090581126,Exceptional Care at Home Ltd,343.00,03/05/2023
Delivery Units,Adults and Health,Other Agencies - Third Party P,0090581127,Exceptional Care at Home Ltd,396.90,03/05/2023
Delivery Units,Adults and Health,Other Agencies - Third Party P,0090581128,Exceptional Care at Home Ltd,240.10,03/05/2023
Delivery Units,Adults and Health,Other Agencies - Third Party P,0090581129,Exceptional Care at Home Ltd,411.60,03/05/2023
Delivery Units,Adults and Health,Other Agencies - Third Party P,0090581132,Exceptional Care at Home Ltd,323.40,03/05/2023
Delivery Units,Adults and Health,Other Agencies - Third Party P,0090581133,Exceptional Care at Home Ltd,308.70,03/05/2023
Delivery Units,Adults and Health,Other Agencies - Third Party P,0090581134,Exceptional Care at Home Ltd,274.40,03/05/2023
Delivery Units,Adults and Health,Other Agencies - Third Party P,0090581135,Exceptional Care at Home Ltd,274.40,03/05/2023
Delivery Units,Adults and Health,Other Agencies - Third Party P,0090581136,Exceptional Care at Home Ltd,343.00,03/05/2023
Delivery Units,Adults and Health,Other Agencies - Third Party P,0090581138,Exceptional Care at Home Ltd,411.60,03/05/2023
Delivery Units,Adults and Health,Other Agencies - Third Party P,0090581141,Exceptional Care at Home Ltd,406.70,03/05/2023
Delivery Units,Adults and Health,Other Agencies - Third Party P,0090581142,Exceptional Care at Home Ltd,240.10,03/05/2023
Delivery Units,Adults and Health,Other Agencies - Third Party P,0090581144,Exceptional Care at Home Ltd,343.00,03/05/2023
Delivery Units,Adults and Health,Other Agencies - Third Party P,0090581145,Exceptional Care at Home Ltd,151.90,03/05/2023
Delivery Units,Adults and Health,Other Agencies - Third Party P,0090581146,Exceptional Care at Home Ltd,171.50,03/05/2023
Delivery Units,Adults and Health,Other Agencies - Third Party P,0090581150,Exceptional Care at Home Ltd,411.60,03/05/2023
Delivery Units,Adults and Health,Other Agencies - Third Party P,0090581153,Exceptional Care at Home Ltd,509.60,03/05/2023
Delivery Units,Adults and Health,Other Agencies - Third Party P,0090581159,Exceptional Care at Home Ltd,823.20,03/05/2023
Delivery Units,Adults and Health,Other Agencies - Third Party P,0090581162,Exceptional Care at Home Ltd,362.60,03/05/2023
Delivery Units,Adults and Health,Other Agencies - Third Party P,0090581168,Exceptional Care at Home Ltd,617.40,03/05/2023
Delivery Units,Adults and Health,Other Agencies - Third Party P,0090581169,Exceptional Care at Home Ltd,686.00,03/05/2023
Delivery Units,Adults and Health,Other Agencies - Third Party P,0090581171,Exceptional Care at Home Ltd,411.60,03/05/2023
Delivery Units,Adults and Health,Other Agencies - Third Party P,0090581173,Exceptional Care at Home Ltd,176.40,03/05/2023
Delivery Units,Adults and Health,Other Agencies - Third Party P,0090581174,Exceptional Care at Home Ltd,19.60,03/05/2023
Delivery Units,Adults and Health,Other Agencies - Third Party P,0090581187,Exceptional Care at Home Ltd,455.70,03/05/2023
Delivery Units,Adults and Health,Other Agencies - Third Party P,0090581190,Exceptional Care at Home Ltd,274.40,03/05/2023
Delivery Units,Adults and Health,Other Agencies - Third Party P,0090581191,Exceptional Care at Home Ltd,313.60,03/05/2023
Delivery Units,Adults and Health,Other Agencies - Third Party P,0090581192,Exceptional Care at Home Ltd,240.10,03/05/2023
Delivery Units,Adults and Health,Other Agencies - Third Party P,0090581193,Exceptional Care at Home Ltd,240.10,03/05/2023
Delivery Units,Adults and Health,Other Agencies - Third Party P,0090581194,Exceptional Care at Home Ltd,235.20,03/05/2023
Delivery Units,Adults and Health,Other Agencies - Third Party P,0090581195,Exceptional Care at Home Ltd,245.00,03/05/2023
Delivery Units,Adults and Health,Other Agencies - Third Party P,0090581196,Exceptional Care at Home Ltd,284.20,03/05/2023
Delivery Units,Adults and Health,Other Agencies - Third Party P,0090581197,Exceptional Care at Home Ltd,445.90,03/05/2023
Delivery Units,Adults and Health,Other Agencies - Third Party P,0090581199,Exceptional Care at Home Ltd,926.10,03/05/2023
Delivery Units,Adults and Health,Other Agencies - Third Party P,0090581200,Exceptional Care at Home Ltd,102.90,03/05/2023
Delivery Units,Adults and Health,Other Agencies - Third Party P,0090581201,Exceptional Care at Home Ltd,245.00,03/05/2023
Delivery Units,Adults and Health,Other Agencies - Third Party P,0090581202,Exceptional Care at Home Ltd,308.70,03/05/2023
Delivery Units,Adults and Health,Other Agencies - Third Party P,0090581203,Exceptional Care at Home Ltd,396.90,03/05/2023
Delivery Units,Adults and Health,Other Agencies - Third Party P,0090581204,Exceptional Care at Home Ltd,357.70,03/05/2023
Delivery Units,Adults and Health,Other Agencies - Third Party P,0090581205,Exceptional Care at Home Ltd,347.90,03/05/2023
Delivery Units,Adults and Health,Other Agencies - Third Party P,0090581206,Exceptional Care at Home Ltd,191.10,03/05/2023
Delivery Units,Adults and Health,Other Agencies - Third Party P,0090581207,Exceptional Care at Home Ltd,171.50,03/05/2023
Delivery Units,Adults and Health,Other Agencies - Third Party P,0090581208,Exceptional Care at Home Ltd,627.20,03/05/2023
Delivery Units,Adults and Health,Other Agencies - Third Party P,0090581210,Exceptional Care at Home Ltd,343.00,03/05/2023
Delivery Units,Adults and Health,Other Agencies - Third Party P,0090581211,Exceptional Care at Home Ltd,137.20,03/05/2023
Delivery Units,Adults and Health,Other Agencies - Third Party P,0090581212,Exceptional Care at Home Ltd,891.80,03/05/2023
Delivery Units,Adults and Health,Other Agencies - Third Party P,0090581213,Exceptional Care at Home Ltd,279.30,03/05/2023
Delivery Units,Adults and Health,Other Agencies - Third Party P,0090581214,Exceptional Care at Home Ltd,196.00,03/05/2023
Delivery Units,Adults and Health,Other Agencies - Third Party P,0090581215,Exceptional Care at Home Ltd,274.40,03/05/2023
Delivery Units,Adults and Health,Other Agencies - Third Party P,0090581216,Exceptional Care at Home Ltd,377.30,03/05/2023
Delivery Units,Adults and Health,Other Agencies - Third Party P,0090581217,Exceptional Care at Home Ltd,401.80,03/05/2023
Delivery Units,Adults and Health,Other Agencies - Third Party P,0090581218,Exceptional Care at Home Ltd,68.60,03/05/2023
Delivery Units,Adults and Health,Other Agencies - Third Party P,0090581219,Exceptional Care at Home Ltd,"1,058.40",03/05/2023
Delivery Units,Adults and Health,Other Agencies - Third Party P,0090581220,Exceptional Care at Home Ltd,102.90,03/05/2023
Delivery Units,Adults and Health,Other Agencies - Third Party P,0090581221,Exceptional Care at Home Ltd,88.20,03/05/2023
Delivery Units,Adults and Health,Other Agencies - Third Party P,0090581222,Exceptional Care at Home Ltd,274.40,03/05/2023
Delivery Units,Adults and Health,Other Agencies - Third Party P,0090581223,Exceptional Care at Home Ltd,396.90,03/05/2023
Delivery Units,Adults and Health,Other Agencies - Third Party P,0090581224,Exceptional Care at Home Ltd,240.10,03/05/2023
Delivery Units,Adults and Health,Other Agencies - Third Party P,0090581226,Exceptional Care at Home Ltd,323.40,03/05/2023
Delivery Units,Adults and Health,Other Agencies - Third Party P,0090581227,Exceptional Care at Home Ltd,308.70,03/05/2023
Delivery Units,Adults and Health,Other Agencies - Third Party P,0090581228,Exceptional Care at Home Ltd,269.50,03/05/2023
Delivery Units,Adults and Health,Other Agencies - Third Party P,0090581229,Exceptional Care at Home Ltd,274.40,03/05/2023
Delivery Units,Adults and Health,Other Agencies - Third Party P,0090581230,Exceptional Care at Home Ltd,343.00,03/05/2023
Delivery Units,Adults and Health,Other Agencies - Third Party P,0090581231,Exceptional Care at Home Ltd,411.60,03/05/2023
Delivery Units,Adults and Health,Other Agencies - Third Party P,0090581233,Exceptional Care at Home Ltd,406.70,03/05/2023
Delivery Units,Adults and Health,Other Agencies - Third Party P,0090581234,Exceptional Care at Home Ltd,240.10,03/05/2023
Delivery Units,Adults and Health,Other Agencies - Third Party P,0090581235,Exceptional Care at Home Ltd,343.00,03/05/2023
Delivery Units,Adults and Health,Other Agencies - Third Party P,0090581236,Exceptional Care at Home Ltd,151.90,03/05/2023
Delivery Units,Adults and Health,Other Agencies - Third Party P,0090581237,Exceptional Care at Home Ltd,147.00,03/05/2023
Delivery Units,Adults and Health,Other Agencies - Third Party P,0090581241,Exceptional Care at Home Ltd,411.60,03/05/2023
Delivery Units,Adults and Health,Other Agencies - Third Party P,0090581243,Exceptional Care at Home Ltd,509.60,03/05/2023
Delivery Units,Adults and Health,Other Agencies - Third Party P,0090581248,Exceptional Care at Home Ltd,823.20,03/05/2023
Delivery Units,Adults and Health,Other Agencies - Third Party P,0090581250,Exceptional Care at Home Ltd,362.60,03/05/2023
Delivery Units,Adults and Health,Other Agencies - Third Party P,0090581255,Exceptional Care at Home Ltd,617.40,03/05/2023
Delivery Units,Adults and Health,Other Agencies - Third Party P,0090581256,Exceptional Care at Home Ltd,686.00,03/05/2023
Delivery Units,Adults and Health,Other Agencies - Third Party P,0090581257,Exceptional Care at Home Ltd,411.60,03/05/2023
Delivery Units,Adults and Health,Other Agencies - Third Party P,0090581259,Exceptional Care at Home Ltd,617.40,03/05/2023
Delivery Units,Adults and Health,Other Agencies - Third Party P,0090581260,Exceptional Care at Home Ltd,98.00,03/05/2023
Delivery Units,Adults and Health,Other Agencies - Third Party P,0090581274,Exceptional Care at Home Ltd,455.70,03/05/2023
Delivery Units,Adults and Health,Other Agencies - Third Party P,0090581276,Exceptional Care at Home Ltd,274.40,03/05/2023
Delivery Units,Adults and Health,Other Agencies - Third Party P,0090581277,Exceptional Care at Home Ltd,313.60,03/05/2023
Delivery Units,Adults and Health,Other Agencies - Third Party P,0090581278,Exceptional Care at Home Ltd,240.10,03/05/2023
Delivery Units,Adults and Health,Other Agencies - Third Party P,0090581279,Exceptional Care at Home Ltd,240.10,03/05/2023
Delivery Units,Adults and Health,Other Agencies - Third Party P,0090581280,Exceptional Care at Home Ltd,235.20,03/05/2023
Delivery Units,Adults and Health,Other Agencies - Third Party P,0090581281,Exceptional Care at Home Ltd,245.00,03/05/2023
Delivery Units,Adults and Health,Other Agencies - Third Party P,0090581282,Exceptional Care at Home Ltd,284.20,03/05/2023
Delivery Units,Adults and Health,Other Agencies - Third Party P,0090581283,Exceptional Care at Home Ltd,445.90,03/05/2023
Delivery Units,Adults and Health,Other Agencies - Third Party P,0090581285,Exceptional Care at Home Ltd,926.10,03/05/2023
Delivery Units,Adults and Health,Other Agencies - Third Party P,0090581286,Exceptional Care at Home Ltd,102.90,03/05/2023
Delivery Units,Adults and Health,Other Agencies - Third Party P,0090581287,Exceptional Care at Home Ltd,245.00,03/05/2023
Delivery Units,Adults and Health,Other Agencies - Third Party P,0090581288,Exceptional Care at Home Ltd,308.70,03/05/2023
Delivery Units,Adults and Health,Other Agencies - Third Party P,0090581289,Exceptional Care at Home Ltd,377.30,03/05/2023
Delivery Units,Adults and Health,Other Agencies - Third Party P,0090581290,Exceptional Care at Home Ltd,289.10,03/05/2023
Delivery Units,Adults and Health,Other Agencies - Third Party P,0090581291,Exceptional Care at Home Ltd,347.90,03/05/2023
Delivery Units,Adults and Health,Other Agencies - Third Party P,0090581292,Exceptional Care at Home Ltd,171.50,03/05/2023
Delivery Units,Adults and Health,Other Agencies - Third Party P,0090581293,Exceptional Care at Home Ltd,627.20,03/05/2023
Delivery Units,Adults and Health,Other Agencies - Third Party P,0090581294,Exceptional Care at Home Ltd,235.20,03/05/2023
Delivery Units,Adults and Health,Other Agencies - Third Party P,0090581296,Exceptional Care at Home Ltd,343.00,03/05/2023
Delivery Units,Adults and Health,Other Agencies - Third Party P,0090581297,Exceptional Care at Home Ltd,137.20,03/05/2023
Delivery Units,Adults and Health,Other Agencies - Third Party P,0090581298,Exceptional Care at Home Ltd,891.80,03/05/2023
Delivery Units,Adults and Health,Other Agencies - Third Party P,0090581299,Exceptional Care at Home Ltd,137.20,03/05/2023
Delivery Units,Adults and Health,Other Agencies - Third Party P,0090581300,Exceptional Care at Home Ltd,196.00,03/05/2023
Delivery Units,Adults and Health,Other Agencies - Third Party P,0090581301,Exceptional Care at Home Ltd,274.40,03/05/2023
Delivery Units,Adults and Health,Other Agencies - Third Party P,0090581302,Exceptional Care at Home Ltd,377.30,03/05/2023
Delivery Units,Adults and Health,Other Agencies - Third Party P,0090581303,Exceptional Care at Home Ltd,465.50,03/05/2023
Delivery Units,Adults and Health,Other Agencies - Third Party P,0090581304,Exceptional Care at Home Ltd,68.60,03/05/2023
Delivery Units,Adults and Health,Other Agencies - Third Party P,0090581305,Exceptional Care at Home Ltd,"1,058.40",03/05/2023
Delivery Units,Adults and Health,Other Agencies - Third Party P,0090581306,Exceptional Care at Home Ltd,102.90,03/05/2023
Delivery Units,Adults and Health,Other Agencies - Third Party P,0090581307,Exceptional Care at Home Ltd,88.20,03/05/2023
Delivery Units,Adults and Health,Other Agencies - Third Party P,0090581308,Exceptional Care at Home Ltd,274.40,03/05/2023
Delivery Units,Adults and Health,Other Agencies - Third Party P,0090581309,Exceptional Care at Home Ltd,396.90,03/05/2023
Delivery Units,Adults and Health,Other Agencies - Third Party P,0090581310,Exceptional Care at Home Ltd,240.10,03/05/2023
Delivery Units,Adults and Health,Other Agencies - Third Party P,0090581313,Exceptional Care at Home Ltd,323.40,03/05/2023
Delivery Units,Adults and Health,Other Agencies - Third Party P,0090581314,Exceptional Care at Home Ltd,308.70,03/05/2023
Delivery Units,Adults and Health,Other Agencies - Third Party P,0090581315,Exceptional Care at Home Ltd,274.40,03/05/2023
Delivery Units,Adults and Health,Other Agencies - Third Party P,0090581316,Exceptional Care at Home Ltd,117.60,03/05/2023
Delivery Units,Adults and Health,Other Agencies - Third Party P,0090581317,Exceptional Care at Home Ltd,343.00,03/05/2023
Delivery Units,Adults and Health,Other Agencies - Third Party P,0090581318,Exceptional Care at Home Ltd,411.60,03/05/2023
Delivery Units,Adults and Health,Other Agencies - Third Party P,0090581319,Exceptional Care at Home Ltd,406.70,03/05/2023
Delivery Units,Adults and Health,Other Agencies - Third Party P,0090581320,Exceptional Care at Home Ltd,240.10,03/05/2023
Delivery Units,Adults and Health,Other Agencies - Third Party P,0090581321,Exceptional Care at Home Ltd,343.00,03/05/2023
Delivery Units,Adults and Health,Other Agencies - Third Party P,0090581322,Exceptional Care at Home Ltd,151.90,03/05/2023
Delivery Units,Adults and Health,Other Agencies - Third Party P,0090581324,Exceptional Care at Home Ltd,509.60,03/05/2023
Delivery Units,Adults and Health,Other Agencies - Third Party P,0090581329,Exceptional Care at Home Ltd,823.20,03/05/2023
Delivery Units,Adults and Health,Other Agencies - Third Party P,0090581330,Exceptional Care at Home Ltd,362.60,03/05/2023
Delivery Units,Adults and Health,Other Agencies - Third Party P,0090581335,Exceptional Care at Home Ltd,617.40,03/05/2023
Delivery Units,Adults and Health,Other Agencies - Third Party P,0090581336,Exceptional Care at Home Ltd,686.00,03/05/2023
Delivery Units,Adults and Health,Other Agencies - Third Party P,0090581337,Exceptional Care at Home Ltd,411.60,03/05/2023
Delivery Units,Adults and Health,Other Agencies - Third Party P,0090581339,Exceptional Care at Home Ltd,617.40,03/05/2023
Delivery Units,Adults and Health,Other Agencies - Third Party P,0090581340,Exceptional Care at Home Ltd,98.00,03/05/2023
Delivery Units,Adults and Health,Other Agencies - Third Party P,0090581341,Exceptional Care at Home Ltd,205.80,03/05/2023
Delivery Units,Adults and Health,Other Agencies - Third Party P,0090581354,Exceptional Care at Home Ltd,455.70,03/05/2023
Delivery Units,Adults and Health,Other Agencies - Third Party P,0090581356,Exceptional Care at Home Ltd,274.40,03/05/2023
Delivery Units,Adults and Health,Other Agencies - Third Party P,0090581357,Exceptional Care at Home Ltd,313.60,03/05/2023
Delivery Units,Adults and Health,Other Agencies - Third Party P,0090581358,Exceptional Care at Home Ltd,240.10,03/05/2023
Delivery Units,Adults and Health,Other Agencies - Third Party P,0090581359,Exceptional Care at Home Ltd,240.10,03/05/2023
Delivery Units,Adults and Health,Other Agencies - Third Party P,0090581360,Exceptional Care at Home Ltd,235.20,03/05/2023
Delivery Units,Adults and Health,Other Agencies - Third Party P,0090581361,Exceptional Care at Home Ltd,245.00,03/05/2023
Delivery Units,Adults and Health,Other Agencies - Third Party P,0090581362,Exceptional Care at Home Ltd,284.20,03/05/2023
Delivery Units,Adults and Health,Other Agencies - Third Party P,0090581363,Exceptional Care at Home Ltd,445.90,03/05/2023
Delivery Units,Adults and Health,Other Agencies - Third Party P,0090581365,Exceptional Care at Home Ltd,931.00,03/05/2023
Delivery Units,Adults and Health,Other Agencies - Third Party P,0090581366,Exceptional Care at Home Ltd,102.90,03/05/2023
Delivery Units,Adults and Health,Other Agencies - Third Party P,0090581367,Exceptional Care at Home Ltd,235.20,03/05/2023
Delivery Units,Adults and Health,Other Agencies - Third Party P,0090581368,Exceptional Care at Home Ltd,308.70,03/05/2023
Delivery Units,Adults and Health,Other Agencies - Third Party P,0090581369,Exceptional Care at Home Ltd,308.70,03/05/2023
Delivery Units,Adults and Health,Other Agencies - Third Party P,0090581370,Exceptional Care at Home Ltd,347.90,03/05/2023
Delivery Units,Adults and Health,Other Agencies - Third Party P,0090581371,Exceptional Care at Home Ltd,191.10,03/05/2023
Delivery Units,Adults and Health,Other Agencies - Third Party P,0090581372,Exceptional Care at Home Ltd,171.50,03/05/2023
Delivery Units,Adults and Health,Other Agencies - Third Party P,0090581373,Exceptional Care at Home Ltd,627.20,03/05/2023
Delivery Units,Adults and Health,Other Agencies - Third Party P,0090581374,Exceptional Care at Home Ltd,686.00,03/05/2023
Delivery Units,Adults and Health,Other Agencies - Third Party P,0090581376,Exceptional Care at Home Ltd,343.00,03/05/2023
Delivery Units,Adults and Health,Other Agencies - Third Party P,0090581377,Exceptional Care at Home Ltd,137.20,03/05/2023
Delivery Units,Adults and Health,Other Agencies - Third Party P,0090581378,Exceptional Care at Home Ltd,891.80,03/05/2023
Delivery Units,Adults and Health,Other Agencies - Third Party P,0090581379,Exceptional Care at Home Ltd,176.40,03/05/2023
Delivery Units,Adults and Health,Other Agencies - Third Party P,0090581380,Exceptional Care at Home Ltd,107.80,03/05/2023
Delivery Units,Adults and Health,Other Agencies - Third Party P,0090581381,Exceptional Care at Home Ltd,161.70,03/05/2023
Delivery Units,Adults and Health,Other Agencies - Third Party P,0090581382,Exceptional Care at Home Ltd,421.40,03/05/2023
Delivery Units,Adults and Health,Other Agencies - Third Party P,0090581383,Exceptional Care at Home Ltd,68.60,03/05/2023
Delivery Units,Adults and Health,Other Agencies - Third Party P,0090581384,Exceptional Care at Home Ltd,490.00,03/05/2023
Delivery Units,Adults and Health,Other Agencies - Third Party P,0090581385,Exceptional Care at Home Ltd,102.90,03/05/2023
Delivery Units,Adults and Health,Other Agencies - Third Party P,0090581386,Exceptional Care at Home Ltd,14.70,03/05/2023
Delivery Units,Adults and Health,Other Agencies - Third Party P,0090581387,Exceptional Care at Home Ltd,274.40,03/05/2023
Delivery Units,Adults and Health,Other Agencies - Third Party P,0090581388,Exceptional Care at Home Ltd,396.90,03/05/2023
Delivery Units,Adults and Health,Other Agencies - Third Party P,0090581389,Exceptional Care at Home Ltd,240.10,03/05/2023
Delivery Units,Adults and Health,Other Agencies - Third Party P,0090581392,Exceptional Care at Home Ltd,323.40,03/05/2023
Delivery Units,Adults and Health,Other Agencies - Third Party P,0090581393,Exceptional Care at Home Ltd,308.70,03/05/2023
Delivery Units,Adults and Health,Other Agencies - Third Party P,0090581394,Exceptional Care at Home Ltd,245.00,03/05/2023
Delivery Units,Adults and Health,Other Agencies - Third Party P,0090581395,Exceptional Care at Home Ltd,343.00,03/05/2023
Delivery Units,Adults and Health,Other Agencies - Third Party P,0090581396,Exceptional Care at Home Ltd,406.70,03/05/2023
Delivery Units,Adults and Health,Other Agencies - Third Party P,0090581397,Exceptional Care at Home Ltd,406.70,03/05/2023
Delivery Units,Adults and Health,Other Agencies - Third Party P,0090581398,Exceptional Care at Home Ltd,240.10,03/05/2023
Delivery Units,Adults and Health,Other Agencies - Third Party P,0090581399,Exceptional Care at Home Ltd,343.00,03/05/2023
Delivery Units,Adults and Health,Other Agencies - Third Party P,0090581400,Exceptional Care at Home Ltd,151.90,03/05/2023
Delivery Units,Adults and Health,Other Agencies - Third Party P,0090581401,Exceptional Care at Home Ltd,494.90,03/05/2023
Delivery Units,Adults and Health,Other Agencies - Third Party P,0090581404,Exceptional Care at Home Ltd,823.20,03/05/2023
Delivery Units,Adults and Health,Other Agencies - Third Party P,0090581405,Exceptional Care at Home Ltd,362.60,03/05/2023
Delivery Units,Adults and Health,Other Agencies - Third Party P,0090581410,Exceptional Care at Home Ltd,617.40,03/05/2023
Delivery Units,Adults and Health,Other Agencies - Third Party P,0090581411,Exceptional Care at Home Ltd,686.00,03/05/2023
Delivery Units,Adults and Health,Other Agencies - Third Party P,0090581412,Exceptional Care at Home Ltd,411.60,03/05/2023
Delivery Units,Adults and Health,Other Agencies - Third Party P,0090581414,Exceptional Care at Home Ltd,617.40,03/05/2023
Delivery Units,Adults and Health,Other Agencies - Third Party P,0090581415,Exceptional Care at Home Ltd,98.00,03/05/2023
Delivery Units,Adults and Health,Other Agencies - Third Party P,0090581416,Exceptional Care at Home Ltd,186.20,03/05/2023
Delivery Units,Adults and Health,Other Agencies - Third Party P,0090581423,Exceptional Care at Home Ltd,509.60,03/05/2023
Delivery Units,Adults and Health,Other Agencies - Third Party P,0090581429,North London Community Care,"4,906.75",03/05/2023
Delivery Units,Adults and Health,Other Agencies - Third Party P,0090581430,North London Community Care,"4,837.00",03/05/2023
Delivery Units,Adults and Health,Other Agencies - Third Party P,0090581432,North London Community Care,"4,256.00",03/05/2023
Delivery Units,Adults and Health,Other Agencies - Third Party P,0090581434,North London Community Care,"2,128.00",03/05/2023
Delivery Units,Adults and Health,Other Agencies - Third Party P,0090581440,North London Community Care,498.75,03/05/2023
Delivery Units,Adults and Health,Other Agencies - Third Party P,0090581446,Servesoul Limited,267.26,04/05/2023
Delivery Units,Adults and Health,Other Agencies - Third Party P,0090581448,Servesoul Limited,133.63,04/05/2023
Delivery Units,Adults and Health,Other Agencies - Third Party P,0090581450,Servesoul Limited,501.11,04/05/2023
Delivery Units,Adults and Health,Other Agencies - Third Party P,0090581451,Servesoul Limited,133.63,04/05/2023
Delivery Units,Adults and Health,Other Agencies - Third Party P,0090581452,Servesoul Limited,319.76,04/05/2023
Delivery Units,Adults and Health,Other Agencies - Third Party P,0090581453,Servesoul Limited,200.45,04/05/2023
Delivery Units,Adults and Health,Other Agencies - Third Party P,0090581454,Servesoul Limited,672.92,04/05/2023
Delivery Units,Adults and Health,Other Agencies - Third Party P,0090581455,Servesoul Limited,"2,099.71",04/05/2023
Delivery Units,Adults and Health,Other Agencies - Third Party P,0090581456,Servesoul Limited,133.63,04/05/2023
Delivery Units,Adults and Health,Other Agencies - Third Party P,0090581457,Servesoul Limited,47.73,04/05/2023
Delivery Units,Adults and Health,Other Agencies - Third Party P,0090581460,Servesoul Limited,152.72,04/05/2023
Delivery Units,Adults and Health,Other Agencies - Third Party P,0090581461,Servesoul Limited,267.26,04/05/2023
Delivery Units,Adults and Health,Other Agencies - Third Party P,0090581463,Servesoul Limited,200.45,04/05/2023
Delivery Units,Adults and Health,Other Agencies - Third Party P,0090581464,Servesoul Limited,801.78,04/05/2023
Delivery Units,Adults and Health,Other Agencies - Third Party P,0090581468,Servesoul Limited,300.67,04/05/2023
Delivery Units,Adults and Health,Other Agencies - Third Party P,0090581469,Servesoul Limited,200.45,04/05/2023
Delivery Units,Adults and Health,Other Agencies - Third Party P,0090581471,Servesoul Limited,233.85,04/05/2023
Delivery Units,Adults and Health,Other Agencies - Third Party P,0090581472,Servesoul Limited,167.04,04/05/2023
Delivery Units,Adults and Health,Other Agencies - Third Party P,0090581473,Servesoul Limited,"1,135.86",04/05/2023
Delivery Units,Adults and Health,Other Agencies - Third Party P,0090581475,Servesoul Limited,252.94,04/05/2023
Delivery Units,Adults and Health,Other Agencies - Third Party P,0090581476,Servesoul Limited,319.76,04/05/2023
Delivery Units,Adults and Health,Other Agencies - Third Party P,0090581477,Servesoul Limited,233.85,04/05/2023
Delivery Units,Adults and Health,Other Agencies - Third Party P,0090581478,Servesoul Limited,57.27,04/05/2023
Delivery Units,Adults and Health,Other Agencies - Third Party P,0090581480,Servesoul Limited,601.34,04/05/2023
Delivery Units,Adults and Health,Other Agencies - Third Party P,0090581481,Servesoul Limited,601.34,04/05/2023
Delivery Units,Adults and Health,Other Agencies - Third Party P,0090581482,Servesoul Limited,773.15,04/05/2023
Delivery Units,Adults and Health,Other Agencies - Third Party P,0090581483,Servesoul Limited,233.85,04/05/2023
Delivery Units,Adults and Health,Other Agencies - Third Party P,0090581485,Servesoul Limited,190.90,04/05/2023
Delivery Units,Adults and Health,Other Agencies - Third Party P,0090581489,Servesoul Limited,305.44,04/05/2023
Delivery Units,Adults and Health,Other Agencies - Third Party P,0090581491,Servesoul Limited,42.95,04/05/2023
Delivery Units,Adults and Health,Other Agencies - Third Party P,0090581492,Servesoul Limited,429.53,04/05/2023
Delivery Units,Adults and Health,Other Agencies - Third Party P,0090581493,Servesoul Limited,262.49,04/05/2023
Delivery Units,Adults and Health,Other Agencies - Third Party P,0090581494,Servesoul Limited,276.81,04/05/2023
Delivery Units,Adults and Health,Other Agencies - Third Party P,0090581495,Servesoul Limited,233.85,04/05/2023
Delivery Units,Adults and Health,Other Agencies - Third Party P,0090581497,Servesoul Limited,300.67,04/05/2023
Delivery Units,Adults and Health,Other Agencies - Third Party P,0090581498,Servesoul Limited,601.34,04/05/2023
Delivery Units,Adults and Health,Other Agencies - Third Party P,0090581501,Servesoul Limited,100.22,04/05/2023
Delivery Units,Adults and Health,Other Agencies - Third Party P,0090581506,Servesoul Limited,152.72,04/05/2023
Delivery Units,Adults and Health,Other Agencies - Third Party P,0090581511,Servesoul Limited,601.34,04/05/2023
Delivery Units,Adults and Health,Other Agencies - Third Party P,0090581514,Servesoul Limited,267.26,04/05/2023
Delivery Units,Adults and Health,Other Agencies - Third Party P,0090581516,Servesoul Limited,133.63,04/05/2023
Delivery Units,Adults and Health,Other Agencies - Third Party P,0090581518,Servesoul Limited,501.11,04/05/2023
Delivery Units,Adults and Health,Other Agencies - Third Party P,0090581519,Servesoul Limited,133.63,04/05/2023
Delivery Units,Adults and Health,Other Agencies - Third Party P,0090581520,Servesoul Limited,319.76,04/05/2023
Delivery Units,Adults and Health,Other Agencies - Third Party P,0090581521,Servesoul Limited,200.45,04/05/2023
Delivery Units,Adults and Health,Other Agencies - Third Party P,0090581522,Servesoul Limited,672.92,04/05/2023
Delivery Units,Adults and Health,Other Agencies - Third Party P,0090581523,Servesoul Limited,"2,099.71",04/05/2023
Delivery Units,Adults and Health,Other Agencies - Third Party P,0090581524,Servesoul Limited,133.63,04/05/2023
Delivery Units,Adults and Health,Other Agencies - Third Party P,0090581525,Servesoul Limited,57.27,04/05/2023
Delivery Units,Adults and Health,Other Agencies - Third Party P,0090581528,Servesoul Limited,152.72,04/05/2023
Delivery Units,Adults and Health,Other Agencies - Third Party P,0090581529,Servesoul Limited,267.26,04/05/2023
Delivery Units,Adults and Health,Other Agencies - Third Party P,0090581531,Servesoul Limited,200.45,04/05/2023
Delivery Units,Adults and Health,Other Agencies - Third Party P,0090581532,Servesoul Limited,801.78,04/05/2023
Delivery Units,Adults and Health,Other Agencies - Third Party P,0090581536,Servesoul Limited,300.67,04/05/2023
Delivery Units,Adults and Health,Other Agencies - Third Party P,0090581537,Servesoul Limited,152.72,04/05/2023
Delivery Units,Adults and Health,Other Agencies - Third Party P,0090581539,Servesoul Limited,233.85,04/05/2023
Delivery Units,Adults and Health,Other Agencies - Third Party P,0090581540,Servesoul Limited,167.04,04/05/2023
Delivery Units,Adults and Health,Other Agencies - Third Party P,0090581541,Servesoul Limited,"1,135.86",04/05/2023
Delivery Units,Adults and Health,Other Agencies - Third Party P,0090581543,Servesoul Limited,252.94,04/05/2023
Delivery Units,Adults and Health,Other Agencies - Third Party P,0090581544,Servesoul Limited,319.76,04/05/2023
Delivery Units,Adults and Health,Other Agencies - Third Party P,0090581545,Servesoul Limited,233.85,04/05/2023
Delivery Units,Adults and Health,Other Agencies - Third Party P,0090581546,Servesoul Limited,57.27,04/05/2023
Delivery Units,Adults and Health,Other Agencies - Third Party P,0090581548,Servesoul Limited,601.34,04/05/2023
Delivery Units,Adults and Health,Other Agencies - Third Party P,0090581549,Servesoul Limited,601.34,04/05/2023
Delivery Units,Adults and Health,Other Agencies - Third Party P,0090581550,Servesoul Limited,734.97,04/05/2023
Delivery Units,Adults and Health,Other Agencies - Third Party P,0090581551,Servesoul Limited,233.85,04/05/2023
Delivery Units,Adults and Health,Other Agencies - Third Party P,0090581553,Servesoul Limited,190.90,04/05/2023
Delivery Units,Adults and Health,Other Agencies - Third Party P,0090581558,Servesoul Limited,458.16,04/05/2023
Delivery Units,Adults and Health,Other Agencies - Third Party P,0090581559,Servesoul Limited,262.49,04/05/2023
Delivery Units,Adults and Health,Other Agencies - Third Party P,0090581560,Servesoul Limited,233.85,04/05/2023
Delivery Units,Adults and Health,Other Agencies - Third Party P,0090581561,Servesoul Limited,233.85,04/05/2023
Delivery Units,Adults and Health,Other Agencies - Third Party P,0090581562,Servesoul Limited,300.67,04/05/2023
Delivery Units,Adults and Health,Other Agencies - Third Party P,0090581563,Servesoul Limited,601.34,04/05/2023
Delivery Units,Adults and Health,Other Agencies - Third Party P,0090581564,Servesoul Limited,100.22,04/05/2023
Delivery Units,Adults and Health,Other Agencies - Third Party P,0090581568,Servesoul Limited,152.72,04/05/2023
Delivery Units,Adults and Health,Other Agencies - Third Party P,0090581571,Servesoul Limited,601.34,04/05/2023
Delivery Units,Adults and Health,Other Agencies - Third Party P,0090581574,The Cedars Home Care,128.17,04/05/2023
Delivery Units,Adults and Health,Other Agencies - Third Party P,0090581575,The Cedars Home Care,355.58,04/05/2023
Delivery Units,Adults and Health,Other Agencies - Third Party P,0090581577,The Cedars Home Care,526.41,04/05/2023
Delivery Units,Adults and Health,Other Agencies - Third Party P,0090581579,The Cedars Home Care,223.93,04/05/2023
Delivery Units,Adults and Health,Other Agencies - Third Party P,0090581580,The Cedars Home Care,283.44,04/05/2023
Delivery Units,Adults and Health,Other Agencies - Third Party P,0090581581,The Cedars Home Care,988.74,04/05/2023
Delivery Units,Adults and Health,Other Agencies - Third Party P,0090581582,The Cedars Home Care,64.09,04/05/2023
Delivery Units,Adults and Health,Other Agencies - Third Party P,0090581583,The Cedars Home Care,91.92,04/05/2023
Delivery Units,Adults and Health,Other Agencies - Third Party P,0090581584,The Cedars Home Care,123.96,04/05/2023
Delivery Units,Adults and Health,Other Agencies - Third Party P,0090581585,The Cedars Home Care,201.04,04/05/2023
Delivery Units,Adults and Health,Other Agencies - Third Party P,0090581586,The Cedars Home Care,"3,076.08",04/05/2023
Delivery Units,Adults and Health,Other Agencies - Third Party P,0090581587,The Cedars Home Care,216.06,04/05/2023
Delivery Units,Adults and Health,Other Agencies - Third Party P,0090581588,The Cedars Home Care,117.73,04/05/2023
Delivery Units,Adults and Health,Other Agencies - Third Party P,0090581589,The Cedars Home Care,27.47,04/05/2023
Delivery Units,Adults and Health,Other Agencies - Third Party P,0090581590,The Cedars Home Care,18.31,04/05/2023
Delivery Units,Adults and Health,Other Agencies - Third Party P,0090581592,The Cedars Home Care,73.24,04/05/2023
Delivery Units,Adults and Health,Other Agencies - Third Party P,0090581593,The Cedars Home Care,299.00,04/05/2023
Delivery Units,Adults and Health,Other Agencies - Third Party P,0090581594,The Cedars Home Care,370.78,04/05/2023
Delivery Units,Adults and Health,Other Agencies - Third Party P,0090581595,The Cedars Home Care,27.47,04/05/2023
Delivery Units,Adults and Health,Other Agencies - Third Party P,0090581597,The Cedars Home Care,13.73,04/05/2023
Delivery Units,Adults and Health,Other Agencies - Third Party P,0090581598,The Cedars Home Care,224.30,04/05/2023
Delivery Units,Adults and Health,Other Agencies - Third Party P,0090581600,The Cedars Home Care,961.28,04/05/2023
Delivery Units,Adults and Health,Other Agencies - Third Party P,0090581602,The Cedars Home Care,54.93,04/05/2023
Delivery Units,Adults and Health,Other Agencies - Third Party P,0090581604,The Cedars Home Care,"1,153.53",04/05/2023
Delivery Units,Adults and Health,Other Agencies - Third Party P,0090581606,The Cedars Home Care,"2,719.04",04/05/2023
Delivery Units,Adults and Health,Other Agencies - Third Party P,0090581607,The Cedars Home Care,704.94,04/05/2023
Delivery Units,Adults and Health,Other Agencies - Third Party P,0090581608,The Cedars Home Care,123.96,04/05/2023
Delivery Units,Adults and Health,Other Agencies - Third Party P,0090581609,The Cedars Home Care,224.30,04/05/2023
Delivery Units,Adults and Health,Other Agencies - Third Party P,0090581611,The Cedars Home Care,54.93,04/05/2023
Delivery Units,Adults and Health,Other Agencies - Third Party P,0090581612,The Cedars Home Care,101.99,04/05/2023
Delivery Units,Adults and Health,Other Agencies - Third Party P,0090581616,The Cedars Home Care,251.76,04/05/2023
Delivery Units,Adults and Health,Other Agencies - Third Party P,0090581622,The Cedars Home Care,130.76,04/05/2023
Delivery Units,Adults and Health,Other Agencies - Third Party P,0090581623,The Cedars Home Care,364.26,04/05/2023
Delivery Units,Adults and Health,Other Agencies - Third Party P,0090581625,The Cedars Home Care,537.05,04/05/2023
Delivery Units,Adults and Health,Other Agencies - Third Party P,0090581627,The Cedars Home Care,224.53,04/05/2023
Delivery Units,Adults and Health,Other Agencies - Third Party P,0090581628,The Cedars Home Care,294.21,04/05/2023
Delivery Units,Adults and Health,Other Agencies - Third Party P,0090581629,The Cedars Home Care,"1,036.74",04/05/2023
Delivery Units,Adults and Health,Other Agencies - Third Party P,0090581630,The Cedars Home Care,65.38,04/05/2023
Delivery Units,Adults and Health,Other Agencies - Third Party P,0090581631,The Cedars Home Care,98.07,04/05/2023
Delivery Units,Adults and Health,Other Agencies - Third Party P,0090581632,The Cedars Home Care,125.53,04/05/2023
Delivery Units,Adults and Health,Other Agencies - Third Party P,0090581633,The Cedars Home Care,183.06,04/05/2023
Delivery Units,Adults and Health,Other Agencies - Third Party P,0090581634,The Cedars Home Care,135.06,04/05/2023
Delivery Units,Adults and Health,Other Agencies - Third Party P,0090581635,The Cedars Home Care,33.25,04/05/2023
Delivery Units,Adults and Health,Other Agencies - Third Party P,0090581637,The Cedars Home Care,74.72,04/05/2023
Delivery Units,Adults and Health,Other Agencies - Third Party P,0090581638,The Cedars Home Care,312.89,04/05/2023
Delivery Units,Adults and Health,Other Agencies - Third Party P,0090581639,The Cedars Home Care,375.09,04/05/2023
Delivery Units,Adults and Health,Other Agencies - Third Party P,0090581640,The Cedars Home Care,28.02,04/05/2023
Delivery Units,Adults and Health,Other Agencies - Third Party P,0090581642,The Cedars Home Care,14.01,04/05/2023
Delivery Units,Adults and Health,Other Agencies - Third Party P,0090581643,The Cedars Home Care,228.83,04/05/2023
Delivery Units,Adults and Health,Other Agencies - Third Party P,0090581644,The Cedars Home Care,905.98,04/05/2023
Delivery Units,Adults and Health,Other Agencies - Third Party P,0090581645,The Cedars Home Care,54.17,04/05/2023
Delivery Units,Adults and Health,Other Agencies - Third Party P,0090581647,The Cedars Home Care,"1,176.84",04/05/2023
Delivery Units,Adults and Health,Other Agencies - Third Party P,0090581649,The Cedars Home Care,"2,745.96",04/05/2023
Delivery Units,Adults and Health,Other Agencies - Third Party P,0090581650,The Cedars Home Care,719.18,04/05/2023
Delivery Units,Adults and Health,Other Agencies - Third Party P,0090581651,The Cedars Home Care,163.45,04/05/2023
Delivery Units,Adults and Health,Other Agencies - Third Party P,0090581652,The Cedars Home Care,169.05,04/05/2023
Delivery Units,Adults and Health,Other Agencies - Third Party P,0090581654,The Cedars Home Care,55.67,04/05/2023
Delivery Units,Adults and Health,Other Agencies - Third Party P,0090581655,The Cedars Home Care,93.40,04/05/2023
Delivery Units,Adults and Health,Other Agencies - Third Party P,0090581659,The Cedars Home Care,261.52,04/05/2023
Delivery Units,Adults and Health,Other Agencies - Third Party P,0090581664,The Cedars Home Care,100.87,04/05/2023
Delivery Units,Adults and Health,Other Agencies - Third Party P,0090581665,The Cedars Home Care,28.02,04/05/2023
Delivery Units,Adults and Health,Other Agencies - Third Party P,0090581707,Arthur Morrison Ltd,283.50,04/05/2023
Delivery Units,Adults and Health,Other Agencies - Third Party P,0090581708,Arthur Morrison Ltd,252.00,04/05/2023
Delivery Units,Adults and Health,Other Agencies - Third Party P,0090581709,Arthur Morrison Ltd,261.63,04/05/2023
Delivery Units,Adults and Health,Other Agencies - Third Party P,0090581710,Arthur Morrison Ltd,409.50,04/05/2023
Delivery Units,Adults and Health,Other Agencies - Third Party P,0090581711,Arthur Morrison Ltd,302.94,04/05/2023
Delivery Units,Adults and Health,Other Agencies - Third Party P,0090581712,Arthur Morrison Ltd,45.00,04/05/2023
Delivery Units,Adults and Health,Other Agencies - Third Party P,0090581715,Arthur Morrison Ltd,98.35,04/05/2023
Delivery Units,Adults and Health,Other Agencies - Third Party P,0090581718,Arthur Morrison Ltd,55.08,04/05/2023
Delivery Units,Adults and Health,Other Agencies - Third Party P,0090581719,Arthur Morrison Ltd,56.19,04/05/2023
Delivery Units,Adults and Health,Other Agencies - Third Party P,0090581720,Arthur Morrison Ltd,37.46,04/05/2023
Delivery Units,Adults and Health,Other Agencies - Third Party P,0090581721,Arthur Morrison Ltd,283.50,04/05/2023
Delivery Units,Adults and Health,Other Agencies - Third Party P,0090581722,Arthur Morrison Ltd,252.00,04/05/2023
Delivery Units,Adults and Health,Other Agencies - Third Party P,0090581723,Arthur Morrison Ltd,261.63,04/05/2023
Delivery Units,Adults and Health,Other Agencies - Third Party P,0090581724,Arthur Morrison Ltd,409.50,04/05/2023
Delivery Units,Adults and Health,Other Agencies - Third Party P,0090581725,Arthur Morrison Ltd,302.94,04/05/2023
Delivery Units,Adults and Health,Other Agencies - Third Party P,0090581726,Arthur Morrison Ltd,45.00,04/05/2023
Delivery Units,Adults and Health,Other Agencies - Third Party P,0090581729,Arthur Morrison Ltd,98.35,04/05/2023
Delivery Units,Adults and Health,Other Agencies - Third Party P,0090581732,Arthur Morrison Ltd,55.08,04/05/2023
Delivery Units,Adults and Health,Other Agencies - Third Party P,0090581733,Arthur Morrison Ltd,56.19,04/05/2023
Delivery Units,Adults and Health,Other Agencies - Third Party P,0090581734,Arthur Morrison Ltd,37.46,04/05/2023
Delivery Units,Adults and Health,Other Agencies - Third Party P,0090581735,Arthur Morrison Ltd,283.50,04/05/2023
Delivery Units,Adults and Health,Other Agencies - Third Party P,0090581736,Arthur Morrison Ltd,252.00,04/05/2023
Delivery Units,Adults and Health,Other Agencies - Third Party P,0090581737,Arthur Morrison Ltd,335.07,04/05/2023
Delivery Units,Adults and Health,Other Agencies - Third Party P,0090581738,Arthur Morrison Ltd,409.50,04/05/2023
Delivery Units,Adults and Health,Other Agencies - Third Party P,0090581739,Arthur Morrison Ltd,460.00,04/05/2023
Delivery Units,Adults and Health,Other Agencies - Third Party P,0090581740,Arthur Morrison Ltd,45.00,04/05/2023
Delivery Units,Adults and Health,Other Agencies - Third Party P,0090581743,Arthur Morrison Ltd,98.35,04/05/2023
Delivery Units,Adults and Health,Other Agencies - Third Party P,0090581746,Arthur Morrison Ltd,55.08,04/05/2023
Delivery Units,Adults and Health,Other Agencies - Third Party P,0090581747,Arthur Morrison Ltd,56.19,04/05/2023
Delivery Units,Adults and Health,Other Agencies - Third Party P,0090581748,Arthur Morrison Ltd,37.46,04/05/2023
Delivery Units,Adults and Health,Other Agencies - Third Party P,0090581749,Arthur Morrison Ltd,283.50,04/05/2023
Delivery Units,Adults and Health,Other Agencies - Third Party P,0090581750,Arthur Morrison Ltd,252.00,04/05/2023
Delivery Units,Adults and Health,Other Agencies - Third Party P,0090581751,Arthur Morrison Ltd,335.07,04/05/2023
Delivery Units,Adults and Health,Other Agencies - Third Party P,0090581752,Arthur Morrison Ltd,409.50,04/05/2023
Delivery Units,Adults and Health,Other Agencies - Third Party P,0090581753,Arthur Morrison Ltd,578.34,04/05/2023
Delivery Units,Adults and Health,Other Agencies - Third Party P,0090581754,Arthur Morrison Ltd,45.00,04/05/2023
Delivery Units,Adults and Health,Other Agencies - Third Party P,0090581757,Arthur Morrison Ltd,98.35,04/05/2023
Delivery Units,Adults and Health,Other Agencies - Third Party P,0090581760,Arthur Morrison Ltd,55.08,04/05/2023
Delivery Units,Adults and Health,Other Agencies - Third Party P,0090581761,Arthur Morrison Ltd,56.19,04/05/2023
Delivery Units,Adults and Health,Other Agencies - Third Party P,0090581762,Arthur Morrison Ltd,37.46,04/05/2023
Delivery Units,Adults and Health,Other Agencies - Third Party P,0090581763,Arthur Morrison Ltd,98.35,04/05/2023
Delivery Units,Adults and Health,Other Agencies - Third Party P,0090581764,The Cedars Home Care,526.41,04/05/2023
Delivery Units,Adults and Health,Other Agencies - Third Party P,0090581765,The Cedars Home Care,526.41,04/05/2023
Delivery Units,Adults and Health,Other Agencies - Third Party P,0090581770,The Cedars Home Care,184.50,04/05/2023
Delivery Units,Adults and Health,Other Agencies - Third Party P,0090581771,The Cedars Home Care,184.50,04/05/2023
Delivery Units,Adults and Health,Other Agencies - Third Party P,0090581772,The Cedars Home Care,184.50,04/05/2023
Delivery Units,Adults and Health,Other Agencies - Third Party P,0090581773,The Cedars Home Care,184.50,04/05/2023
Delivery Units,Adults and Health,Other Agencies - Third Party P,0090581774,The Cedars Home Care,184.50,04/05/2023
Delivery Units,Adults and Health,Other Agencies - Third Party P,0090581775,The Cedars Home Care,184.50,04/05/2023
Delivery Units,Adults and Health,Other Agencies - Third Party P,0090581776,The Cedars Home Care,184.50,04/05/2023
Delivery Units,Adults and Health,Other Agencies - Third Party P,0090581777,The Cedars Home Care,219.89,04/05/2023
Delivery Units,Adults and Health,Other Agencies - Third Party P,0090581778,The Cedars Home Care,219.89,04/05/2023
Delivery Units,Adults and Health,Other Agencies - Third Party P,0090581779,The Cedars Home Care,219.89,04/05/2023
Delivery Units,Adults and Health,Other Agencies - Third Party P,0090581780,The Cedars Home Care,224.30,04/05/2023
Delivery Units,Adults and Health,Other Agencies - Third Party P,0090581781,The Cedars Home Care,219.89,04/05/2023
Delivery Units,Adults and Health,Other Agencies - Third Party P,0090581782,The Cedars Home Care,219.89,04/05/2023
Delivery Units,Adults and Health,Other Agencies - Third Party P,0090581783,The Cedars Home Care,219.89,04/05/2023
Delivery Units,Adults and Health,Other Agencies - Third Party P,0090581784,The Cedars Home Care,219.89,04/05/2023
Delivery Units,Adults and Health,Other Agencies - Third Party P,0090581794,Homecare Alliance Ltd,505.68,04/05/2023
Delivery Units,Adults and Health,Other Agencies - Third Party P,0090581797,Homecare Alliance Ltd,"3,431.42",04/05/2023
Delivery Units,Adults and Health,Other Agencies - Third Party P,0090581798,Homecare Alliance Ltd,226.82,04/05/2023
Delivery Units,Adults and Health,Other Agencies - Third Party P,0090581801,Concept Care Solutions Ltd,288.68,04/05/2023
Delivery Units,Adults and Health,Other Agencies - Third Party P,0090581802,Concept Care Solutions Ltd,110.25,04/05/2023
Delivery Units,Adults and Health,Other Agencies - Third Party P,0090581804,Concept Care Solutions Ltd,721.70,04/05/2023
Delivery Units,Adults and Health,Other Agencies - Third Party P,0090581805,Concept Care Solutions Ltd,195.89,04/05/2023
Delivery Units,Adults and Health,Other Agencies - Third Party P,0090581809,Navarros Care Ltd,97.68,05/05/2023
Delivery Units,Adults and Health,Other Agencies - Third Party P,0090581825,Hertsmere Valley Care Services Limited,190.74,05/05/2023
Delivery Units,Adults and Health,Other Agencies - Third Party P,0090581828,Hertsmere Valley Care Services Limited,365.40,05/05/2023
Delivery Units,Adults and Health,Other Agencies - Third Party P,0090581829,Hertsmere Valley Care Services Limited,121.38,05/05/2023
Delivery Units,Adults and Health,Other Agencies - Third Party P,0090581832,Hertsmere Valley Care Services Limited,280.57,05/05/2023
Delivery Units,Adults and Health,Other Agencies - Third Party P,0090581842,I-Care Recruitment Services Ltd,"1,468.71",05/05/2023
Delivery Units,Adults and Health,Other Agencies - Third Party P,0090581843,I-Care Recruitment Services Ltd,517.72,05/05/2023
Delivery Units,Adults and Health,Other Agencies - Third Party P,0090581844,I-Care Recruitment Services Ltd,920.71,05/05/2023
Delivery Units,Adults and Health,Other Agencies - Third Party P,0090581846,Swifthand Care Services Ltd,39.44,05/05/2023
Delivery Units,Adults and Health,Other Agencies - Third Party P,0090581847,Swifthand Care Services Ltd,103.53,05/05/2023
Delivery Units,Adults and Health,Other Agencies - Third Party P,0090581849,Swifthand Care Services Ltd,374.68,05/05/2023
Delivery Units,Adults and Health,Other Agencies - Third Party P,0090581850,Swifthand Care Services Ltd,621.18,05/05/2023
Delivery Units,Adults and Health,Other Agencies - Third Party P,0090581851,Swifthand Care Services Ltd,9.86,05/05/2023
Delivery Units,Adults and Health,Other Agencies - Third Party P,0090581852,Swifthand Care Services Ltd,103.53,05/05/2023
Delivery Units,Adults and Health,Other Agencies - Third Party P,0090581853,Swifthand Care Services Ltd,379.61,05/05/2023
Delivery Units,Adults and Health,Other Agencies - Third Party P,0090581854,Swifthand Care Services Ltd,241.57,05/05/2023
Delivery Units,Adults and Health,Other Agencies - Third Party P,0090581855,Swifthand Care Services Ltd,207.06,05/05/2023
Delivery Units,Adults and Health,Other Agencies - Third Party P,0090581856,Swifthand Care Services Ltd,"1,064.88",05/05/2023
Delivery Units,Adults and Health,Other Agencies - Third Party P,0090581857,Swifthand Care Services Ltd,207.06,05/05/2023
Delivery Units,Adults and Health,Other Agencies - Third Party P,0090581858,Swifthand Care Services Ltd,49.31,05/05/2023
Delivery Units,Adults and Health,Other Agencies - Third Party P,0090581859,Swifthand Care Services Ltd,138.04,05/05/2023
Delivery Units,Adults and Health,Other Agencies - Third Party P,0090581860,Swifthand Care Services Ltd,241.57,05/05/2023
Delivery Units,Adults and Health,Other Agencies - Third Party P,0090581861,Swifthand Care Services Ltd,"2,839.68",05/05/2023
Delivery Units,Adults and Health,Other Agencies - Third Party P,0090581863,Swifthand Care Services Ltd,172.55,05/05/2023
Delivery Units,Adults and Health,Other Agencies - Third Party P,0090581864,Swifthand Care Services Ltd,"3,312.96",05/05/2023
Delivery Units,Adults and Health,Other Agencies - Third Party P,0090581865,Swifthand Care Services Ltd,690.20,05/05/2023
Delivery Units,Adults and Health,Other Agencies - Third Party P,0090581866,Swifthand Care Services Ltd,29.58,05/05/2023
Delivery Units,Adults and Health,Other Agencies - Third Party P,0090581867,Swifthand Care Services Ltd,59.16,05/05/2023
Delivery Units,Adults and Health,Other Agencies - Third Party P,0090581868,Swifthand Care Services Ltd,172.55,05/05/2023
Delivery Units,Adults and Health,Other Agencies - Third Party P,0090581869,Swifthand Care Services Ltd,759.22,05/05/2023
Delivery Units,Adults and Health,Other Agencies - Third Party P,0090581870,Swifthand Care Services Ltd,325.38,05/05/2023
Delivery Units,Adults and Health,Other Agencies - Third Party P,0090581871,Swifthand Care Services Ltd,172.55,05/05/2023
Delivery Units,Adults and Health,Other Agencies - Third Party P,0090581874,Swifthand Care Services Ltd,315.52,05/05/2023
Delivery Units,Adults and Health,Other Agencies - Third Party P,0090581875,Swifthand Care Services Ltd,103.53,05/05/2023
Delivery Units,Adults and Health,Other Agencies - Third Party P,0090581876,Swifthand Care Services Ltd,414.12,05/05/2023
Delivery Units,Adults and Health,Other Agencies - Third Party P,0090581880,Swifthand Care Services Ltd,187.34,05/05/2023
Delivery Units,Adults and Health,Other Agencies - Third Party P,0090581886,Swifthand Care Services Ltd,39.44,05/05/2023
Delivery Units,Adults and Health,Other Agencies - Third Party P,0090581887,Swifthand Care Services Ltd,103.53,05/05/2023
Delivery Units,Adults and Health,Other Agencies - Third Party P,0090581889,Swifthand Care Services Ltd,374.68,05/05/2023
Delivery Units,Adults and Health,Other Agencies - Third Party P,0090581890,Swifthand Care Services Ltd,621.18,05/05/2023
Delivery Units,Adults and Health,Other Agencies - Third Party P,0090581891,Swifthand Care Services Ltd,9.86,05/05/2023
Delivery Units,Adults and Health,Other Agencies - Third Party P,0090581892,Swifthand Care Services Ltd,103.53,05/05/2023
Delivery Units,Adults and Health,Other Agencies - Third Party P,0090581893,Swifthand Care Services Ltd,379.61,05/05/2023
Delivery Units,Adults and Health,Other Agencies - Third Party P,0090581894,Swifthand Care Services Ltd,241.57,05/05/2023
Delivery Units,Adults and Health,Other Agencies - Third Party P,0090581895,Swifthand Care Services Ltd,207.06,05/05/2023
Delivery Units,Adults and Health,Other Agencies - Third Party P,0090581896,Swifthand Care Services Ltd,"1,064.88",05/05/2023
Delivery Units,Adults and Health,Other Agencies - Third Party P,0090581897,Swifthand Care Services Ltd,207.06,05/05/2023
Delivery Units,Adults and Health,Other Agencies - Third Party P,0090581898,Swifthand Care Services Ltd,49.30,05/05/2023
Delivery Units,Adults and Health,Other Agencies - Third Party P,0090581899,Swifthand Care Services Ltd,138.04,05/05/2023
Delivery Units,Adults and Health,Other Agencies - Third Party P,0090581900,Swifthand Care Services Ltd,241.57,05/05/2023
Delivery Units,Adults and Health,Other Agencies - Third Party P,0090581901,Swifthand Care Services Ltd,"2,839.68",05/05/2023
Delivery Units,Adults and Health,Other Agencies - Third Party P,0090581903,Swifthand Care Services Ltd,172.55,05/05/2023
Delivery Units,Adults and Health,Other Agencies - Third Party P,0090581904,Swifthand Care Services Ltd,"3,312.96",05/05/2023
Delivery Units,Adults and Health,Other Agencies - Third Party P,0090581905,Swifthand Care Services Ltd,690.20,05/05/2023
Delivery Units,Adults and Health,Other Agencies - Third Party P,0090581906,Swifthand Care Services Ltd,29.58,05/05/2023
Delivery Units,Adults and Health,Other Agencies - Third Party P,0090581907,Swifthand Care Services Ltd,172.55,05/05/2023
Delivery Units,Adults and Health,Other Agencies - Third Party P,0090581908,Swifthand Care Services Ltd,759.22,05/05/2023
Delivery Units,Adults and Health,Other Agencies - Third Party P,0090581909,Swifthand Care Services Ltd,325.38,05/05/2023
Delivery Units,Adults and Health,Other Agencies - Third Party P,0090581910,Swifthand Care Services Ltd,172.55,05/05/2023
Delivery Units,Adults and Health,Other Agencies - Third Party P,0090581912,Swifthand Care Services Ltd,315.52,05/05/2023
Delivery Units,Adults and Health,Other Agencies - Third Party P,0090581913,Swifthand Care Services Ltd,103.53,05/05/2023
Delivery Units,Adults and Health,Other Agencies - Third Party P,0090581914,Swifthand Care Services Ltd,414.12,05/05/2023
Delivery Units,Adults and Health,Other Agencies - Third Party P,0090581918,Swifthand Care Services Ltd,187.34,05/05/2023
Delivery Units,Adults and Health,Other Agencies - Third Party P,0090581925,Swifthand Care Services Ltd,39.44,05/05/2023
Delivery Units,Adults and Health,Other Agencies - Third Party P,0090581926,Swifthand Care Services Ltd,103.53,05/05/2023
Delivery Units,Adults and Health,Other Agencies - Third Party P,0090581928,Swifthand Care Services Ltd,374.68,05/05/2023
Delivery Units,Adults and Health,Other Agencies - Third Party P,0090581929,Swifthand Care Services Ltd,621.18,05/05/2023
Delivery Units,Adults and Health,Other Agencies - Third Party P,0090581930,Swifthand Care Services Ltd,9.86,05/05/2023
Delivery Units,Adults and Health,Other Agencies - Third Party P,0090581931,Swifthand Care Services Ltd,103.53,05/05/2023
Delivery Units,Adults and Health,Other Agencies - Third Party P,0090581932,Swifthand Care Services Ltd,379.61,05/05/2023
Delivery Units,Adults and Health,Other Agencies - Third Party P,0090581933,Swifthand Care Services Ltd,241.57,05/05/2023
Delivery Units,Adults and Health,Other Agencies - Third Party P,0090581934,Swifthand Care Services Ltd,207.06,05/05/2023
Delivery Units,Adults and Health,Other Agencies - Third Party P,0090581935,Swifthand Care Services Ltd,"1,064.88",05/05/2023
Delivery Units,Adults and Health,Other Agencies - Third Party P,0090581936,Swifthand Care Services Ltd,207.06,05/05/2023
Delivery Units,Adults and Health,Other Agencies - Third Party P,0090581937,Swifthand Care Services Ltd,49.31,05/05/2023
Delivery Units,Adults and Health,Other Agencies - Third Party P,0090581938,Swifthand Care Services Ltd,138.04,05/05/2023
Delivery Units,Adults and Health,Other Agencies - Third Party P,0090581939,Swifthand Care Services Ltd,241.57,05/05/2023
Delivery Units,Adults and Health,Other Agencies - Third Party P,0090581940,Swifthand Care Services Ltd,"2,839.68",05/05/2023
Delivery Units,Adults and Health,Other Agencies - Third Party P,0090581942,Swifthand Care Services Ltd,172.55,05/05/2023
Delivery Units,Adults and Health,Other Agencies - Third Party P,0090581943,Swifthand Care Services Ltd,"3,312.96",05/05/2023
Delivery Units,Adults and Health,Other Agencies - Third Party P,0090581944,Swifthand Care Services Ltd,690.20,05/05/2023
Delivery Units,Adults and Health,Other Agencies - Third Party P,0090581945,Swifthand Care Services Ltd,29.58,05/05/2023
Delivery Units,Adults and Health,Other Agencies - Third Party P,0090581946,Swifthand Care Services Ltd,172.55,05/05/2023
Delivery Units,Adults and Health,Other Agencies - Third Party P,0090581947,Swifthand Care Services Ltd,759.22,05/05/2023
Delivery Units,Adults and Health,Other Agencies - Third Party P,0090581948,Swifthand Care Services Ltd,325.38,05/05/2023
Delivery Units,Adults and Health,Other Agencies - Third Party P,0090581949,Swifthand Care Services Ltd,172.55,05/05/2023
Delivery Units,Adults and Health,Other Agencies - Third Party P,0090581951,Swifthand Care Services Ltd,315.52,05/05/2023
Delivery Units,Adults and Health,Other Agencies - Third Party P,0090581952,Swifthand Care Services Ltd,103.53,05/05/2023
Delivery Units,Adults and Health,Other Agencies - Third Party P,0090581953,Swifthand Care Services Ltd,414.12,05/05/2023
Delivery Units,Adults and Health,Other Agencies - Third Party P,0090581963,Swifthand Care Services Ltd,39.44,05/05/2023
Delivery Units,Adults and Health,Other Agencies - Third Party P,0090581964,Swifthand Care Services Ltd,103.53,05/05/2023
Delivery Units,Adults and Health,Other Agencies - Third Party P,0090581966,Swifthand Care Services Ltd,374.68,05/05/2023
Delivery Units,Adults and Health,Other Agencies - Third Party P,0090581967,Swifthand Care Services Ltd,621.18,05/05/2023
Delivery Units,Adults and Health,Other Agencies - Third Party P,0090581968,Swifthand Care Services Ltd,9.86,05/05/2023
Delivery Units,Adults and Health,Other Agencies - Third Party P,0090581969,Swifthand Care Services Ltd,103.53,05/05/2023
Delivery Units,Adults and Health,Other Agencies - Third Party P,0090581970,Swifthand Care Services Ltd,379.61,05/05/2023
Delivery Units,Adults and Health,Other Agencies - Third Party P,0090581971,Swifthand Care Services Ltd,241.57,05/05/2023
Delivery Units,Adults and Health,Other Agencies - Third Party P,0090581972,Swifthand Care Services Ltd,207.06,05/05/2023
Delivery Units,Adults and Health,Other Agencies - Third Party P,0090581974,Swifthand Care Services Ltd,"1,064.88",05/05/2023
Delivery Units,Adults and Health,Other Agencies - Third Party P,0090581975,Swifthand Care Services Ltd,207.06,05/05/2023
Delivery Units,Adults and Health,Other Agencies - Third Party P,0090581976,Swifthand Care Services Ltd,49.31,05/05/2023
Delivery Units,Adults and Health,Other Agencies - Third Party P,0090581977,Swifthand Care Services Ltd,138.04,05/05/2023
Delivery Units,Adults and Health,Other Agencies - Third Party P,0090581978,Swifthand Care Services Ltd,241.57,05/05/2023
Delivery Units,Adults and Health,Other Agencies - Third Party P,0090581979,Swifthand Care Services Ltd,"1,183.30",05/05/2023
Delivery Units,Adults and Health,Other Agencies - Third Party P,0090581982,Swifthand Care Services Ltd,172.55,05/05/2023
Delivery Units,Adults and Health,Other Agencies - Third Party P,0090581983,Swifthand Care Services Ltd,"3,312.96",05/05/2023
Delivery Units,Adults and Health,Other Agencies - Third Party P,0090581985,Swifthand Care Services Ltd,690.20,05/05/2023
Delivery Units,Adults and Health,Other Agencies - Third Party P,0090581986,Swifthand Care Services Ltd,29.58,05/05/2023
Delivery Units,Adults and Health,Other Agencies - Third Party P,0090581987,Swifthand Care Services Ltd,172.55,05/05/2023
Delivery Units,Adults and Health,Other Agencies - Third Party P,0090581988,Swifthand Care Services Ltd,759.22,05/05/2023
Delivery Units,Adults and Health,Other Agencies - Third Party P,0090581989,Swifthand Care Services Ltd,325.38,05/05/2023
Delivery Units,Adults and Health,Other Agencies - Third Party P,0090581990,Swifthand Care Services Ltd,172.55,05/05/2023
Delivery Units,Adults and Health,Other Agencies - Third Party P,0090581992,Swifthand Care Services Ltd,315.52,05/05/2023
Delivery Units,Adults and Health,Other Agencies - Third Party P,0090581993,Swifthand Care Services Ltd,103.53,05/05/2023
Delivery Units,Adults and Health,Other Agencies - Third Party P,0090581994,Swifthand Care Services Ltd,414.12,05/05/2023
Delivery Units,Adults and Health,Other Agencies - Third Party P,0090582000,Swifthand Care Services Ltd,241.57,05/05/2023
Delivery Units,Adults and Health,Other Agencies - Third Party P,0090582018,City Homecare Ltd,939.25,05/05/2023
Delivery Units,Adults and Health,Other Agencies - Third Party P,0090582020,City Homecare Ltd,327.25,05/05/2023
Delivery Units,Adults and Health,Other Agencies - Third Party P,0090582021,City Homecare Ltd,191.25,05/05/2023
Delivery Units,Adults and Health,Other Agencies - Third Party P,0090582024,City Homecare Ltd,301.75,05/05/2023
Delivery Units,Adults and Health,Other Agencies - Third Party P,0090582026,City Homecare Ltd,535.50,05/05/2023
Delivery Units,Adults and Health,Other Agencies - Third Party P,0090582028,City Homecare Ltd,119.00,05/05/2023
Delivery Units,Adults and Health,Other Agencies - Third Party P,0090582029,City Homecare Ltd,178.50,05/05/2023
Delivery Units,Adults and Health,Other Agencies - Third Party P,0090582030,City Homecare Ltd,505.75,05/05/2023
Delivery Units,Adults and Health,Other Agencies - Third Party P,0090582032,City Homecare Ltd,178.50,05/05/2023
Delivery Units,Adults and Health,Other Agencies - Third Party P,0090582033,City Homecare Ltd,195.50,05/05/2023
Delivery Units,Adults and Health,Other Agencies - Third Party P,0090582034,City Homecare Ltd,178.50,05/05/2023
Delivery Units,Adults and Health,Other Agencies - Third Party P,0090582039,City Homecare Ltd,939.25,05/05/2023
Delivery Units,Adults and Health,Other Agencies - Third Party P,0090582041,City Homecare Ltd,327.25,05/05/2023
Delivery Units,Adults and Health,Other Agencies - Third Party P,0090582042,City Homecare Ltd,191.25,05/05/2023
Delivery Units,Adults and Health,Other Agencies - Third Party P,0090582045,City Homecare Ltd,301.75,05/05/2023
Delivery Units,Adults and Health,Other Agencies - Third Party P,0090582047,City Homecare Ltd,535.50,05/05/2023
Delivery Units,Adults and Health,Other Agencies - Third Party P,0090582049,City Homecare Ltd,119.00,05/05/2023
Delivery Units,Adults and Health,Other Agencies - Third Party P,0090582050,City Homecare Ltd,178.50,05/05/2023
Delivery Units,Adults and Health,Other Agencies - Third Party P,0090582051,City Homecare Ltd,505.75,05/05/2023
Delivery Units,Adults and Health,Other Agencies - Third Party P,0090582053,City Homecare Ltd,178.50,05/05/2023
Delivery Units,Adults and Health,Other Agencies - Third Party P,0090582054,City Homecare Ltd,195.50,05/05/2023
Delivery Units,Adults and Health,Other Agencies - Third Party P,0090582055,City Homecare Ltd,178.50,05/05/2023
Delivery Units,Adults and Health,Other Agencies - Third Party P,0090582059,City Homecare Ltd,939.25,05/05/2023
Delivery Units,Adults and Health,Other Agencies - Third Party P,0090582061,City Homecare Ltd,327.25,05/05/2023
Delivery Units,Adults and Health,Other Agencies - Third Party P,0090582062,City Homecare Ltd,191.25,05/05/2023
Delivery Units,Adults and Health,Other Agencies - Third Party P,0090582065,City Homecare Ltd,301.75,05/05/2023
Delivery Units,Adults and Health,Other Agencies - Third Party P,0090582067,City Homecare Ltd,535.50,05/05/2023
Delivery Units,Adults and Health,Other Agencies - Third Party P,0090582069,City Homecare Ltd,119.00,05/05/2023
Delivery Units,Adults and Health,Other Agencies - Third Party P,0090582070,City Homecare Ltd,178.50,05/05/2023
Delivery Units,Adults and Health,Other Agencies - Third Party P,0090582071,City Homecare Ltd,505.75,05/05/2023
Delivery Units,Adults and Health,Other Agencies - Third Party P,0090582073,City Homecare Ltd,102.00,05/05/2023
Delivery Units,Adults and Health,Other Agencies - Third Party P,0090582074,City Homecare Ltd,195.50,05/05/2023
Delivery Units,Adults and Health,Other Agencies - Third Party P,0090582075,City Homecare Ltd,178.50,05/05/2023
Delivery Units,Adults and Health,Other Agencies - Third Party P,0090582079,City Homecare Ltd,331.50,05/05/2023
Delivery Units,Adults and Health,Other Agencies - Third Party P,0090582081,City Homecare Ltd,327.25,05/05/2023
Delivery Units,Adults and Health,Other Agencies - Third Party P,0090582082,City Homecare Ltd,191.25,05/05/2023
Delivery Units,Adults and Health,Other Agencies - Third Party P,0090582085,City Homecare Ltd,301.75,05/05/2023
Delivery Units,Adults and Health,Other Agencies - Third Party P,0090582087,City Homecare Ltd,535.50,05/05/2023
Delivery Units,Adults and Health,Other Agencies - Third Party P,0090582089,City Homecare Ltd,119.00,05/05/2023
Delivery Units,Adults and Health,Other Agencies - Third Party P,0090582090,City Homecare Ltd,178.50,05/05/2023
Delivery Units,Adults and Health,Other Agencies - Third Party P,0090582091,City Homecare Ltd,505.75,05/05/2023
Delivery Units,Adults and Health,Other Agencies - Third Party P,0090582093,City Homecare Ltd,195.50,05/05/2023
Delivery Units,Adults and Health,Other Agencies - Third Party P,0090582094,City Homecare Ltd,178.50,05/05/2023
Delivery Units,Adults and Health,Other Agencies - Third Party P,0090582162,Metro Homecare Ltd,259.50,10/05/2023
Delivery Units,Adults and Health,Other Agencies - Third Party P,0090582163,Metro Homecare Ltd,38.93,10/05/2023
Delivery Units,Adults and Health,Other Agencies - Third Party P,0090582164,Metro Homecare Ltd,302.75,10/05/2023
Delivery Units,Adults and Health,Other Agencies - Third Party P,0090582166,Metro Homecare Ltd,90.83,10/05/2023
Delivery Units,Adults and Health,Other Agencies - Third Party P,0090582167,Metro Homecare Ltd,272.48,10/05/2023
Delivery Units,Adults and Health,Other Agencies - Third Party P,0090582169,Metro Homecare Ltd,302.75,10/05/2023
Delivery Units,Adults and Health,Other Agencies - Third Party P,0090582172,Metro Homecare Ltd,873.65,10/05/2023
Delivery Units,Adults and Health,Other Agencies - Third Party P,0090582173,Metro Homecare Ltd,181.65,10/05/2023
Delivery Units,Adults and Health,Other Agencies - Third Party P,0090582175,Metro Homecare Ltd,363.30,10/05/2023
Delivery Units,Adults and Health,Other Agencies - Third Party P,0090582176,Metro Homecare Ltd,298.43,10/05/2023
Delivery Units,Adults and Health,Other Agencies - Third Party P,0090582180,Metro Homecare Ltd,211.93,10/05/2023
Delivery Units,Adults and Health,Other Agencies - Third Party P,0090582182,Metro Homecare Ltd,726.60,10/05/2023
Delivery Units,Adults and Health,Other Agencies - Third Party P,0090582189,Metro Homecare Ltd,259.50,10/05/2023
Delivery Units,Adults and Health,Other Agencies - Third Party P,0090582190,Metro Homecare Ltd,38.93,10/05/2023
Delivery Units,Adults and Health,Other Agencies - Third Party P,0090582191,Metro Homecare Ltd,302.75,10/05/2023
Delivery Units,Adults and Health,Other Agencies - Third Party P,0090582192,Metro Homecare Ltd,90.83,10/05/2023
Delivery Units,Adults and Health,Other Agencies - Third Party P,0090582193,Metro Homecare Ltd,272.48,10/05/2023
Delivery Units,Adults and Health,Other Agencies - Third Party P,0090582195,Metro Homecare Ltd,302.75,10/05/2023
Delivery Units,Adults and Health,Other Agencies - Third Party P,0090582198,Metro Homecare Ltd,873.65,10/05/2023
Delivery Units,Adults and Health,Other Agencies - Third Party P,0090582199,Metro Homecare Ltd,181.65,10/05/2023
Delivery Units,Adults and Health,Other Agencies - Third Party P,0090582201,Metro Homecare Ltd,363.30,10/05/2023
Delivery Units,Adults and Health,Other Agencies - Third Party P,0090582202,Metro Homecare Ltd,298.43,10/05/2023
Delivery Units,Adults and Health,Other Agencies - Third Party P,0090582206,Metro Homecare Ltd,198.95,10/05/2023
Delivery Units,Adults and Health,Other Agencies - Third Party P,0090582208,Metro Homecare Ltd,726.60,10/05/2023
Delivery Units,Adults and Health,Other Agencies - Third Party P,0090582215,Metro Homecare Ltd,259.50,10/05/2023
Delivery Units,Adults and Health,Other Agencies - Third Party P,0090582216,Metro Homecare Ltd,38.93,10/05/2023
Delivery Units,Adults and Health,Other Agencies - Third Party P,0090582217,Metro Homecare Ltd,302.75,10/05/2023
Delivery Units,Adults and Health,Other Agencies - Third Party P,0090582219,Metro Homecare Ltd,90.83,10/05/2023
Delivery Units,Adults and Health,Other Agencies - Third Party P,0090582220,Metro Homecare Ltd,272.48,10/05/2023
Delivery Units,Adults and Health,Other Agencies - Third Party P,0090582222,Metro Homecare Ltd,302.75,10/05/2023
Delivery Units,Adults and Health,Other Agencies - Third Party P,0090582225,Metro Homecare Ltd,873.65,10/05/2023
Delivery Units,Adults and Health,Other Agencies - Third Party P,0090582226,Metro Homecare Ltd,181.65,10/05/2023
Delivery Units,Adults and Health,Other Agencies - Third Party P,0090582228,Metro Homecare Ltd,363.30,10/05/2023
Delivery Units,Adults and Health,Other Agencies - Third Party P,0090582229,Metro Homecare Ltd,298.43,10/05/2023
Delivery Units,Adults and Health,Other Agencies - Third Party P,0090582232,Metro Homecare Ltd,211.93,10/05/2023
Delivery Units,Adults and Health,Other Agencies - Third Party P,0090582234,Metro Homecare Ltd,726.60,10/05/2023
Delivery Units,Adults and Health,Other Agencies - Third Party P,0090582241,Metro Homecare Ltd,259.50,10/05/2023
Delivery Units,Adults and Health,Other Agencies - Third Party P,0090582242,Metro Homecare Ltd,38.93,10/05/2023
Delivery Units,Adults and Health,Other Agencies - Third Party P,0090582243,Metro Homecare Ltd,302.75,10/05/2023
Delivery Units,Adults and Health,Other Agencies - Third Party P,0090582245,Metro Homecare Ltd,90.83,10/05/2023
Delivery Units,Adults and Health,Other Agencies - Third Party P,0090582246,Metro Homecare Ltd,272.48,10/05/2023
Delivery Units,Adults and Health,Other Agencies - Third Party P,0090582248,Metro Homecare Ltd,302.75,10/05/2023
Delivery Units,Adults and Health,Other Agencies - Third Party P,0090582251,Metro Homecare Ltd,873.65,10/05/2023
Delivery Units,Adults and Health,Other Agencies - Third Party P,0090582252,Metro Homecare Ltd,181.65,10/05/2023
Delivery Units,Adults and Health,Other Agencies - Third Party P,0090582254,Metro Homecare Ltd,363.30,10/05/2023
Delivery Units,Adults and Health,Other Agencies - Third Party P,0090582255,Metro Homecare Ltd,298.43,10/05/2023
Delivery Units,Adults and Health,Other Agencies - Third Party P,0090582259,Metro Homecare Ltd,211.93,10/05/2023
Delivery Units,Adults and Health,Other Agencies - Third Party P,0090582261,Metro Homecare Ltd,726.60,10/05/2023
Delivery Units,Adults and Health,Other Agencies - Third Party P,0090582676,Concept Care Solutions Ltd,154.65,10/05/2023
Delivery Units,Adults and Health,Other Agencies - Third Party P,0090582677,Concept Care Solutions Ltd,721.70,10/05/2023
Delivery Units,Adults and Health,Other Agencies - Third Party P,0090582679,Concept Care Solutions Ltd,110.25,10/05/2023
Delivery Units,Adults and Health,Other Agencies - Third Party P,0090582682,Concept Care Solutions Ltd,154.65,10/05/2023
Delivery Units,Adults and Health,Other Agencies - Third Party P,0090582683,Concept Care Solutions Ltd,721.70,10/05/2023
Delivery Units,Adults and Health,Other Agencies - Third Party P,0090582685,Concept Care Solutions Ltd,110.25,10/05/2023
Delivery Units,Adults and Health,Other Agencies - Third Party P,0090582689,Concept Care Solutions Ltd,288.68,10/05/2023
Delivery Units,Adults and Health,Other Agencies - Third Party P,0090582690,Concept Care Solutions Ltd,15.75,10/05/2023
Delivery Units,Adults and Health,Other Agencies - Third Party P,0090582692,Concept Care Solutions Ltd,721.70,10/05/2023
Delivery Units,Adults and Health,Other Agencies - Third Party P,0090582693,Concept Care Solutions Ltd,195.89,10/05/2023
Delivery Units,Adults and Health,Other Agencies - Third Party P,0090582697,Eleanor Nursing & Social Care Ltd,163.45,10/05/2023
Delivery Units,Adults and Health,Other Agencies - Third Party P,0090582699,Eleanor Nursing & Social Care Ltd,70.05,10/05/2023
Delivery Units,Adults and Health,Other Agencies - Third Party P,0090582700,Eleanor Nursing & Social Care Ltd,392.28,10/05/2023
Delivery Units,Adults and Health,Other Agencies - Third Party P,0090582701,Eleanor Nursing & Social Care Ltd,457.66,10/05/2023
Delivery Units,Adults and Health,Other Agencies - Third Party P,0090582702,Eleanor Nursing & Social Care Ltd,168.12,10/05/2023
Delivery Units,Adults and Health,Other Agencies - Third Party P,0090582703,Eleanor Nursing & Social Care Ltd,42.03,10/05/2023
Delivery Units,Adults and Health,Other Agencies - Third Party P,0090582704,Eleanor Nursing & Social Care Ltd,98.07,10/05/2023
Delivery Units,Adults and Health,Other Agencies - Third Party P,0090582705,Eleanor Nursing & Social Care Ltd,65.38,10/05/2023
Delivery Units,Adults and Health,Other Agencies - Third Party P,0090582706,Eleanor Nursing & Social Care Ltd,214.82,10/05/2023
Delivery Units,Adults and Health,Other Agencies - Third Party P,0090582707,Eleanor Nursing & Social Care Ltd,214.82,10/05/2023
Delivery Units,Adults and Health,Other Agencies - Third Party P,0090582710,Eleanor Nursing & Social Care Ltd,28.02,10/05/2023
Delivery Units,Adults and Health,Other Agencies - Third Party P,0090582712,Eleanor Nursing & Social Care Ltd,270.86,10/05/2023
Delivery Units,Adults and Health,Other Agencies - Third Party P,0090582713,Eleanor Nursing & Social Care Ltd,163.45,10/05/2023
Delivery Units,Adults and Health,Other Agencies - Third Party P,0090582714,Eleanor Nursing & Social Care Ltd,65.38,10/05/2023
Delivery Units,Adults and Health,Other Agencies - Third Party P,0090582715,Eleanor Nursing & Social Care Ltd,28.02,10/05/2023
Delivery Units,Adults and Health,Other Agencies - Third Party P,0090582717,Eleanor Nursing & Social Care Ltd,163.45,10/05/2023
Delivery Units,Adults and Health,Other Agencies - Third Party P,0090582719,Eleanor Nursing & Social Care Ltd,228.83,10/05/2023
Delivery Units,Adults and Health,Other Agencies - Third Party P,0090582720,Eleanor Nursing & Social Care Ltd,70.05,10/05/2023
Delivery Units,Adults and Health,Other Agencies - Third Party P,0090582723,Eleanor Nursing & Social Care Ltd,130.76,10/05/2023
Delivery Units,Adults and Health,Other Agencies - Third Party P,0090582724,Eleanor Nursing & Social Care Ltd,261.52,10/05/2023
Delivery Units,Adults and Health,Other Agencies - Third Party P,0090582726,Eleanor Nursing & Social Care Ltd,56.04,10/05/2023
Delivery Units,Adults and Health,Other Agencies - Third Party P,0090582727,Eleanor Nursing & Social Care Ltd,723.85,10/05/2023
Delivery Units,Adults and Health,Other Agencies - Third Party P,0090582728,Eleanor Nursing & Social Care Ltd,467.00,10/05/2023
Delivery Units,Adults and Health,Other Agencies - Third Party P,0090582731,Eleanor Nursing & Social Care Ltd,28.02,10/05/2023
Delivery Units,Adults and Health,Other Agencies - Third Party P,0090582732,Eleanor Nursing & Social Care Ltd,56.04,10/05/2023
Delivery Units,Adults and Health,Other Agencies - Third Party P,0090582734,Eleanor Nursing & Social Care Ltd,214.82,10/05/2023
Delivery Units,Adults and Health,Other Agencies - Third Party P,0090582735,Eleanor Nursing & Social Care Ltd,224.16,10/05/2023
Delivery Units,Adults and Health,Other Agencies - Third Party P,0090582736,Eleanor Nursing & Social Care Ltd,65.38,10/05/2023
Delivery Units,Adults and Health,Other Agencies - Third Party P,0090582737,Eleanor Nursing & Social Care Ltd,149.44,10/05/2023
Delivery Units,Adults and Health,Other Agencies - Third Party P,0090582738,Eleanor Nursing & Social Care Ltd,312.89,10/05/2023
Delivery Units,Adults and Health,Other Agencies - Third Party P,0090582740,Eleanor Nursing & Social Care Ltd,18.68,10/05/2023
Delivery Units,Adults and Health,Other Agencies - Third Party P,0090582741,Eleanor Nursing & Social Care Ltd,252.18,10/05/2023
Delivery Units,Adults and Health,Other Agencies - Third Party P,0090582742,Eleanor Nursing & Social Care Ltd,130.76,10/05/2023
Delivery Units,Adults and Health,Other Agencies - Third Party P,0090582743,Eleanor Nursing & Social Care Ltd,952.68,10/05/2023
Delivery Units,Adults and Health,Other Agencies - Third Party P,0090582747,Eleanor Nursing & Social Care Ltd,163.45,10/05/2023
Delivery Units,Adults and Health,Other Agencies - Third Party P,0090582750,Eleanor Nursing & Social Care Ltd,298.88,10/05/2023
Delivery Units,Adults and Health,Other Agencies - Third Party P,0090582752,Eleanor Nursing & Social Care Ltd,186.80,10/05/2023
Delivery Units,Adults and Health,Other Agencies - Third Party P,0090582755,Eleanor Nursing & Social Care Ltd,270.86,10/05/2023
Delivery Units,Adults and Health,Other Agencies - Third Party P,0090582758,Eleanor Nursing & Social Care Ltd,163.45,10/05/2023
Delivery Units,Adults and Health,Other Agencies - Third Party P,0090582760,Eleanor Nursing & Social Care Ltd,70.05,10/05/2023
Delivery Units,Adults and Health,Other Agencies - Third Party P,0090582761,Eleanor Nursing & Social Care Ltd,392.28,10/05/2023
Delivery Units,Adults and Health,Other Agencies - Third Party P,0090582762,Eleanor Nursing & Social Care Ltd,457.66,10/05/2023
